Workbook

Sheet AER only (hidden)
B1: Data in these columns used for data validation and database purposes.
B2: Date last modified: | C2: 2016-09-06 | D2: added new business names, improved column heading formatting
AC4: FOR ELECTRICITY BUSINESSES ONLY
AC5: Feeder Types | AG5: TasNetworks (D) | AH5: MAIFI flag | AI5: Feeder Names
AC6: CBD | AD6: Urban | AE6: Short rural | AF6: long rural | AG6: EXTRA
B7: dms_TradingName_List | C7: dms_TradingNameFull_List | D7: dms_ABN_List | E7: dms_JurisdictionList | F7: dms_Sector_List | G7: dms_Segment_List | H7: dms_FormControl_List | I7: dms_RPT_List | J7: dms_RPTMonth_List | K7: dms_CRCPlength_List | L7: dms_FRCPlength_List | M7: dms_663_List | N7: dms_DeterminationRef_List | O7: dms_Addr1_List | P7: dms_Addr2_List | Q7: dms_Suburb_List | R7: dms_State_List | S7: dms_PostCode_List | T7: dms_PAddr1_List | U7: dms_PAddr2_List | V7: dms_PSuburb_List | W7: dms_PState_List | X7: dms_PPostCode_List | Y7: dms_ContactName1_List | Z7: dms_ContactPh1_List | AA7: dms_ContactEmail_List | AC7: dms_CBD_flag | AD7: dms_Urban_flag | AE7: dms_ShortRural_flag | AF7: dms_LongRural_flag | AG7: dms_FeederType_5_flag | AH7: dms_MAIFI_flag_List | AI7: dms_FeederName_1 | AJ7: dms_FeederName_2 | AK7: dms_FeederName_3 | AL7: dms_FeederName_4 | AM7: dms_FeederName_5
B8: ActewAGL Distribution | C8: ActewAGL Distribution | D8: 76670568688 | E8: ACT | F8: Electricity | G8: Distribution | H8: Revenue cap | I8: Financial | J8: June | K8: 5 | L8: 5 | M8: 5 | N8: 2014-19 Distribution Determination | O8: 40 Bunda Street | Q8: CANBERRA | R8: ACT | S8: 2600 | T8: GPO BOX 366 | V8: CANBERRA | W8: ACT | X8: 2601 | Y8: Robert Walker | Z8: 02 6248 3847 | AA8: robert.walker@actewagle.com.au | AC8: NO | AD8: YES | AE8: YES | AF8: NO | AG8: NO | AI8: CBD | AJ8: Urban | AK8: Short rural | AL8: Long rural | AN8: ActewAGL Distribution
B9: ActewAGL Distribution (Tx Assets) | C9: ActewAGL Distribution (Tx Assets) | D9: 76670568688 | E9: ACT | F9: Electricity | G9: Distribution | H9: Revenue cap | I9: Financial | J9: June | K9: 5 | L9: 5 | M9: 5 | N9: distribution determination | O9: 40 Bunda Street | Q9: CANBERRA | R9: ACT | S9: 2600 | T9: GPO BOX 366 | V9: CANBERRA | W9: ACT | X9: 2601 | Y9: Robert Walker | Z9: 02 6248 3847 | AA9: robert.walker@actewagle.com.au | AI9: CBD | AJ9: Urban | AK9: Short rural | AL9: Long rural | AN9: ActewAGL Distribution (Tx Assets)
B10: ActewAGL Gas | C10: ActewAGL Gas | D10: 76670568688 | E10: ACT | F10: Gas | G10: Distribution | H10: Weighted average price cap | I10: Financial | J10: June | K10: 5 | L10: 5 | M10: x | O10: 40 Bunda Street | Q10: CANBERRA | R10: ACT | S10: 2600 | T10: GPO BOX 366 | V10: CANBERRA | W10: ACT | X10: 2601 | Y10: Philip Deamer | Z10: 02 6248 3438 | AA10: GasAAReview@actewagl.com.au | AN10: ActewAGL Gas
B11: AGN (Albury) | C11: Australian Gas Networks Limited (reporting data for Albury) | D11: 19078551685 | E11: Vic | F11: Gas | G11: Distribution | H11: Weighted average price cap | I11: Calendar | J11: December | K11: 5 | L11: 5 | M11: x | O11: Level 10 | P11: 81 Flinders Street | Q11: ADELAIDE | R11: SA | S11: 5000 | Z11: 08 8227 1500 | AI11: CBD | AJ11: Urban | AK11: Short rural | AL11: Long rural | AN11: AGN (SA)
B12: AGN (SA) | C12: AGN (SA) | D12: 78551685 | E12: SA | F12: Gas | G12: Distribution | H12: Revenue cap | I12: Financial | J12: June | K12: 5 | L12: 5 | M12: 5 | N12: distribution determination | R12: SA | AN12: AGN (Victoria)
B13: AGN (Victoria) | C13: Australian Gas Networks Limited (reporting data for Victoria) | D13: 19078551685 | E13: Vic | F13: Gas | G13: Distribution | H13: Weighted average price cap | I13: Calendar | J13: December | K13: 5 | L13: 5 | M13: x | O13: Level 10 | P13: 81 Flinders Street | Q13: ADELAIDE | R13: SA | S13: 5000 | Z13: 08 8227 1500 | AN13: AGN (Albury)
B14: Amadeus | C14: APT Pipelines (NT) Pty Ltd | D14: 39009737393 | E14: NT | F14: Gas | G14: Transmission | H14: Weighted average price cap | I14: Financial | J14: June | K14: 5 | L14: 5 | M14: x | N14: n/a | O14: Level 19, HSBC Building | P14: 580 George Street | Q14: SYDNEY | R14: NSW | S14: 2000 | T14: Level 19, HSBC Building | U14: 580 George Street | V14: SYDNEY | W14: NSW | X14: 2000 | Y14: Alexandra Curran | Z14: 02 9275 0020 | AA14: alexandra.curran@apa.com.au | AN14: Amadeus
B15: APA GasNet | C15: APA GasNet Australia (Operations) Pty Ltd | D15: 65083009 | E15: Vic | F15: Gas | G15: Transmission | H15: Weighted average price cap | I15: Calendar | J15: December | K15: 5 | L15: 5 | M15: x | O15: Level 19, HSBC Building | P15: 580 George Street | Q15: SYDNEY | R15: NSW | S15: 2000 | T15: PO Box R41 | V15: ROYAL EXCHANGE | W15: NSW | X15: 1225 | Z15: 02 9693 0000 | AN15: APA GasNet
B16: Ausgrid | C16: Ausgrid | D16: 67505337385 | E16: NSW | F16: Electricity | G16: Distribution | H16: Revenue cap | I16: Financial | J16: June | K16: 5 | L16: 5 | M16: 5 | N16: 2014-19 Distribution Determination | O16: 570 George St | Q16: SYDNEY | R16: NSW | S16: 2000 | Y16: John Thomson | Z16: (02) 9269 2312 | AA16: john.thomson@ausgrid.com.au | AC16: YES | AD16: YES | AE16: YES | AF16: YES | AG16: NO | AI16: CBD | AJ16: Urban | AK16: Short rural | AL16: Long rural | AN16: Ausgrid
B17: Ausgrid (Tx Assets) | C17: Ausgrid (Tx Assets) | D17: 67505337385 | E17: NSW | F17: Electricity | G17: Distribution | H17: Revenue cap | I17: Financial | J17: June | K17: 5 | L17: 5 | M17: 5 | N17: distribution determination | R17: NSW | AI17: CBD | AJ17: Urban | AK17: Short rural | AL17: Long rural | AN17: Ausgrid (Tx Assets)
B18: AusNet (D) | C18: AusNet Services (D) | D18: 91064651118 | E18: Vic | F18: Electricity | G18: Distribution | H18: Revenue cap | I18: Calendar | J18: December | K18: 5 | L18: 5 | M18: 2 | N18: 2016-20 Distribution Determination | O18: Level 32 | P18: 2 Southbank Boulevard | Q18: SOUTHBANK | R18: Vic | S18: 3006 | T18: Locked Bag 14051 | V18: MELBOURNE CITY MAIL CENTRE | W18: VIC | X18: 8001 | Y18: Hannah Williams | Z18: 03 9683 4088 | AA18: hwilliams@powercor.com.au | AD18: YES | AE18: YES | AF18: YES | AG18: NO | AI18: CBD | AJ18: Urban | AK18: Short rural | AL18: Long rural | AN18: AusNet (D)
B19: AusNet (Gas) | C19: AusNet Gas Services | D19: 86015036 | E19: Vic | F19: Gas | G19: Distribution | H19: Weighted average price cap | I19: Calendar | J19: December | K19: 5 | L19: 5 | M19: X | AN19: AusNet (Gas)
B20: AusNet (T) | C20: AusNet (T) | D20: 78079798173 | E20: Vic | F20: Electricity | G20: Transmission | H20: Revenue cap | I20: Financial | J20: March | K20: 5 | L20: 5 | M20: 2 | N20: transmission determination | O20: Level 32 | P20: 2 Southbank Boulevard | Q20: SOUTHBANK | R20: Vic | S20: 3006 | T20: Locked Bag 14051 | V20: MELBOURNE CITY MAIL CENTRE | W20: Vic | X20: 8001 | Y20: Clare Thompson | Z20: 03 9695 6670 | AA20: clare.e.thompson@ausnetservices.com.au | AI20: CBD | AJ20: Urban | AK20: Short rural | AL20: Long rural | AN20: AusNet (T)
B21: Australian Distribution Co. | C21: Australian Distribution Co. | D21: 11222333444 | E21: - | F21: Electricity | G21: Distribution | H21: Revenue cap | I21: Financial | J21: June | K21: 5 | L21: 5 | M21: 2 | N21: distribution determination | O21: 123 Straight Street | Q21: SYDNEY | R21: NSW | S21: 2000 | T21: PO Box 123 | V21: SYDNEY | W21: NSW | X21: 2000 | Y21: Bob Smith | Z21: 02 1234 5678 | AA21: bob@auselec.net.au | AI21: CBD | AJ21: Urban | AK21: Short rural | AL21: Long rural | AN21: Australian Distribution Co.
B22: Australian Distribution Co. (Vic) | C22: Australian Distribution Co. (Victoria) | D22: 11222333444 | E22: Vic | F22: Electricity | G22: Distribution | H22: Revenue cap | I22: Calendar | J22: December | K22: 5 | L22: 5 | M22: 2 | N22: distribution determination | O22: 123 Straight Street | Q22: MELBOURNE | R22: Vic | S22: 3000 | T22: PO Box 123 | V22: MELBOURNE | W22: VIC | X22: 3000 | Y22: Bob Smith | Z22: 02 1234 5678 | AA22: bob@auselec.net.au | AI22: CBD | AJ22: Urban | AK22: Short rural | AL22: Long rural | AN22: Australian Distribution Co. (Vic)
B23: Australian Transmission Co. | C23: Australian Transmission Co. | D23: 11222333444 | E23: - | F23: Electricity | G23: Transmission | H23: Revenue cap | I23: Financial | J23: June | K23: 5 | L23: 5 | M23: 5 | N23: transmission determination | O23: 123 Straight Street | Q23: SYDNEY | R23: NSW | S23: 2000 | T23: PO Box 123 | V23: SYDNEY | W23: NSW | X23: 2000 | Y23: Bob Smith | Z23: 02 1234 5678 | AA23: bob@auselec.net.au | AI23: CBD | AJ23: Urban | AK23: Short rural | AL23: Long rural | AN23: Australian Transmission Co.
B24: CitiPower | C24: CitiPower | D24: 76064651056 | E24: Vic | F24: Electricity | G24: Distribution | H24: Revenue cap | I24: Calendar | J24: December | K24: 5 | L24: 5 | M24: 2 | N24: 2016-20 Distribution Determination | O24: 40 Market Street | Q24: MELBOURNE | R24: Vic | S24: 3000 | T24: Locked Bag 14090 | V24: MELBOURNE | W24: VIC | X24: 8001 | Y24: Hannah Williams | Z24: 03 9683 4088 | AA24: hwilliams@powercor.com.au | AC24: YES | AD24: YES | AE24: NO | AF24: NO | AG24: NO | AI24: CBD | AJ24: Urban | AK24: Short rural | AL24: Long rural | AN24: CitiPower
B25: Directlink | C25: Directlink | D25: 16779340889 | E25: Qld | F25: Electricity | G25: Transmission | H25: Revenue cap | I25: Financial | J25: June | K25: 9 | L25: 5 | M25: 5 | N25: transmission determination | R25: NSW | AI25: CBD | AJ25: Urban | AK25: Short rural | AL25: Long rural | AN25: Directlink
B26: ElectraNet | C26: ElectraNet | D26: 41094482416 | E26: SA | F26: Electricity | G26: Transmission | H26: Revenue cap | I26: Financial | J26: June | K26: 5 | L26: 5 | M26: 5 | N26: transmission determination | O26: 52-55 East Terrace | P26: Rymill Park | Q26: ADELAIDE | R26: SA | S26: 5000 | T26: PO Box 7096 | U26: Hutt Street Post Office | V26: ADELAIDE | W26: SA | X26: 5000 | Y26: Bill Jackson | Z26: 08 8404 7969 | AA26: jackson.bill@electranet.com.au | AI26: CBD | AJ26: Urban | AK26: Short rural | AL26: Long rural | AN26: ElectraNet
B27: Endeavour Energy | C27: Endeavour Energy | D27: 59253130878 | E27: NSW | F27: Electricity | G27: Distribution | H27: Revenue cap | I27: Financial | J27: June | K27: 5 | L27: 5 | M27: 5 | N27: 2014-19 Distribution Determination | O27: 51 Huntingwood Drive | Q27: HUNTINGWOOD | R27: NSW | S27: 2148 | T27: PO Box 811 | V27: SEVEN HILLS | W27: NSW | X27: 1730 | Y27: Jon Hocking | Z27: 02 9853 4386 / 0407 348 156 | AA27: Jon.Hocking@Endeavourenergy.com.au | AC27: NO | AD27: YES | AE27: YES | AF27: YES | AG27: NO | AI27: CBD | AJ27: Urban | AK27: Short rural | AL27: Long rural | AN27: Endeavour Energy
B28: Energex | C28: Energex | D28: 40078849055 | E28: Qld | F28: Electricity | G28: Distribution | H28: Revenue cap | I28: Financial | J28: June | K28: 5 | L28: 5 | M28: 5 | N28: 2015-20 Distribution Determination | O28: 26 Reddacliff Street | Q28: NEWSTEAD | R28: Qld | S28: 4006 | T28: 26 Reddacliff Street | V28: NEWSTEAD | W28: QLD | X28: 4006 | Y28: Nicola Roscoe | Z28: 07 3664 5891 | AA28: nicolaroscoe@energex.com.au | AC28: YES | AD28: YES | AE28: YES | AF28: NO | AG28: NO | AI28: CBD | AJ28: Urban | AK28: Short rural | AL28: Long rural | AN28: Energex
B29: Ergon Energy | C29: Ergon Energy | D29: 50087646062 | E29: Qld | F29: Electricity | G29: Distribution | H29: Revenue cap | I29: Financial | J29: June | K29: 5 | L29: 5 | M29: 5 | N29: 2015-20 Distribution Determination | O29: 22 Walker Street | Q29: TOWNSVILLE | R29: Qld | S29: 4810 | T29: Po Box 264 | V29: FORTITUDE VALLEY | W29: QLD | X29: 4006 | Y29: Jenny Doyle, Group Manager Regulatory Affairs | Z29: (07) 3851 6416 | AA29: jenny.doyle@ergon.com.au | AC29: NO | AD29: YES | AE29: YES | AF29: YES | AG29: NO | AI29: CBD | AJ29: Urban | AK29: Short rural | AL29: Long rural | AN29: Ergon Energy
B30: Essential Energy | C30: Essential Energy | D30: 37428185226 | E30: NSW | F30: Electricity | G30: Distribution | H30: Revenue cap | I30: Financial | J30: June | K30: 5 | L30: 5 | M30: 5 | N30: 2014-19 Distribution Determination | O30: 8 Buller Street | Q30: PORT MACQUARIE | R30: NSW | S30: 2444 | T30: PO Box 5730 | V30: PORT MACQUARIE | W30: NSW | X30: 2444 | Y30: Catherine Waddell | Z30: 02 6338 3553 | AA30: catherine.waddell@essentialenergy.com.au | AE30: YES | AF30: YES | AG30: NO | AI30: CBD | AJ30: Urban | AK30: Short rural | AL30: Long rural | AN30: Essential Energy
B31: Jemena Electricity | C31: Jemena Electricity | D31: 82064651083 | E31: Vic | F31: Electricity | G31: Distribution | H31: Revenue cap | I31: Calendar | J31: December | K31: 5 | L31: 5 | M31: 2 | N31: 2016-20 Distribution Determination | O31: Level 16 | P31: 567 Collins Street | Q31: MELBOURNE | R31: VIC | S31: 3000 | T31: PO Box 16182 | V31: MELBOURNE | W31: VIC | X31: 8001 | Y31: Matthew Serpell | Z31: 03 9173 8231 | AA31: matthew.serpell@jemena.com..au | AE31: YES | AF31: NO | AG31: NO | AI31: CBD | AJ31: Urban | AK31: Short rural | AL31: Long rural | AN31: Jemena Electricity
B32: JGN | C32: Jemena Gas Networks | E32: NSW | F32: Gas | G32: Distribution | H32: Weighted average price cap | I32: Financial | J32: June | K32: 5 | L32: 5 | AN32: JGN
B33: Multinet Gas | C33: Multinet Gas (DB No.1) Pty Ltd (ACN 086 026 986), Multinet Gas (DB No.2) Pty Ltd (ACN 086 230 122) | D33: 86026986 | E33: Vic | F33: Gas | G33: Distribution | H33: Weighted average price cap | I33: Calendar | J33: December | K33: 5 | L33: 5 | M33: x | AN33: Multinet Gas
B34: Murraylink | C34: Murraylink | D34: 79181207909 | E34: SA | F34: Electricity | G34: Transmission | H34: Revenue cap | I34: Financial | J34: June | K34: 5 | L34: 5 | M34: 5 | N34: transmission determination | AI34: CBD | AJ34: Urban | AK34: Short rural | AL34: Long rural | AN34: Murraylink
B35: Powercor Australia | C35: Powercor Australia | D35: 89064651109 | E35: Vic | F35: Electricity | G35: Distribution | H35: Revenue cap | I35: Calendar | J35: December | K35: 5 | L35: 5 | M35: 2 | N35: 2016-20 Distribution Determination | O35: 40 Market Street | Q35: MELBOURNE | R35: Vic | S35: 3000 | T35: Locked bag 14090 | V35: MELBOURNE | W35: VIC | X35: 8001 | Y35: Hannah Williams | Z35: 03 9683 4088 | AA35: hwilliams@powercor.com.au | AE35: YES | AF35: YES | AG35: NO | AI35: CBD | AJ35: Urban | AK35: Short rural | AL35: Long rural | AN35: Powercor Australia
B36: Powerlink | C36: Queensland Electricity Transmission Corporation Limited trading as Powerlink Queensland | D36: 82078849233 | E36: Qld | F36: Electricity | G36: Transmission | H36: Revenue cap | I36: Financial | J36: June | K36: 5 | L36: 5 | M36: 5 | N36: transmission determination | O36: 33 Harold St | Q36: VIRGINIA | R36: Qld | S36: 4014 | T36: PO Box 1193 | V36: VIRGINIA | W36: QLD | X36: 4014 | Y36: Jennifer Harris | Z36: 07 3860 2667 | AA36: jharris@powerlink.com.au | AI36: CBD | AJ36: Urban | AK36: Short rural | AL36: Long rural | AN36: Powerlink
B37: Roma to Brisbane Pipeline | C37: APT Petroleum Pipelines Limited t/a Roma to Brisbane Pipeline | D37: 009 737 393 | E37: Qld | F37: Gas | G37: Transmission | H37: Revenue cap | I37: Financial | J37: June | K37: 5 | L37: 5 | M37: x | N37: n/a | AI37: CBD | AJ37: Urban | AK37: Short rural | AL37: Long rural | AN37: Roma to Brisbane Pipeline
B38: SA Power Networks | C38: SA Power Networks | D38: 13332330749 | E38: SA | F38: Electricity | G38: Distribution | H38: Revenue cap | I38: Financial | J38: June | K38: 5 | L38: 5 | M38: 5 | N38: 2015-20 Distribution Determination | O38: 1 Anzac Highway | Q38: KESWICK | R38: SA | S38: 5035 | T38: GPO Box 77 | V38: ADELAIDE | W38: SA | X38: 5000 | Y38: Damien O'Connor | Z38: 08 8404 5066 | AA38: damien.oconnor@sapowernetworks.com.au | AE38: YES | AF38: YES | AG38: NO | AI38: CBD | AJ38: Urban | AK38: Short rural | AL38: Long rural | AN38: SA Power Networks
B39: TasNetworks (D) | C39: TasNetworks (D) | D39: 24167357299 | E39: Tas | F39: Electricity | G39: Distribution | H39: Revenue cap | I39: Financial | J39: June | K39: 5 | L39: 5 | M39: 5 | N39: distribution determination | O39: 21 Kirksway Place | Q39: HOBART | R39: Tas | S39: 7000 | T39: GPO Box 191 | V39: HOBART | W39: Tas | X39: 7000 | Y39: Leigh Mayne | Z39: 03 6270 3691 | AA39: rrp2012@auroraenergy.com.au | AE39: YES | AF39: YES | AG39: YES | AI39: Critical Infrastructure | AJ39: High density commercial | AK39: Urban | AL39: High density rural | AM39: Low density rural | AN39: TasNetworks (D)
B40: TasNetworks (T) | C40: TasNetworks (T) | D40: 24167357299 | E40: Tas | F40: Electricity | G40: Transmission | H40: Revenue cap | I40: Financial | J40: June | K40: 5 | L40: 5 | M40: 5 | N40: transmission determination | O40: 1-7 Maria Street | Q40: LENAH VALLEY | R40: Tas | S40: 7008 | T40: PO Box 606 | V40: MOONAH | W40: Tas | X40: 7009 | Y40: Heath Dillon | Z40: 03 6274 3664 | AA40: heath.dillon@transend.com.au | AI40: CBD | AJ40: Urban | AK40: Short rural | AL40: Long rural | AN40: TasNetworks (T)
B41: TransGrid | C41: NSW Electricity Networks Operations Pty Ltd trading as TransGrid | D41: 609169959 | E41: NSW | F41: Electricity | G41: Transmission | H41: Revenue cap | I41: Financial | J41: June | K41: 5 | L41: 4 | M41: 5 | N41: transmission determination | O41: 180 Thomas Street | Q41: SYDNEY | R41: NSW | S41: 2000 | T41: PO Box A1000 | V41: SYDNEY SOUTH | W41: NSW | X41: 1235 | Y41: Garrie Chubb | Z41: 0408 210 221 | AA41: garrie.chubb@transgrid.com.au | AI41: CBD | AJ41: Urban | AK41: Short rural | AL41: Long rural | AN41: TransGrid
B42: United Energy | C42: United Energy | D42: 70064651029 | E42: Vic | F42: Electricity | G42: Distribution | H42: Revenue cap | I42: Calendar | J42: December | K42: 5 | L42: 5 | M42: 2 | N42: 2016-20 Distribution Determination | O42: Level 3 | P42: 6 Nexus Court | Q42: MULGRAVE | R42: Vic | S42: 3149 | T42: PO Box 449 | V42: MOUNT WAVERLEY | W42: VIC | X42: 3170 | Y42: Mathew Abraham | Z42: 03 8846 9758 | AA42: mathew.abraham@ue.com.au | AE42: YES | AF42: NO | AG42: NO | AI42: CBD | AJ42: Urban | AK42: Short rural | AL42: Long rural | AN42: United Energy
B43: Western Power (D) | C43: Western Power (D) | D43: 18540492861 | E43: WA | F43: Electricity | G43: Distribution | H43: Revenue cap | I43: Financial | J43: June | K43: 12 | L43: 4 | M43: x | N43: distribution determination | O43: 363 Wellington Street | Q43: PERTH | R43: WA | S43: 6000 | T43: GPO Box L921 | V43: PERTH | W43: WA | X43: 6842 | Y43: Judy Hunter | Z43: 08 9326 6239 | AA43: judy.hunter@westernpower.com.au | AE43: YES | AF43: YES | AG43: NO | AH43: NO | AI43: CBD | AJ43: Urban | AK43: Short rural | AL43: Long rural | AN43: Western Power (D)
B44: Western Power (T) | C44: Western Power (T) | D44: 18540492861 | E44: WA | F44: Electricity | G44: Transmission | H44: Revenue cap | I44: Financial | J44: June | K44: 12 | L44: 4 | M44: x | N44: transmission determination | O44: 363 Wellington Street | Q44: PERTH | R44: WA | S44: 6000 | T44: GPO Box L921 | V44: PERTH | W44: WA | X44: 6842 | Y44: Judy Hunter | Z44: 08 9326 6239 | AA44: judy.hunter@westernpower.com.au | AE44: YES | AF44: YES | AG44: NO | AI44: CBD | AJ44: Urban | AK44: Short rural | AL44: Long rural | AN44: Western Power (T)
W47: For EB & Reset RINs only | AC47: For AARs only
B48: The Reg Year Ending (dms_RYE) must be set to the last year of the regulatory period. For forecast data is is usually (FRCP_y5) for actual it is a single year (CRY). For historical actual data the RYE will need to be set manually in the business details sheet by setting the dms_Multiyear_flag to 1 and putting the correct value in 'dms_Specified_FinalYear. See cells C67:C68 | G48: =IF(dms_RPT="financial",VALUE(LEFT(CRCP_y1,4)-1)&"-"&TEXT(VALUE(RIGHT(CRCP_y1,2)-1),"00"),VALUE(LEFT(CRCP_y1,4)-1)) -> 2011 | N48: Drop down selector box for CA & Reset RINs. | O48: For CA & Reset RINs only | W48: for DNSP only | AC48: For DNSPs only | AI48: Reason for interruption | AJ48: dms_Reason_Interruption_Detailed | AK48: dms_Reason_Interruption
B49: dms_Model_List | C49: DELETE NR 'CRY' IF NOT AN ANNUAL RIN (EB, CA , ARR) | E49: dms_RYE_Formula_Result | N49: dms_0203_ProjectType | O49: dms_020303_01_UOM | P49: dms_020501_01_UOM | Q49: dms_020501_02_UOM | R49: dms_020501_03_UOM | S49: dms_020501_04_UOM | T49: dms_020603_01_UOM | U49: dms_040102_01_UOM | V49: dms_040102_04_UOM | W49: dms_030601_01_UOM | X49: dms_030601_02_UOM | Y49: dms_030701_01_UOM | Z49: dms_030702_01_UOM | AA49: dms_030703_01_UOM | AC49: dms_030605_UOM | AD49: dms_03060703_UOM | AI49: Animal | AJ49: Animal impact | AK49: Animal
B50: ARR | C50: ANNUAL REPORTING STATEMENT | E50: =LEFT(dms_SingleYear_FinalYear_Result,2)&RIGHT(dms_SingleYear_FinalYear_Result,2) -> 2016 | F50: =LEFT(dms_SingleYear_FinalYear_Result,2)&RIGHT(dms_SingleYear_FinalYear_Result,2) | H50: Formula errors are OK | N50: New line on new route - single circuit | O50: Circuit line length in km | P50: 0's | Q50: 0's | R50: 0's | S50: 0's | T50: 0's | U50: 0's | V50: days | W50: minutes/customer | X50: minutes/customer | Y50: Customer / km | Z50: % | AA50: km | AC50: number | AD50: number | AJ50: Animal nesting/burrowing, etc and other | AK50: Asset failure
B51: CA | C51: CATEGORY ANALYSIS | E51: =LEFT(dms_SingleYear_FinalYear_Result,2)&RIGHT(dms_SingleYear_FinalYear_Result,2) -> 2016 | F51: =LEFT(dms_SingleYear_FinalYear_Result,2)&RIGHT(dms_SingleYear_FinalYear_Result,2) | H51: Formula errors are OK | N51: New line on new route - dual circuit | O51: Circuit line length in km | P51: 0's | Q51: 0's | R51: 0's | S51: 0's | T51: 0's | U51: 0's | V51: 0's | W51: minutes/customer | X51: minutes/customer | Y51: MWh/customer | Z51: Number of spans | AC51: number | AD51: number | AJ51: Other | AK51: Other
B52: CPI | C52: CPI | N52: New line on new route - other | O52: Circuit line length in km | P52: MVA added | Q52: MVA added | R52: MVA added | S52: MVA added | T52: 0's | U52: 0's | V52: $0s | W52: interruptions/customer | X52: interruptions/customer | Y52: kVA / customer | Z52: Number of spans | AC52: number | AD52: number | AI52: Asset failure | AJ52: LV | AK52: Overloads
B53: EB | C53: ECONOMIC BENCHMARKING | E53: =LEFT(dms_SingleYear_FinalYear_Result,2)&RIGHT(dms_SingleYear_FinalYear_Result,2) -> 2016 | F53: =LEFT(dms_SingleYear_FinalYear_Result,2)&RIGHT(dms_SingleYear_FinalYear_Result,2) | H53: Formula errors are OK | N53: Line rebuild over existing route - single circuit | O53: Circuit line length in km | P53: 0's | Q53: 0's | R53: 0's | S53: 0's | T53: 0's | U53: $0s | V53: 0's | W53: interruptions/customer | X53: interruptions/customer | Z53: Number of spans | AC53: number | AD53: number | AJ53: Distribution substation | AK53: Planned
B54: PTRM | C54: POST TAX REVENUE MODEL | E54: =LEFT(dms_MultiYear_FinalYear_Result,2)&RIGHT(dms_MultiYear_FinalYear_Result,2) -> 2021 | F54: =LEFT(dms_MultiYear_FinalYear_Result,2)&RIGHT(dms_MultiYear_FinalYear_Result,2) | N54: Line rebuild over existing route - dual circuit | O54: Number | P54: total spend $0s | Q54: total spend $0s | R54: total spend $0s | S54: total spend $0s | T54: (per cent) | Z54: Number of spans | AC54: number | AD54: (per cent) | AJ54: HV | AK54: Network business
B55: Reset | C55: REGULATORY REPORTING STATEMENT | E55: =LEFT(dms_MultiYear_FinalYear_Result,2)&RIGHT(dms_MultiYear_FinalYear_Result,2) -> 2021 | F55: =LEFT(dms_MultiYear_FinalYear_Result,2)&RIGHT(dms_MultiYear_FinalYear_Result,2) | H55: Formula errors are OK | N55: Reconductor - Single circuit | O55: Number | P55: net circuit km added | Q55: net circuit km added | R55: net circuit km added | S55: net circuit km added | Z55: Years | AC55: number | AJ55: Zone substation | AK55: Third party
B56: RFM | C56: ROLL FORWARD MODEL | E56: =LEFT(dms_CRCP_FinalYear_Result,2)&RIGHT(dms_CRCP_FinalYear_Result,2) -> 2016 | F56: =LEFT(dms_CRCP_FinalYear_Result,2)&RIGHT(dms_CRCP_FinalYear_Result,2) | N56: Reconductor - Dual circuit | O56: Number | P56: total spend $0s | Q56: total spend $0s | R56: total spend $0s | S56: total spend $0s | Z56: Years | AC56: number | AJ56: Subtransmission | AK56: Unknown
B57: WACC | C57: WEIGHTED AVERAGE COST OF CAPITAL | E57: =LEFT(dms_MultiYear_FinalYear_Result,2)&RIGHT(dms_MultiYear_FinalYear_Result,2) -> 2021 | F57: =LEFT(dms_MultiYear_FinalYear_Result,2)&RIGHT(dms_MultiYear_FinalYear_Result,2) | N57: Other | P57: net circuit km added | Q57: net circuit km added | R57: net circuit km added | S57: net circuit km added | Z57: Trees | AC57: number | AI57: Other | AJ57: insert description of 'other' | AK57: Vegetation
P58: total spend $0s | Q58: total spend $0s | R58: total spend $0s | S58: total spend $0s | Z58: Trees | AC58: number | AI58: Overloads | AJ58: - | AK58: Weather
B59: dms_DataQuality_List | P59: 0's | R59: $0s | Z59: Defects | AC59: number | AI59: Planned | AJ59: - | AK59: 2 - STPIS Exclusion (3.3)(a)
B60: Actual | P60: 0's | Z60: Defects | AC60: number | AI60: Network business | AJ60: Network error | AK60: 3 - STPIS Exclusion (3.3)(a)
B61: Estimate | P61: 0's | Z61: Spans | AC61: number | AJ61: Switching and protection error | AK61: 4 - STPIS Exclusion (3.3)(a)
B62: Consolidated | P62: $0s | Z62: km | AC62: (per cent) | AI62: Third party | AJ62: Fire | AK62: 5 - STPIS Exclusion (3.3)(a)
B63: Recast | Z63: Spans | AC63: (per cent) | AJ63: Other | AK63: 6 - STPIS Exclusion (3.3)(a)
B64: Public | AJ64: Dig-in | AK64: 7 - STPIS Exclusion (3.3)(a)
AJ65: Unauthorised access
B66: For all files either AER or business needs to be able to specify the type of submission | C66: For PTRM & RFM templates we must provide a choice in case they change their form of control - otherwise it is drawn from the business specific lookup table above. | O66: For PTRM files - this field set the text for the named range "DMS_Xfactor" which in all cases is simply the text "x factors" - this saves putting in each old gas PTRM file | W66: for TNSP only | AJ66: Vehicle impact
B67: dms_SourceList | C67: dms_FormControl_Choices | O67: DMS_Xfactor | W67: dms_030601_01_UOM | Y67: dms_030701_01_UOM | Z67: dms_030702_01_UOM | AI67: Unknown | AJ67: Unknown
B68: After appeal | C68: Revenue cap | O68: x factors | W68: % | Y68: Number of spans | Z68: km | AI68: Vegetation | AJ68: Blow-in/Fall-in - NSP responsibility
B69: Draft decision | C69: Revenue yield | W69: number | Y69: Years | Z69: % | AJ69: Grow-in - NSP responsibility
B70: Final decision | C70: Weighted average price cap | W70: number | Y70: Trees | Z70: km | AJ70: Blow-in/Fall-in - Other responsible party
B71: PTRM update 1 | W71: % | Y71: Defects | Z71: number | AJ71: Grow-in - Other responsible party
B72: PTRM update 2 | W72: number | Y72: Number of spans | AI72: Weather
B73: PTRM update 3 | W73: number | Y73: km | AI73: 2 - STPIS Exclusion (3.3)(a)
B74: PTRM update 4 | W74: % | Y74: km | AI74: 3 - STPIS Exclusion (3.3)(a)
B75: PTRM update 5 | W75: number | Y75: Number of spans | AI75: 4 - STPIS Exclusion (3.3)(a)
B76: PTRM update 6 | W76: number | AI76: 5 - STPIS Exclusion (3.3)(a)
B77: PTRM update 7 | W77: % | AI77: 6 - STPIS Exclusion (3.3)(a)
B78: Regulatory proposal | W78: number | AI78: 7 - STPIS Exclusion (3.3)(a)
B79: Reporting | W79: %
B80: Revised regulatory proposal | W80: number
W81: %
W82: number
B86: These are indeces and lookup values for various dates. All step from the value placed in FRCP_y1 on the business and other details worksheet | L86: These date tables are currently used in the Recast templates to provide column headings and conditional formatting
B87: dms_FRCPlength_Num_List | C87: dms_FinalYear_List | D87: dms_CRCPlength_Num_List | E87: dms_CFinalYear_List | F87: dms_FRCP_years | H87: dms_CRCP_years | J87: dms_CRCP_index | L87: CRY from input cell on business sheet | M87: CRY - financial | N87: dms_FinYears | O87: CRY calendar | P87: dms_CalYears
B88: 1 | C88: dms_FRCP_y1 | D88: 1 | E88: CRCP_y1 | F88: =FRCP_y1 -> 2017-18 | G88: dms_FRCP_y1 | H88: =IF(dms_RPT="financial",VALUE(LEFT(dms_FRCP_y1,4)-1)&"-"&TEXT(VALUE(MID(dms_FRCP_y1,3,2)),"00"),VALUE(LEFT(dms_FRCP_y1,4)-1)) -> 2016 | I88: dms_CRCP_yZ | J88: 1 | L88: =CRY -> 2016 | M88: =VALUE(LEFT(CRY,4))&"-"&TEXT(MID(CRY,3,2)+1,"00") -> 2016-17 | N88: dms_CRYf_y1 | O88: =VALUE(LEFT(CRY,4)+1) -> 2017 | P88: dms_CRYc_y1
B89: 2 | C89: dms_FRCP_y2 | D89: 2 | E89: CRCP_y2 | F89: =IF(dms_RPT="financial",VALUE(LEFT(dms_FRCP_y1,4)+1)&"-"&TEXT(VALUE(RIGHT(dms_FRCP_y1,2)+1),"00"),VALUE(LEFT(dms_FRCP_y1,4)+1)) -> 2018 | G89: dms_FRCP_y2 | H89: =IF(dms_RPT="financial",VALUE(LEFT(dms_CRCP_yZ,4)-1)&"-"&TEXT(VALUE(MID(dms_CRCP_yZ,3,2)),"00"),VALUE(LEFT(dms_CRCP_yZ,4)-1)) -> 2015 | I89: dms_CRCP_yY | J89: 2 | M89: =VALUE(LEFT(dms_CRYf_y1,4)+1)&"-"&TEXT(MID(dms_CRYf_y1,3,2)+2,"00") -> 2017-18 | N89: dms_CRYf_y2 | O89: =VALUE(LEFT(dms_CRYc_y1,4)+1) -> 2018 | P89: dms_CRYc_y2
B90: 3 | C90: dms_FRCP_y3 | D90: 3 | E90: CRCP_y3 | F90: =IF(dms_RPT="financial",VALUE(LEFT(dms_FRCP_y2,4)+1)&"-"&TEXT(VALUE(RIGHT(dms_FRCP_y2,2)+1),"00"),VALUE(LEFT(dms_FRCP_y2,4)+1)) -> 2019 | G90: dms_FRCP_y3 | H90: =IF(dms_RPT="financial",VALUE(LEFT(dms_CRCP_yY,4)-1)&"-"&TEXT(VALUE(MID(dms_CRCP_yY,3,2)),"00"),VALUE(LEFT(dms_CRCP_yY,4)-1)) -> 2014 | I90: dms_CRCP_yX | J90: 3 | M90: =VALUE(LEFT(dms_CRYf_y2,4)+1)&"-"&TEXT(MID(dms_CRYf_y2,3,2)+2,"00") -> 2018-19 | N90: dms_CRYf_y3 | O90: =VALUE(LEFT(dms_CRYc_y2,4)+1) -> 2019 | P90: dms_CRYc_y3
B91: 4 | C91: dms_FRCP_y4 | D91: 4 | E91: CRCP_y4 | F91: =IF(dms_RPT="financial",VALUE(LEFT(dms_FRCP_y3,4)+1)&"-"&TEXT(VALUE(RIGHT(dms_FRCP_y3,2)+1),"00"),VALUE(LEFT(dms_FRCP_y3,4)+1)) -> 2020 | G91: dms_FRCP_y4 | H91: =IF(dms_RPT="financial",VALUE(LEFT(dms_CRCP_yX,4)-1)&"-"&TEXT(VALUE(MID(dms_CRCP_yX,3,2)),"00"),VALUE(LEFT(dms_CRCP_yX,4)-1)) -> 2013 | I91: dms_CRCP_yW | J91: 4 | M91: =VALUE(LEFT(dms_CRYf_y3,4)+1)&"-"&TEXT(MID(dms_CRYf_y3,3,2)+2,"00") -> 2019-20 | N91: dms_CRYf_y4 | O91: =VALUE(LEFT(dms_CRYc_y3,4)+1) -> 2020 | P91: dms_CRYc_y4
B92: 5 | C92: dms_FRCP_y5 | D92: 5 | E92: CRCP_y5 | F92: =IF(dms_RPT="financial",VALUE(LEFT(dms_FRCP_y4,4)+1)&"-"&TEXT(VALUE(RIGHT(dms_FRCP_y4,2)+1),"00"),VALUE(LEFT(dms_FRCP_y4,4)+1)) -> 2021 | G92: dms_FRCP_y5 | H92: =IF(dms_RPT="financial",VALUE(LEFT(dms_CRCP_yW,4)-1)&"-"&TEXT(VALUE(MID(dms_CRCP_yW,3,2)),"00"),VALUE(LEFT(dms_CRCP_yW,4)-1)) -> 2012 | I92: dms_CRCP_yV | J92: 5 | M92: =VALUE(LEFT(dms_CRYf_y4,4)+1)&"-"&TEXT(MID(dms_CRYf_y4,3,2)+2,"00") -> 2020-21 | N92: dms_CRYf_y5 | O92: =VALUE(LEFT(dms_CRYc_y4,4)+1) -> 2021 | P92: dms_CRYc_y5
B93: 6 | C93: dms_FRCP_y6 | D93: 6 | E93: CRCP_y6 | F93: =IF(dms_RPT="financial",VALUE(LEFT(dms_FRCP_y5,4)+1)&"-"&TEXT(VALUE(RIGHT(dms_FRCP_y5,2)+1),"00"),VALUE(LEFT(dms_FRCP_y5,4)+1)) -> 2022 | G93: dms_FRCP_y6 | H93: =IF(dms_RPT="financial",VALUE(LEFT(dms_CRCP_yV,4)-1)&"-"&TEXT(VALUE(MID(dms_CRCP_yV,3,2)),"00"),VALUE(LEFT(dms_CRCP_yV,4)-1)) -> 2011 | I93: dms_CRCP_yU | J93: 6 | M93: =VALUE(LEFT(dms_CRYf_y5,4)+1)&"-"&TEXT(MID(dms_CRYf_y5,3,2)+2,"00") -> 2021-22 | N93: dms_CRYf_y6 | O93: =VALUE(LEFT(dms_CRYc_y5,4)+1) -> 2022 | P93: dms_CRYc_y6
B94: 7 | C94: dms_FRCP_y7 | D94: 7 | E94: CRCP_y7 | F94: =IF(dms_RPT="financial",VALUE(LEFT(dms_FRCP_y6,4)+1)&"-"&TEXT(VALUE(RIGHT(dms_FRCP_y6,2)+1),"00"),VALUE(LEFT(dms_FRCP_y6,4)+1)) -> 2023 | G94: dms_FRCP_y7 | H94: =IF(dms_RPT="financial",VALUE(LEFT(dms_CRCP_yU,4)-1)&"-"&TEXT(VALUE(MID(dms_CRCP_yU,3,2)),"00"),VALUE(LEFT(dms_CRCP_yU,4)-1)) -> 2010 | I94: dms_CRCP_yT | J94: 7 | M94: =VALUE(LEFT(dms_CRYf_y6,4)+1)&"-"&TEXT(MID(dms_CRYf_y6,3,2)+2,"00") -> 2022-23 | N94: dms_CRYf_y7 | O94: =VALUE(LEFT(dms_CRYc_y6,4)+1) -> 2023 | P94: dms_CRYc_y7
B95: 8 | C95: dms_FRCP_y8 | D95: 8 | E95: CRCP_y8 | F95: =IF(dms_RPT="financial",VALUE(LEFT(dms_FRCP_y7,4)+1)&"-"&TEXT(VALUE(RIGHT(dms_FRCP_y7,2)+1),"00"),VALUE(LEFT(dms_FRCP_y7,4)+1)) -> 2024 | G95: dms_FRCP_y8 | H95: =IF(dms_RPT="financial",VALUE(LEFT(dms_CRCP_yT,4)-1)&"-"&TEXT(VALUE(MID(dms_CRCP_yT,3,2)),"00"),VALUE(LEFT(dms_CRCP_yT,4)-1)) -> 2009 | I95: dms_CRCP_yS | J95: 8 | M95: =VALUE(LEFT(dms_CRYf_y7,4)+1)&"-"&TEXT(MID(dms_CRYf_y7,3,2)+2,"00") -> 2023-24 | N95: dms_CRYf_y8 | O95: =VALUE(LEFT(dms_CRYc_y7,4)+1) -> 2024 | P95: dms_CRYc_y8
B96: 9 | C96: dms_FRCP_y9 | D96: 9 | E96: CRCP_y9 | F96: =IF(dms_RPT="financial",VALUE(LEFT(dms_FRCP_y8,4)+1)&"-"&TEXT(VALUE(RIGHT(dms_FRCP_y8,2)+1),"00"),VALUE(LEFT(dms_FRCP_y8,4)+1)) -> 2025 | G96: dms_FRCP_y9 | H96: =IF(dms_RPT="financial",VALUE(LEFT(dms_CRCP_yS,4)-1)&"-"&TEXT(VALUE(MID(dms_CRCP_yS,3,2)),"00"),VALUE(LEFT(dms_CRCP_yS,4)-1)) -> 2008 | I96: dms_CRCP_yR | J96: 9 | M96: =VALUE(LEFT(dms_CRYf_y8,4)+1)&"-"&TEXT(MID(dms_CRYf_y8,3,2)+2,"00") -> 2024-25 | N96: dms_CRYf_y9 | O96: =VALUE(LEFT(dms_CRYc_y8,4)+1) -> 2025 | P96: dms_CRYc_y9
B97: 10 | C97: dms_FRCP_y10 | D97: 10 | E97: CRCP_y10 | F97: =IF(dms_RPT="financial",VALUE(LEFT(dms_FRCP_y9,4)+1)&"-"&TEXT(VALUE(RIGHT(dms_FRCP_y9,2)+1),"00"),VALUE(LEFT(dms_FRCP_y9,4)+1)) -> 2026 | G97: dms_FRCP_y10 | H97: =IF(dms_RPT="financial",VALUE(LEFT(dms_CRCP_yR,4)-1)&"-"&TEXT(VALUE(MID(dms_CRCP_yR,3,2)),"00"),VALUE(LEFT(dms_CRCP_yR,4)-1)) -> 2007 | I97: dms_CRCP_yQ | J97: 10 | M97: =VALUE(LEFT(dms_CRYf_y9,4)+1)&"-"&TEXT(MID(dms_CRYf_y9,3,2)+2,"00") -> 2025-26 | N97: dms_CRYf_y10 | O97: =VALUE(LEFT(dms_CRYc_y9,4)+1) -> 2026 | P97: dms_CRYc_y10
B98: 11 | C98: dms_FRCP_y11 | D98: 11 | E98: CRCP_y11 | F98: =IF(dms_RPT="financial",VALUE(LEFT(dms_FRCP_y10,4)+1)&"-"&TEXT(VALUE(RIGHT(dms_FRCP_y10,2)+1),"00"),VALUE(LEFT(dms_FRCP_y10,4)+1)) -> 2027 | G98: dms_FRCP_y11 | H98: =IF(dms_RPT="financial",VALUE(LEFT(dms_CRCP_yQ,4)-1)&"-"&TEXT(VALUE(MID(dms_CRCP_yQ,3,2)),"00"),VALUE(LEFT(dms_CRCP_yQ,4)-1)) -> 2006 | I98: dms_CRCP_yP | J98: 11 | M98: =VALUE(LEFT(dms_CRYf_y10,4)+1)&"-"&TEXT(MID(dms_CRYf_y10,3,2)+2,"00") -> 2026-27 | N98: dms_CRYf_y11 | O98: =VALUE(LEFT(dms_CRYc_y10,4)+1) -> 2027 | P98: dms_CRYc_y11
B99: 12 | C99: dms_FRCP_y12 | D99: 12 | E99: CRCP_y12 | F99: =IF(dms_RPT="financial",VALUE(LEFT(dms_FRCP_y11,4)+1)&"-"&TEXT(VALUE(RIGHT(dms_FRCP_y11,2)+1),"00"),VALUE(LEFT(dms_FRCP_y11,4)+1)) -> 2028 | G99: dms_FRCP_y12 | H99: =IF(dms_RPT="financial",VALUE(LEFT(dms_CRCP_yP,4)-1)&"-"&TEXT(VALUE(MID(dms_CRCP_yP,3,2)),"00"),VALUE(LEFT(dms_CRCP_yP,4)-1)) -> 2005 | I99: dms_CRCP_yO | J99: 12 | M99: =VALUE(LEFT(dms_CRYf_y11,4)+1)&"-"&TEXT(MID(dms_CRYf_y11,3,2)+2,"00") -> 2027-28 | N99: dms_CRYf_y12 | O99: =VALUE(LEFT(dms_CRYc_y11,4)+1) -> 2028 | P99: dms_CRYc_y12
B100: 13 | C100: dms_FRCP_y13 | D100: 13 | E100: CRCP_y13 | F100: =IF(dms_RPT="financial",VALUE(LEFT(dms_FRCP_y12,4)+1)&"-"&TEXT(VALUE(RIGHT(dms_FRCP_y12,2)+1),"00"),VALUE(LEFT(dms_FRCP_y12,4)+1)) -> 2029 | G100: dms_FRCP_y13 | H100: =IF(dms_RPT="financial",VALUE(LEFT(dms_CRCP_yO,4)-1)&"-"&TEXT(VALUE(MID(dms_CRCP_yO,3,2)),"00"),VALUE(LEFT(dms_CRCP_yO,4)-1)) -> 2004 | I100: dms_CRCP_yN | J100: 13 | M100: =VALUE(LEFT(dms_CRYf_y12,4)+1)&"-"&TEXT(MID(dms_CRYf_y12,3,2)+2,"00") -> 2028-29 | N100: dms_CRYf_y13 | O100: =VALUE(LEFT(dms_CRYc_y12,4)+1) -> 2029 | P100: dms_CRYc_y13
B101: 14 | C101: dms_FRCP_y14 | D101: 14 | E101: CRCP_y14 | F101: =IF(dms_RPT="financial",VALUE(LEFT(dms_FRCP_y13,4)+1)&"-"&TEXT(VALUE(RIGHT(dms_FRCP_y13,2)+1),"00"),VALUE(LEFT(dms_FRCP_y13,4)+1)) -> 2030 | G101: dms_FRCP_y14 | H101: =IF(dms_RPT="financial",VALUE(LEFT(dms_CRCP_yN,4)-1)&"-"&TEXT(VALUE(MID(dms_CRCP_yN,3,2)),"00"),VALUE(LEFT(dms_CRCP_yN,4)-1)) -> 2003 | I101: dms_CRCP_yM | J101: 14 | M101: =VALUE(LEFT(dms_CRYf_y13,4)+1)&"-"&TEXT(MID(dms_CRYf_y13,3,2)+2,"00") -> 2029-30 | N101: dms_CRYf_y14 | O101: =VALUE(LEFT(dms_CRYc_y13,4)+1) -> 2030 | P101: dms_CRYc_y14
B102: 15 | C102: dms_FRCP_y15 | D102: 15 | E102: CRCP_y15 | F102: =IF(dms_RPT="financial",VALUE(LEFT(dms_FRCP_y14,4)+1)&"-"&TEXT(VALUE(RIGHT(dms_FRCP_y14,2)+1),"00"),VALUE(LEFT(dms_FRCP_y14,4)+1)) -> 2031 | G102: dms_FRCP_y15 | H102: =IF(dms_RPT="financial",VALUE(LEFT(dms_CRCP_yM,4)-1)&"-"&TEXT(VALUE(MID(dms_CRCP_yM,3,2)),"00"),VALUE(LEFT(dms_CRCP_yM,4)-1)) -> 2002 | I102: dms_CRCP_yL | J102: 15 | M102: =VALUE(LEFT(dms_CRYf_y14,4)+1)&"-"&TEXT(MID(dms_CRYf_y14,3,2)+2,"00") -> 2030-31 | N102: dms_CRYf_y15 | O102: =VALUE(LEFT(dms_CRYc_y14,4)+1) -> 2031 | P102: dms_CRYc_y15
M103: =VALUE(LEFT(dms_CRYf_y15,4)+1)&"-"&TEXT(MID(dms_CRYf_y15,3,2)+2,"00") -> 2031-32 | N103: dms_CRYf_y16 | O103: =VALUE(LEFT(dms_CRYc_y15,4)+1) -> 2032 | P103: dms_CRYc_y16
B104: These are drop down lists for businesses to select the correct FRCP_y1 on the business and other details worksheet. This also populates the column headings in the worksheets | M104: =VALUE(LEFT(dms_CRYf_y16,4)+1)&"-"&TEXT(MID(dms_CRYf_y16,3,2)+2,"00") -> 2032-33 | N104: dms_CRYf_y17 | O104: =VALUE(LEFT(dms_CRYc_y16,4)+1) -> 2033 | P104: dms_CRYc_y17
B105: dms_RCP_fyear_list | C105: dms_CRY_ListF | D105: dms_CRY_ListC | E105: dms_RCP_cyear_list | F105: dms_FRCP_fyear_list | G105: dms_FRCP_ListF | H105: dms_FRCP_ListC | I105: dms_FRCP_cyear_list | M105: =VALUE(LEFT(dms_CRYf_y17,4)+1)&"-"&TEXT(MID(dms_CRYf_y17,3,2)+2,"00") -> 2033-34 | N105: dms_CRYf_y18 | O105: =VALUE(LEFT(dms_CRYc_y17,4)+1) -> 2034 | P105: dms_CRYc_y18
B106: dms_fy1 | C106: 2006-07 | D106: 2007 | E106: dms_cy1 | F106: dms_frcp_fy1 | G106: 2016-17 | H106: 2017 | I106: dms_crcp_cy1 | M106: =VALUE(LEFT(dms_CRYf_y18,4)+1)&"-"&TEXT(MID(dms_CRYf_y18,3,2)+2,"00") -> 2034-35 | N106: dms_CRYf_y19 | O106: =VALUE(LEFT(dms_CRYc_y18,4)+1) -> 2035 | P106: dms_CRYc_y19
B107: dms_fy2 | C107: 2007-08 | D107: 2008 | E107: dms_cy2 | F107: dms_frcp_fy2 | G107: 2017-18 | H107: 2018 | I107: dms_crcp_cy2 | M107: =VALUE(LEFT(dms_CRYf_y19,4)+1)&"-"&TEXT(MID(dms_CRYf_y19,3,2)+2,"00") -> 2035-36 | N107: dms_CRYf_y20 | O107: =VALUE(LEFT(dms_CRYc_y19,4)+1) -> 2036 | P107: dms_CRYc_y20
B108: dms_fy3 | C108: 2008-09 | D108: 2009 | E108: dms_cy3 | F108: dms_frcp_fy3 | G108: 2018-19 | H108: 2019 | I108: dms_crcp_cy3
B109: dms_fy4 | C109: 2009-10 | D109: 2010 | E109: dms_cy4 | F109: dms_frcp_fy4 | G109: 2019-20 | H109: 2020 | I109: dms_crcp_cy4
B110: dms_fy5 | C110: 2010-11 | D110: 2011 | E110: dms_cy5 | F110: dms_frcp_fy5 | G110: 2020-21 | H110: 2021 | I110: dms_crcp_cy5
B111: dms_fy6 | C111: 2011-12 | D111: 2012 | E111: dms_cy6 | F111: dms_frcp_fy6 | G111: 2021-22 | H111: 2022 | I111: dms_crcp_cy6
B112: dms_fy7 | C112: 2012-13 | D112: 2013 | E112: dms_cy7 | F112: dms_frcp_fy7 | G112: 2022-23 | H112: 2023 | I112: dms_crcp_cy7
B113: dms_fy8 | C113: 2013-14 | D113: 2014 | E113: dms_cy8 | F113: dms_frcp_fy8 | G113: 2023-24 | H113: 2024 | I113: dms_crcp_cy8
B114: dms_fy9 | C114: 2014-15 | D114: 2015 | E114: dms_cy9 | F114: dms_frcp_fy9 | G114: 2024-25 | H114: 2025 | I114: dms_crcp_cy9
B115: dms_fy10 | C115: 2015-16 | D115: 2016 | E115: dms_cy10 | F115: dms_frcp_fy10 | G115: 2025-26 | H115: 2026 | I115: dms_crcp_cy10
B116: dms_fy11 | C116: 2016-17 | D116: 2017 | E116: dms_cy11 | F116: dms_frcp_fy11 | G116: 2026-27 | H116: 2027 | I116: dms_crcp_cy11
B117: dms_fy12 | C117: 2017-18 | D117: 2018 | E117: dms_cy12 | F117: dms_frcp_fy12 | G117: 2027-28 | H117: 2028 | I117: dms_crcp_cy12
B118: dms_fy13 | C118: 2018-19 | D118: 2019 | E118: dms_cy13 | F118: dms_frcp_fy13 | G118: 2028-29 | H118: 2029 | I118: dms_crcp_cy13
B119: dms_fy14 | C119: 2019-20 | D119: 2020 | E119: dms_cy14 | F119: dms_frcp_fy14 | G119: 2029-30 | H119: 2030 | I119: dms_crcp_cy14
B120: dms_fy15 | C120: 2019-20 | D120: 2020 | E120: dms_cy15 | F120: dms_frcp_fy15 | G120: 2030-31 | H120: 2031 | I120: dms_crcp_cy15
B121: dms_fy16 | C121: 2020-21 | D121: 2021 | E121: dms_cy16
B122: dms_fy17 | C122: 2021-22 | D122: 2022 | E122: dms_cy17
B123: dms_fy18 | C123: 2022-23 | D123: 2023 | E123: dms_cy18
B124: dms_fy19 | C124: 2023-24 | D124: 2024 | E124: dms_cy19
B125: dms_fy20 | C125: 2024-25 | D125: 2025 | E125: dms_cy20

Sheet Instructions
B2: =CONCATENATE(dms_Segment," Network Service Provider") -> Distribution Network Service Provider
B3: =IF(dms_Model="Reset","Regulatory Proposal RIN Template","Annual Reporting RIN") -> Annual Reporting RIN
C4: =CONCATENATE("This template is to be used by ",dms_TradingName," to fulfil its reporting obligations to the AER.") -> This template is to be used by AusNet (D) to fulfil its reporting obligations to the AER.
C5: INSTRUCTIONS
C6: Complete the Business & other details worksheet before entering data or values in any other worksheets. The Business & other details worksheet is linked to other worksheets within the workbook and automatically generates certain column headings and conditional formatting.
C8: Identifying CONFIDENTIAL INFORMATION: Please use the macro at the top of each worksheet to identify confidential information.
C9: -Do this by selecting the cell or cells that contain confidential information and then run the Mark selected cells as CONFIDENTIAL macro. This will format the cells a specific colour that is identified by the AER's database which in turn marks that information as confidential. -To reverse this, select the cell or cells and run the Return cells to NON-CONFIDENTIAL macro.
C11: UNITS OF MEASURE All amounts are to be unrounded and reported on a one for one basis: that is 1000 is to be entered as '1000'. Applicable units of measure may be identified in the table column headings or row descriptors.
C13: COLOUR CODING OF INPUT / NON-INPUT CELLS:
D14: Yellow = Input cell (mandatory)
D15: Darker yellow = input cell (mandatory)
D16: Orange = input cell (if data available)
D17: Grey = Not applicable/No inputs required
D18: PLEASE DO NOT ENTER TEXT into cells that are to contain numeric data.
C21: WORKSHEET NAVIGATION Many tables in the worksheets have been "grouped" to allow for easy navigation. To ungroup or group data use the outline symbols in the left margin (for Row groupings) or above the columns (for column groupings).
C23: RETURNING COMPLETED RESPONSES Please return two (2) files to the AER: 1. A confidential version which must contain a complete set of all responses with confidential information marked using the Mark selection CONFIDENTIAL macro and which has been completed using the locked template file provided by the AER. 2. A public version with confidential information either removed completely or aggregated in some form together with writtten consent to disclose the public version of the response. Use the drop down box on the Business and other details worksheet to identify the file as either confidential ('consolidated') or public.
C25: SUBMITTING AMENDED DATA TO THE AER If an NSP wishes to correct data previously submitted to the AER it should resubmit that data using the original completed submission as the starting point. Please make any necessary changes to the data. Data that is not being amended should be left unchanged. NSPs must identify the reason for the amendments in the Amendment Reason box on the Business and other details worksheet. NSPs may provide further details regarding any amendments in the Amendments worksheet. .
C26: NSP may use Amended Data macro to highlight cells that contain amended data. NB: if data is also CONFIDENTIAL, re-apply the Confidentiality macro after applying the Amended macro
C27: Please resubmit two (2) files - a confidential version and a public version of the amended submission to the AER

Sheet Contents
B3: =CONCATENATE(dms_Segment," Network Service Provider") -> Distribution Network Service Provider
B4: Annual Reporting RIN Template
B5: Table of Contents
C8: Instructions
C9: Business & other details
B12: CATEGORY ANALYSIS | C12: STPIS | D12: STATUTORY ACCOUNTS
B14: 2.11 Labour | C14: 6.2 STPIS Reliability | D14: 8.1 Income
C15: 6.6 STPIS Customer Service | D15: 8.2 Capex
C16: 6.7 STPIS Daily Performance
C17: 6.8 STPIS Exclusions | D17: 8.4 Opex
C18: 6.9 STPIS GSL
B22: NETWORK PERFORMANCE | C22: OTHER INFORMATION | D22: PRICING PROPOSAL
D23: Victorian Businesses Only
B24: 3.6 Quality of services | C24: 7.8 Avoided Cost Payments
B25: 3.6.8 Network-feeders | C25: 7.10 Juris Scheme | D25: 9.5 TUoS
B26: 3.6.9 Network-reliability | C26: 7.11 DMIS-DMIA
C27: 7.12 Safety and Bushfire
C28: 7.13 TARC
B29: PUBLIC LIGHTING
B31: 4.1 Public lighting tariffs

Sheet Business & other details
B1: =IF(dms_DataQuality="backcast",INDEX(dms_Worksheet_List,MATCH(dms_Model,dms_Model_List))&" BACKCAST",INDEX(dms_Worksheet_List,MATCH(dms_Model,dms_Model_List))) -> ANNUAL REPORTING STATEMENT
B2: =INDEX(dms_TradingNameFull_List,MATCH(dms_TradingName,dms_TradingName_List)) -> AusNet Services (D)
B3: =IF(SUM(dms_SingleYear_Model)>0,CRY,CONCATENATE(FRCP_y1," to ",dms_MultiYear_FinalYear_Result)) -> 2016
B4: BUSINESS & OTHER DETAILS
B7: Instructions
B8: Complete the following business details regulatory template before entering data or values in any other regulatory template. This regulatory template is linked to other cells within the spreadsheet and automatically generates column headings and conditional formatting to distinguish business specific input and non-input cells.
B10: SUBMISSION PARTICULARS INPUT SHEETS
B12: ENTITY DETAILS
B14: Short name | C14: AusNet (D) | F14: Select business name from drop down list first
B15: ACN / ABN | C15: =INDEX(dms_ABN_List,MATCH(dms_TradingName,dms_TradingName_List)) -> 91064651118
B18: Business address | C18: Address 1 | E18: =INDEX(dms_Addr1_List,MATCH(dms_TradingName,dms_TradingName_List)) -> Level 32
D19: Address 2 | E19: =IF(ISBLANK(INDEX(dms_Addr2_List,MATCH(dms_TradingName,dms_TradingName_List))),"",INDEX(dms_Addr2_List,MATCH(dms_TradingName,dms_TradingName_List))) -> 2 Southbank Boulevard
C20: Suburb | E20: =INDEX(dms_Suburb_List,MATCH(dms_TradingName,dms_TradingName_List)) -> SOUTHBANK
D21: State | E21: =INDEX(dms_State_List,MATCH(dms_TradingName,dms_TradingName_List)) -> Vic | F21: p/code | G21: =INDEX(dms_PostCode_List,MATCH(dms_TradingName,dms_TradingName_List)) -> 3006
B23: Postal address | C23: Address 1 | E23: =INDEX(dms_PAddr1_List,MATCH(dms_TradingName,dms_TradingName_List)) -> Locked Bag 14051
D24: Address 2 | E24: =IF(ISBLANK(INDEX(dms_PAddr2_List,MATCH(dms_TradingName,dms_TradingName_List))),"",INDEX(dms_PAddr2_List,MATCH(dms_TradingName,dms_TradingName_List))) -> 
C25: Suburb | E25: =INDEX(dms_PSuburb_List,MATCH(dms_TradingName,dms_TradingName_List)) -> MELBOURNE CITY MAIL CENTRE
D26: State | E26: =INDEX(dms_PState_List,MATCH(dms_TradingName,dms_TradingName_List)) -> VIC | F26: p/code | G26: =INDEX(dms_PPostCode_List,MATCH(dms_TradingName,dms_TradingName_List)) -> 8001
B29: Contact name/s | C29: Clare Thompson
B30: Contact phone/s
B31: Contact email address/s
B33: REGULATORY CONTROL PERIODS
B35: Forthcoming regulatory control period | C35: 2017-18 | D35: =dms_FRCP_y2 -> 2018 | E35: =dms_FRCP_y3 -> 2019 | F35: =dms_FRCP_y4 -> 2020 | G35: =dms_FRCP_y5 -> 2021 | H35: =dms_FRCP_y6 -> 2022 | I35: =dms_FRCP_y7 -> 2023 | J35: =dms_FRCP_y8 -> 2024 | K35: =dms_FRCP_y9 -> 2025 | L35: =dms_FRCP_y10 -> 2026
B38: Current regulatory control period | C38: =dms_CRCP_FirstYear_Result -> 2012 | D38: =IF(dms_RPT="financial",VALUE(LEFT(CRCP_y1,4)+1)&"-"&TEXT(MID(CRCP_y1,3,2)+2,"00"),VALUE(LEFT(CRCP_y1,4)+1)) -> 2013 | E38: =IF(dms_RPT="financial",VALUE(LEFT(CRCP_y2,4)+1)&"-"&TEXT(VALUE(MID(CRCP_y2,3,2)+2),"00"),VALUE(LEFT(CRCP_y2,4)+1)) -> 2014 | F38: =IF(dms_RPT="financial",VALUE(LEFT(CRCP_y3,4)+1)&"-"&TEXT(VALUE(MID(CRCP_y3,3,2)+2),"00"),VALUE(LEFT(CRCP_y3,4)+1)) -> 2015 | G38: =IF(dms_RPT="financial",VALUE(LEFT(CRCP_y4,4)+1)&"-"&TEXT(VALUE(MID(CRCP_y4,3,2)+2),"00"),VALUE(LEFT(CRCP_y4,4)+1)) -> 2016 | H38: =IF(dms_RPT="financial",VALUE(LEFT(CRCP_y5,4)+1)&"-"&TEXT(VALUE(MID(CRCP_y5,3,2)+2),"00"),VALUE(LEFT(CRCP_y5,4)+1)) -> 2017 | I38: =IF(dms_RPT="financial",VALUE(LEFT(CRCP_y6,4)+1)&"-"&TEXT(VALUE(MID(CRCP_y6,3,2)+2),"00"),VALUE(LEFT(CRCP_y6,4)+1)) -> 2018 | J38: =IF(dms_RPT="financial",VALUE(LEFT(CRCP_y7,4)+1)&"-"&TEXT(VALUE(MID(CRCP_y7,3,2)+2),"00"),VALUE(LEFT(CRCP_y7,4)+1)) -> 2019 | K38: =IF(dms_RPT="financial",VALUE(LEFT(CRCP_y8,4)+1)&"-"&TEXT(VALUE(MID(CRCP_y8,3,2)+2),"00"),VALUE(LEFT(CRCP_y8,4)+1)) -> 2020 | L38: =IF(dms_RPT="financial",VALUE(LEFT(CRCP_y9,4)+1)&"-"&TEXT(VALUE(MID(CRCP_y9,3,2)+2),"00"),VALUE(LEFT(CRCP_y9,4)+1)) -> 2021
B41: Previous regulatory control period | C41: =IF(dms_RPT="financial",VALUE(LEFT(PRCP_y2,4)-1)&"-"&TEXT(VALUE(MID(PRCP_y2,3,2)),"00"),VALUE(LEFT(PRCP_y2,4)-1)) -> 2007 | D41: =IF(dms_RPT="financial",VALUE(LEFT(PRCP_y3,4)-1)&"-"&TEXT(VALUE(MID(PRCP_y3,3,2)),"00"),VALUE(LEFT(PRCP_y3,4)-1)) -> 2008 | E41: =IF(dms_RPT="financial",VALUE(LEFT(PRCP_y4,4)-1)&"-"&TEXT(VALUE(MID(PRCP_y4,3,2)),"00"),VALUE(LEFT(PRCP_y4,4)-1)) -> 2009 | F41: =IF(dms_RPT="financial",VALUE(LEFT(PRCP_y5,4)-1)&"-"&TEXT(VALUE(RIGHT(PRCP_y5,2)-1),"00"),VALUE(LEFT(PRCP_y5,4)-1)) -> 2010 | G41: =IF(dms_RPT="financial",VALUE(LEFT(CRCP_y1,4)-1)&"-"&TEXT(VALUE(RIGHT(CRCP_y1,2)-1),"00"),VALUE(LEFT(CRCP_y1,4)-1)) -> 2011
B44: Commencing regulatory year | C44: 2016 | D44: CRY
B46: Last completed regulatory year | C46: 2021-22 | D46: dms_FinalYear
B52: Source | C52: Reporting | E52: Please select the correct submission type from the dropdown list.
B53: Data quality (actual, estimate, public, consolidated) | C53: Consolidated
B54: Amended RIN submission - amendment reason | C54: Amended Template 8.2 Capex 'Movements in provisions allocated to as-incurred capex' by $17K
B55: Submission Date | C55: 2019-02-18 | D55: dms_SubmissionDate | E55: Please enter date this file submitted to AER (dd/mm/yyyy)
B56: EBSS - First application of scheme in forthcoming period? | C56: No
B57: Sector | C57: =INDEX(dms_Sector_List,MATCH(dms_TradingName,dms_TradingName_List)) -> Electricity | D57: dms_Sector | E57: =INDEX(dms_Sector_List,MATCH(dms_TradingName,dms_TradingName_List))
B58: Segment | C58: =INDEX(dms_Segment_List,MATCH(dms_TradingName,dms_TradingName_List)) -> Distribution | D58: dms_Segment | E58: =INDEX(dms_Segment_List,MATCH(dms_TradingName,dms_TradingName_List))
B59: Regulatory Year Ending | C59: =IF(dms_MultiYear_Flag=1,LEFT(dms_Specified_FinalYear,2)&RIGHT(dms_Specified_FinalYear,2),INDEX(dms_RYE_Formula_Result,MATCH(dms_Model,dms_Model_List))) -> 2016 | D59: dms_RYE | E59: =IF(dms_MultiYear_Flag=1,LEFT(dms_Specified_FinalYear,2)&RIGHT(dms_Specified_FinalYear,2),INDEX(dms_RYE_Formula_Result,MATCH(dms_Model,dms_Model_List)))
B60: Reporting Period Type | C60: =INDEX(dms_RPT_List,MATCH(dms_TradingName,dms_TradingName_List)) -> Calendar | D60: dms_RPT | E60: =INDEX(dms_RPT_List,MATCH(dms_TradingName,dms_TradingName_List))
B61: Model or RIN Type | C61: ARR | D61: dms_Model | E61: Drop down selection
B62: Security Classification | C62: Public | D62: dms_Classification | E62: Always Public
B63: Template - version no. | C63: 5 | D63: dms_TemplateNumber
B64: Dollar $ real month | C64: =INDEX(dms_RPTMonth_List,MATCH(dms_TradingName,dms_TradingName_List)) -> December | D64: dms_RPTMonth | E64: =INDEX(dms_RPTMonth_List,MATCH(dms_TradingName,dms_TradingName_List))
B65: Dollar $ real (the last month before the FRCP_y1) | C65: =CONCATENATE(dms_RPTMonth)&" "&VALUE((LEFT(dms_CRCP_FinalYear_Result,2)&RIGHT(dms_CRCP_FinalYear_Result,2))) -> December 2016 | D65: dms_DollarReal | E65: =IF(SUM(dms_SingleYear_Model)>0,CONCATENATE(dms_RPTMonth)&" "&VALUE((LEFT(CRY,2))&RIGHT(CRY,2)),CONCATENATE(dms_RPTMonth)&" "&VALUE((LEFT(dms_CRCP_FinalYear_Result,2)&RIGHT(dms_CRCP_FinalYear_Result,2))))
B66: Form of control | C66: =INDEX(dms_FormControl_List,MATCH(dms_TradingName,dms_TradingName_List)) -> Revenue cap | D66: dms_FormControl | E66: =INDEX(dms_FormControl_List,MATCH(dms_TradingName,dms_TradingName_List))
B67: RIN response - version no. | C67: 1 | D67: dms_RINversion
B68: Jurisdiction | C68: =INDEX(dms_JurisdictionList,MATCH(dms_TradingName,dms_TradingName_List)) -> Vic | D68: dms_Jurisdiction | E68: =INDEX(dms_JurisdictionList,MATCH(dms_TradingName,dms_TradingName_List))
B69: Backcast Multiyear EB, CA or ARR? | C69: 0 | D69: dms_MultiYear_Flag | E69: 1=y, 0-n
C70: 2013 | D70: dms_Specified_FinalYear | E70: The result here is returned to dms_CRCP_FinalYear_Result if dms_MultiYear_Flag is set to 1
B71: Single Year Model T/F | C71: =IF(dms_Model="EB",1,0) -> 0 | D71: dms_EB
C72: =IF(dms_Model="CA",1,0) -> 0 | D72: dms_CA | E72: =dms_SingleYear_Model
C73: =IF(dms_Model="ARR",1,0) -> 1 | D73: dms_ARR
B74: Single Year Final Year Reference | C74: CRY | D74: dms_SingleYear_FinalYear_Ref | E74: This is the reference for EB, CA & ARR RINs
B75: Single Year Final Year Result | C75: =INDIRECT(dms_SingleYear_FinalYear_Ref) -> 2016 | D75: dms_SingleYear_FinalYear_Result | E75: =INDIRECT(dms_SingleYear_FinalYear_Ref) | I75: Formula errors OK
B76: FRCP length in years | C76: =INDEX(dms_FRCPlength_List,MATCH(dms_TradingName,dms_TradingName_List)) -> 5 | D76: dms_FRCPlength_Num | E76: =INDEX(dms_FRCPlength_List,MATCH(dms_TradingName,dms_TradingName_List))
B77: Multi Year Final Year Reference | C77: =INDEX(dms_FinalYear_List,MATCH(dms_FRCPlength_Num,dms_FRCPlength_Num_List)) -> dms_FRCP_y5 | D77: dms_MultiYear_FinalYear_Ref | E77: =INDEX(dms_FinalYear_List,MATCH(dms_FRCPlength_Num,dms_FRCPlength_Num_List))
B78: Multi Year Final Year Result | C78: =IF(dms_MultiYear_Flag=0,INDIRECT(dms_MultiYear_FinalYear_Ref),dms_Specified_FinalYear) -> 2021 | D78: dms_MultiYear_FinalYear_Result | E78: =IF(dms_MultiYear_Flag=0,INDIRECT(dms_MultiYear_FinalYear_Ref),dms_Specified_FinalYear) | I78: Formula errors OK
B79: CRCP length in years | C79: =INDEX(dms_CRCPlength_List,MATCH(dms_TradingName,dms_TradingName_List)) -> 5 | D79: dms_CRCPlength_Num | E79: =INDEX(dms_CRCPlength_List,MATCH(dms_TradingName,dms_TradingName_List))
B80: CRCP Final Year Reference | C80: =INDEX(dms_CFinalYear_List,MATCH(dms_CRCPlength_Num,dms_CRCPlength_Num_List)) -> CRCP_y5 | D80: dms_CRCP_FinalYear_Ref | E80: =INDEX(dms_CFinalYear_List,MATCH(dms_CRCPlength_Num,dms_CRCPlength_Num_List))
B81: CRCP First Year Result | C81: =INDEX(dms_CRCP_years,MATCH(dms_CRCPlength_Num,dms_CRCP_index)) -> 2012 | D81: dms_CRCP_FirstYear_Result | E81: =INDEX(dms_CRCP_years,MATCH(dms_CRCPlength_Num,dms_CRCP_index))
B82: CRCP Final Year Result | C82: =IF(dms_MultiYear_Flag=0,(IF(SUM(dms_SingleYear_Model)>0,CRY,dms_CRCP_yZ)),dms_Specified_FinalYear) -> 2016 | D82: dms_CRCP_FinalYear_Result | E82: =IF(dms_MultiYear_Flag=0,(IF(SUM(dms_SingleYear_Model)>0,CRY,dms_CRCP_yZ)),dms_Specified_FinalYear)
B83: Table 6.6.3 - Public lighting repair - no. business days | C83: =INDEX(dms_663_List,MATCH(dms_TradingName,dms_TradingName_List)) -> 2 | D83: dms_663
B84: Distribution Determination Reference | C84: =INDEX(dms_DeterminationRef_List,MATCH(dms_TradingName,dms_TradingName_List)) -> 2016-20 Distribution Determination | D84: dms_DeterminationRef
B85: Backcast templates only - unit of measure | C85: $0s | D85: dms_Backcast_UOM | E85: If the cover sheet is for Backcast data ensure to apply dms_Backcast_UOM named range to this field. Otherwise, do not apply this named range.
B86: EB/CA Unit of Measure for Monetary Values | C86: $0s | D86: dms_dollar_nom_UOM | E86: If the cover sheet is attached to an EB files make sure this field is set
B88: discard this record? | C88: NO | D88: dms_DISCARD | E88: If record is to be discarded from DB set this flag to YES
B90: USES NAMED RANGES FLAG | C90: yes | D90: dms_Defined_Names_Used

Sheet 2.11 Labour
B1: =(LOOKUP(dms_Model,dms_Model_List,dms_Worksheet_List)) -> ANNUAL REPORTING STATEMENT
B2: =dms_TradingName -> AusNet (D)
B3: =CONCATENATE("Annual Reporting RIN Response ",CRY) -> Annual Reporting RIN Response 2016
B4: 2.11 LABOUR
B6: Tables 2.11.1 and 2.11.2 deliberately omitted.
B8: 2.11.3 - LABOUR / NON-LABOUR EXPENDITURE SPLIT
B9: 2.11.3.1 - Opex
C10: =CRY -> 2016
C11: $0's, nominal
C12: Opex
B13: In-house labour expenditure
B14: Labour expenditure outsourced to related parties
B15: Labour expenditure outsourced to unrelated parties
B16: Controllable non-labour expenditure
B17: Uncontrollable non-labour expenditure
B18: Total | C18: =SUM(C13:C17) -> 0
B20: Reconciliation with Opex worksheets - SCS | C20: Opex
B21: Total including margins | C21: =dms_Total_Actual_Opex -> 240511476 | D21: =IF(C18=dms_Total_Actual_Opex,"OK","Error") -> Error
B24: 2.11.3.2 - Capex
C25: =CRY -> 2016
C26: $0's, nominal
C27: Capex
B28: In-house labour expenditure
B29: Labour expenditure outsourced to related parties
B30: Labour expenditure outsourced to unrelated parties
B31: Controllable non-labour expenditure
B32: Uncontrollable non-labour expenditure
B33: Total | C33: =SUM(C28:C32) -> 0
B35: Reconciliation with Capex & Opex worksheets - SCS | C35: Capex
B36: Total including margins | C36: =dms_Total_Actual_Capex -> 286712960.7 | D36: =IF(C33=dms_Total_Actual_Capex,"OK","Error") -> Error

Sheet 3.6 Quality of services
B1: =(LOOKUP(dms_Model,dms_Model_List,dms_Worksheet_List)) -> ANNUAL REPORTING STATEMENT
B2: =dms_TradingName -> AusNet (D)
B3: =CONCATENATE("Annual Reporting RIN Response ",CRY) -> Annual Reporting RIN Response 2016
B4: 3.6 QUALITY OF SERVICES
B6: 3.6.5 - QUALITY OF SUPPLY METRICS
D7: Volume
C8: Units | D8: =CRY -> 2016
B9: Over voltage events - due to high voltage injection | C9: number
B10: Customers receiving over-voltage - due to high voltage injection | C10: number
B11: Over voltage events - due to lightning | C11: number
B12: Customers receiving over-voltage - due to lightning | C12: number
B13: Over voltage events - due to voltage regulation or other cause | C13: number
B14: Customers receiving over-voltage - due to voltage regulation or other cause | C14: number
B15: Voltage variations - steady state (zone sub) | C15: number | D15: 944
B16: Voltage variations - one minute (zone sub) | C16: number | D16: 491
B17: Voltage variations - 10 seconds (zone sub) Min<0.7 | C17: number | D17: 1333
B18: Voltage variations - 10 seconds (zone sub) Min<0.8 | C18: number | D18: 2195
B19: Voltage variations - 10 seconds (zone sub) Min<0.9 | C19: number | D19: 4745
B20: Voltage variations - steady state (feeder) | C20: number | D20: 3644
B21: Voltage variations - % zone subs monitored | C21: (per cent) | D21: 0.9272727273
B22: Voltage variations - % feeders monitored | C22: (per cent) | D22: 0.5454545455
B24: 3.6.6 - COMPLAINTS - TECHNICAL QUALITY OF SUPPLY
D25: Volume
C26: Units | D26: =CRY -> 2016
B27: 3.6.6.1 - TECHNICAL QUALITY OF SUPPLY
B28: Number of complaints - technical quality of supply | C28: number | D28: =[4]!dms_030606_01_Values -> 22
B29: 3.6.6.2 - PERCENTAGE OF COMPLAINTS BY CATEGORY
B30: Low voltage supply | C30: (per cent) | D30: ='[4]3.6 Quality of services'!D30 -> 10
B31: Voltage dips | C31: (per cent) | D31: ='[4]3.6 Quality of services'!D31 -> 10
B32: Voltage swell | C32: (per cent) | D32: ='[4]3.6 Quality of services'!D32 -> 25
B33: Voltage spike (impulsive transient) | C33: (per cent) | D33: ='[4]3.6 Quality of services'!D33 -> 5
B34: Waveform distortion | C34: (per cent) | D34: ='[4]3.6 Quality of services'!D34 -> 0
B35: TV or radio interference | C35: (per cent) | D35: ='[4]3.6 Quality of services'!D35 -> 0
B36: Solar related | C36: (per cent) | D36: ='[4]3.6 Quality of services'!D36 -> 10
B37: Noise from appliances | C37: (per cent) | D37: ='[4]3.6 Quality of services'!D37 -> 0
B38: Other | C38: (per cent) | D38: ='[4]3.6 Quality of services'!D38 -> 40
B39: 3.6.6.3 - PERCENTAGE OF COMPLAINTS BY LIKELY CAUSE
B40: Network equipment faulty | C40: (per cent) | D40: ='[4]3.6 Quality of services'!D40 -> 20
B41: Network interference by NSP equipment | C41: (per cent) | D41: ='[4]3.6 Quality of services'!D41 -> 10
B42: Network interference by another customer | C42: (per cent) | D42: ='[4]3.6 Quality of services'!D42 -> 10
B43: Network limitation | C43: (per cent) | D43: ='[4]3.6 Quality of services'!D43 -> 20
B44: Customer internal problem | C44: (per cent) | D44: ='[4]3.6 Quality of services'!D44 -> 15
B45: No problem identified | C45: (per cent) | D45: ='[4]3.6 Quality of services'!D45 -> 15
B46: Environmental | C46: (per cent) | D46: ='[4]3.6 Quality of services'!D46 -> 0
B47: Other | C47: (per cent) | D47: ='[4]3.6 Quality of services'!D47 -> 10
B51: 3.6.7 - CUSTOMER SERVICE METRICS
D52: Volume
C53: Unit | D53: =CRY -> 2016
B54: 3.6.7.1 - TIMELY PROVISIONS OF SERVICES
B55: Number of connections made | C55: number | D55: ='[5]3.6 Quality of services'!$D$55 -> 16294
B56: Number of connections not made on or before agreed date | C56: number | D56: ='[5]3.6 Quality of services'!$D$56 -> 396
B57: 3.6.7.2 - TIMELY REPAIR OF FAULTY STREET LIGHTS
B58: Street lights - average monthly number "out" | C58: number | D58: ='6.9 STPIS - GSL'!D55 -> 7255
B59: Street lights - not repaired by "fix by" date | C59: number | D59: ='6.9 STPIS - GSL'!D56 -> 0
B60: Street lights - average number of days to repair | C60: number | D60: ='6.9 STPIS - GSL'!D58 -> 2.439210253
B61: Total number of street lights | C61: number | D61: 146753
B62: 3.6.7.3 - CALL CENTRE PERFORMANCE
B63: Calls to call centre fault line | C63: number | D63: ='[6]3.6 Quality of services'!$D$60 -> 111546
B64: Calls to fault line answered within 30 seconds | C64: number | D64: ='[6]3.6 Quality of services'!$D$61 -> 79131
B65: Calls to fault line - average waiting time before call answered | C65: number | D65: ='[6]3.6 Quality of services'!$D$62 -> 67.76
B66: Call centre - number of overload events | C66: number | D66: ='[6]3.6 Quality of services'!$D$63 -> 137
B67: Percentage of calls abandoned | C67: (per cent) | D67: ='[6]3.6 Quality of services'!$D$64 -> 5.95
B68: 3.6.7.4 - NUMBER OF CUSTOMER COMPLAINTS
B69: Complaint - reliability of supply | C69: number | D69: ='[4]3.6 Quality of services'!D66 -> 221
B70: Complaint - technical quality of supply | C70: number | D70: =IF(ISBLANK(D28),"",D28) -> 22
B71: Complaint - administrative process or customer service | C71: number | D71: ='[4]3.6 Quality of services'!D68 -> 272
B72: Complaint - connection or augmentation | C72: number | D72: ='[4]3.6 Quality of services'!$D$69 -> 163
B73: Complaint - other | C73: number | D73: ='[4]3.6 Quality of services'!$D$70 -> 297
B74: Total number of complaints | C74: number | D74: ='[4]3.6 Quality of services'!$D$71 -> 978

Sheet 3.6.8 Network-feeders
B1: =(LOOKUP(dms_Model,dms_Model_List,dms_Worksheet_List)) -> ANNUAL REPORTING STATEMENT
B2: =dms_TradingName -> AusNet (D)
B3: =CONCATENATE("Annual Reporting RIN Response ",CRY) -> Annual Reporting RIN Response 2016
B4: 3.6 QUALITY OF SERVICES
B6: Did the MAIFI parameter of the STPIS apply during the period? | F6: Yes | G6: ** IMPORTANT Please ensure this question is answered correctly. Your response will affect other tables throughout this workbook and will determine which cells are grey and which are input cells.
B10: 3.6.8 - NETWORK FEEDER RELIABILITY
B11: Feeder ID / name | C11: Description of the service area for the feeder | D11: Feeder classification (drop down) | E11: Number of distribution customers | F11: Length of high voltage distribution lines | H11: Maximum demand (MVA) | I11: Energy not supplied (MWh) | K11: Unplanned Outages | P11: Planned Outages | U11: Momentary feeder outages
F12: Overhead | G12: Underground | I12: Unplanned | J12: Planned | K12: Total number of unplanned outages | L12: Unplanned customer minutes off-supply (SAIDI) | N12: Unplanned interruptions (SAIFI) | P12: Total number of planned outages | Q12: Planned customer minutes off-supply (SAIDI) | S12: Planned interruptions (SAIFI) | U12: Total number of momentary feeder outages | V12: Momentary interruptions due to feeder outages (MAIFI)
L13: Including excluded events and MEDs | M13: After removing excluded events and MED | N13: Including excluded events and MEDs | O13: After removing excluded events and MED | Q13: Including MEDs | R13: After removing MED | S13: Including MEDs | T13: After removing MED | V13: Including excluded events and MEDs | W13: After removing excluded events and MED
B14: BDL2 | C14: East | D14: RURAL SHORT | E14: 4025 | F14: 32.22660183 | G14: 6.725093534 | H14: 9.183333382 | I14: 11.60901322 | J14: 4.37656674 | K14: 37 | L14: 759587.12 | M14: 759587.12 | N14: 17486 | O14: 17486 | P14: 15 | Q14: 286362.3 | R14: 286362.3 | S14: 1014 | T14: 1014 | U14: 0 | V14: 0 | W14: 0
B15: BDL4 | C15: East | D15: RURAL SHORT | E15: 4685.5 | F15: 97.89333174 | G15: 10.031401 | H15: 9.793015266 | I15: 3.408588422 | J15: 30.7597363 | K15: 51 | L15: 173404.89 | M15: 173162.89 | N15: 5256 | O15: 5254 | P15: 35 | Q15: 1564838 | R15: 1564838 | S15: 4911 | T15: 4911 | U15: 4 | V15: 18569 | W15: 18569
B16: BDL41 | C16: East | D16: RURAL LONG | E16: 4047.5 | F16: 400.6115805 | G16: 3.898486282 | H16: 9.640594795 | I16: 19.92934368 | J16: 17.84215173 | K16: 122 | L16: 1219259.55 | M16: 1218830.55 | N16: 17512 | O16: 17508 | P16: 56 | Q16: 1091567 | R16: 1091567 | S16: 3182 | T16: 3182 | U16: 1 | V16: 4031 | W16: 4031
B17: BDL43 | C17: East | D17: RURAL SHORT | E17: 2114.5 | F17: 69.56321983 | G17: 4.066287061 | H17: 11.92690186 | I17: 6.407187642 | J17: 18.97536745 | K17: 25 | L17: 160663.83 | M17: 160663.83 | N17: 6295 | O17: 6295 | P17: 24 | Q17: 475818 | R17: 475818 | S17: 1420 | T17: 1420 | U17: 3 | V17: 6451 | W17: 6451
B18: BDL44 | C18: East | D18: RURAL LONG | E18: 2327 | F18: 663.3798516 | G18: 6.173327188 | H18: 6.82081608 | I18: 7.763033778 | J18: 20.29985183 | K18: 119 | L18: 407635.29 | M18: 407365.29 | N18: 5289 | O18: 5287 | P18: 108 | Q18: 1065941 | R18: 1065941 | S18: 3816 | T18: 3816 | U18: 0 | V18: 0 | W18: 0
B19: BDL6 | C19: East | D19: RURAL SHORT | E19: 3178.5 | F19: 164.5875592 | G19: 14.01933564 | H19: 8.306915673 | I19: 10.65725049 | J19: 4.013635216 | K19: 70 | L19: 708956.11 | M19: 563859.11 | N19: 10343 | O19: 7118 | P19: 26 | Q19: 267000.5 | R19: 267000.5 | S19: 783 | T19: 783 | U19: 2 | V19: 6271 | W19: 3136
B20: BDL8 | C20: East | D20: RURAL LONG | E20: 2064 | F20: 588.4850317 | G20: 3.800268109 | H20: 3.505670835 | I20: 28.65403599 | J20: 36.75013749 | K20: 113 | L20: 2113429.58 | M20: 2105315.58 | N20: 6272 | O20: 6219 | P20: 54 | Q20: 2710572 | R20: 2710572 | S20: 6577 | T20: 6577 | U20: 1 | V20: 4082 | W20: 4082
B21: BGE11 | C21: Central | D21: RURAL SHORT | E21: 3150 | F21: 49.22749785 | G21: 15.12181825 | H21: 7.887759378 | I21: 214.5234778 | J21: 19.73398631 | K21: 172 | L21: 11480829.66 | M21: 4204425.91 | N21: 22456 | O21: 15801 | P21: 46 | Q21: 1056120 | R21: 1056120 | S21: 3595 | T21: 3595 | U21: 7 | V21: 18900 | W21: 15802
B22: BGE12 | C22: Central | D22: RURAL SHORT | E22: 2261 | F22: 100.2678736 | G22: 2.154756931 | H22: 5.334716487 | I22: 75.36212842 | J22: 25.86556225 | K22: 102 | L22: 4111294.24 | M22: 1070580.99 | N22: 8381 | O22: 4334 | P22: 67 | Q22: 1411066 | R22: 1411066 | S22: 4973 | T22: 4973 | U22: 3 | V22: 5741 | W22: 3503
B23: BGE21 | C23: Central | D23: RURAL SHORT | E23: 16 | F23: 7.790055065 | G23: 1.309141471 | H23: 0.6858921198 | I23: 0.8610843429 | J23: 0.1236672915 | K23: 4 | L23: 34731 | M23: 816 | N23: 32 | O23: 16 | P23: 2 | Q23: 4988 | R23: 4988 | S23: 18 | T23: 18 | U23: 2 | V23: 32 | W23: 16
B24: BGE22 | C24: Central | D24: RURAL SHORT | E24: 3272 | F24: 82.88392056 | G24: 20.14401529 | H24: 6.897026316 | I24: 133.0871722 | J24: 25.71707525 | K24: 178 | L24: 9886913.95 | M24: 3600290.05 | N24: 33591 | O24: 16208 | P24: 68 | Q24: 1910496 | R24: 1910496 | S24: 8726 | T24: 8726 | U24: 7 | V24: 20682 | W24: 17432
B25: BGE23 | C25: Central | D25: URBAN | E25: 1853 | F25: 18.7154944 | G25: 2.022681343 | H25: 7.354287729 | I25: 101.0656406 | J25: 5.929365228 | K25: 71 | L25: 6131454.89 | M25: 1456445.89 | N25: 12830 | O25: 9919 | P25: 16 | Q25: 359723 | R25: 359723 | S25: 1730 | T25: 1730 | U25: 13 | V25: 17504 | W25: 16144
B26: BGE24 | C26: Central | D26: RURAL SHORT | E26: 1549 | F26: 29.98691988 | G26: 15.52501248 | H26: 4.686929485 | I26: 207.7265493 | J26: 31.86668061 | K26: 107 | L26: 7508796.5 | M26: 869654.5 | N26: 8324 | O26: 4233 | P26: 23 | Q26: 1151901 | R26: 1151901 | S26: 3413 | T26: 3413 | U26: 4 | V26: 5294 | W26: 5294
B27: BM8B31 | C27: East | D27: RURAL SHORT | E27: 129 | F27: 134.0865878 | G27: 6.482826746 | H27: 0.4703915203 | I27: 0.5964991068 | J27: 0.6373523197 | K27: 14 | L27: 115422 | M27: 113085 | N27: 579 | O27: 456 | P27: 6 | Q27: 120830 | R27: 120830 | S27: 416 | T27: 416 | U27: 0 | V27: 0 | W27: 0
B28: BM8B32 | C28: East | D28: RURAL SHORT | E28: 77 | F28: 45.61873505 | G28: 0 | H28: 0.5121969502 | I28: 0.4607437378 | J28: 0 | K28: 15 | L28: 45176.96 | M28: 31899 | N28: 316 | O28: 226 | P28: 0 | Q28: 0 | R28: 0 | S28: 0 | T28: 0 | U28: 0 | V28: 0 | W28: 0
B29: BM8B33 | C29: East | D29: RURAL SHORT | E29: 23.5 | F29: 14.48440456 | G29: 0 | H29: 0.6810567748 | I29: 0.04278974161 | J29: 0 | K29: 5 | L29: 6400 | M29: 6001 | N29: 69 | O29: 48 | P29: 0 | Q29: 0 | R29: 0 | S29: 0 | T29: 0 | U29: 0 | V29: 0 | W29: 0
B30: BN1 | C30: North | D30: RURAL LONG | E30: 4564 | F30: 1199.246798 | G30: 3.539905401 | H30: 11.35532509 | I30: 24.79036256 | J30: 6.883404492 | K30: 196 | L30: 1747914.98 | M30: 1632507.98 | N30: 14756 | O30: 14205 | P30: 81 | Q30: 485334 | R30: 485334 | S30: 1648 | T30: 1648 | U30: 5 | V30: 22522 | W30: 22522
B31: BN2 | C31: North | D31: RURAL LONG | E31: 1080.5 | F31: 382.4887612 | G31: 1.662657397 | H31: 10.66943297 | I31: 5.247701716 | J31: 44.53822942 | K31: 26 | L31: 59465.87 | M31: 59323.87 | N31: 515 | O31: 512 | P31: 53 | Q31: 504698 | R31: 504698 | S31: 1691 | T31: 1691 | U31: 1 | V31: 1051 | W31: 1051
B32: BN3 | C32: North | D32: RURAL SHORT | E32: 654.5 | F32: 150.4357194 | G32: 1.644895113 | H32: 3.429460599 | I32: 0.5778678165 | J32: 1.831534983 | K32: 30 | L32: 17714 | M32: 12290 | N32: 72 | O32: 48 | P32: 13 | Q32: 56144 | R32: 56144 | S32: 173 | T32: 173 | U32: 3 | V32: 1947 | W32: 1947
B33: BN4 | C33: North | D33: URBAN | E33: 3341.5 | F33: 17.10442317 | G33: 2.32098924 | H33: 8.87849244 | I33: 0.946300406 | J33: 2.611638744 | K33: 32 | L33: 60101.83 | M33: 58050.53 | N33: 947 | O33: 922 | P33: 13 | Q33: 165871.5 | R33: 165871.5 | S33: 919 | T33: 919 | U33: 3 | V33: 9320 | W33: 9320
B34: BN6 | C34: North | D34: RURAL LONG | E34: 2321.5 | F34: 502.4608931 | G34: 3.127493427 | H34: 6.020608607 | I34: 6.15555545 | J34: 1.152273133 | K34: 83 | L34: 419926.26 | M34: 419415.26 | N34: 4228 | O34: 4227 | P34: 20 | Q34: 78607 | R34: 78607 | S34: 385 | T34: 385 | U34: 2 | V34: 4582 | W34: 4582
B35: BRA11 | C35: Central | D35: URBAN | E35: 2270 | F35: 9.261154765 | G35: 2.17945376 | H35: 7.773444024 | I35: 3.391347229 | J35: 0.3540820257 | K35: 17 | L35: 190329.75 | M35: 187573.59 | N35: 857 | O35: 847 | P35: 4 | Q35: 19871.85 | R35: 19871.85 | S35: 166 | T35: 166 | U35: 1 | V35: 2255 | W35: 2255
B36: BRA12 | C36: Central | D36: URBAN | E36: 217.5 | F36: 2.712983773 | G36: 1.11685706 | H36: 5.410926723 | I36: 4.251724476 | J36: 0 | K36: 6 | L36: 14588.74 | M36: 14588.74 | N36: 57 | O36: 57 | P36: 0 | Q36: 0 | R36: 0 | S36: 0 | T36: 0 | U36: 2 | V36: 423 | W36: 423
B37: BRA13 | C37: Central | D37: URBAN | E37: 1622.5 | F37: 8.096825196 | G37: 4.063441291 | H37: 5.982503489 | I37: 0.3491000988 | J37: 12.97359429 | K37: 9 | L37: 15460.5 | M37: 15460.5 | N37: 92 | O37: 92 | P37: 8 | Q37: 574558 | R37: 574558 | S37: 2136 | T37: 2136 | U37: 1 | V37: 1608 | W37: 1608
B38: BRA14 | C38: Central | D38: URBAN | E38: 3903 | F38: 15.86567733 | G38: 0.6641116563 | H38: 7.925864495 | I38: 3.653799963 | J38: 0.06276433761 | K38: 27 | L38: 454772.35 | M38: 191584.35 | N38: 3247 | O38: 715 | P38: 2 | Q38: 7812 | R38: 7812 | S38: 61 | T38: 61 | U38: 4 | V38: 12857 | W38: 11540
B39: BRA21 | C39: Central | D39: URBAN | E39: 4970 | F39: 18.10513268 | G39: 13.54988567 | H39: 14.09889357 | I39: 13.91596813 | J39: 12.56344523 | K39: 44 | L39: 782988.32 | M39: 645595.32 | N39: 10462 | O39: 7619 | P39: 27 | Q39: 706888 | R39: 706888 | S39: 2405 | T39: 2405 | U39: 3 | V39: 8577 | W39: 6505
B40: BRA22 | C40: Central | D40: URBAN | E40: 1.5 | F40: 0.003001053065 | G40: 1.05879687 | H40: 4.191562954 | I40: 33.18622735 | J40: 10.03256342 | K40: 2 | L40: 1601 | M40: 1601 | N40: 3 | O40: 3 | P40: 1 | Q40: 484 | R40: 484 | S40: 1 | T40: 1 | U40: 0 | V40: 0 | W40: 0
B41: BRA23 | C41: Central | D41: URBAN | E41: 1751.5 | F41: 7.739332057 | G41: 4.749080953 | H41: 5.830083018 | I41: 3.388348931 | J41: 10.0831104 | K41: 19 | L41: 163918.28 | M41: 163744.28 | N41: 2121 | O41: 2120 | P41: 13 | Q41: 487791 | R41: 487791 | S41: 1314 | T41: 1314 | U41: 5 | V41: 9264 | W41: 7230
B42: BRA24 | C42: Central | D42: URBAN | E42: 1779 | F42: 9.171875753 | G42: 2.182571615 | H42: 4.877455074 | I42: 2.252579696 | J42: 8.953981291 | K42: 25 | L42: 164232.12 | M42: 132714.15 | N42: 2798 | O42: 2749 | P42: 22 | Q42: 652821 | R42: 652821 | S42: 1816 | T42: 1816 | U42: 2 | V42: 3522 | W42: 3522
B43: BRA31 | C43: Central | D43: URBAN | E43: 773 | F43: 1.54834647 | G43: 4.073737592 | H43: 6.515975138 | I43: 0 | J43: 17.34680245 | K43: 0 | L43: 0 | M43: 0 | N43: 0 | O43: 0 | P43: 7 | Q43: 419191 | R43: 419191 | S43: 1537 | T43: 1537 | U43: 0 | V43: 0 | W43: 0
B44: BRA32 | C44: Central | D44: URBAN | E44: 2138.5 | F44: 8.555888667 | G44: 2.074275616 | H44: 6.287344431 | I44: 3.336024798 | J44: 3.970665213 | K44: 27 | L44: 202660.22 | M44: 202660.22 | N44: 2748 | O44: 2748 | P44: 14 | Q44: 241214 | R44: 241214 | S44: 796 | T44: 796 | U44: 2 | V44: 3755 | W44: 3755
B45: BRA33 | C45: Central | D45: URBAN | E45: 3973.5 | F45: 14.20474135 | G45: 7.589098547 | H45: 10.21217156 | I45: 7.980993706 | J45: 8.152041385 | K45: 29 | L45: 614060.53 | M45: 614060.53 | N45: 4177 | O45: 4177 | P45: 18 | Q45: 627221 | R45: 627221 | S45: 1949 | T45: 1949 | U45: 6 | V45: 23741 | W45: 23741
B46: BRA34 | C46: Central | D46: URBAN | E46: 43.5 | F46: 0.003001451669 | G46: 1.789618978 | H46: 4.191562954 | I46: 0 | J46: 0 | K46: 0 | L46: 0 | M46: 0 | N46: 0 | O46: 0 | P46: 0 | Q46: 0 | R46: 0 | S46: 0 | T46: 0 | U46: 0 | V46: 0 | W46: 0
B47: BRT11 | C47: North | D47: RURAL SHORT | E47: 1063.5 | F47: 25.27591491 | G47: 1.776252116 | H47: 3.505670835 | I47: 9.594389137 | J47: 3.354889171 | K47: 12 | L47: 550567.4 | M47: 550567.4 | N47: 3208 | O47: 3208 | P47: 18 | Q47: 192518 | R47: 192518 | S47: 778 | T47: 778 | U47: 1 | V47: 340 | W47: 340
B48: BRT21 | C48: North | D48: RURAL SHORT | E48: 1532 | F48: 43.58963307 | G48: 45.98552139 | H48: 5.487136958 | I48: 3.494237186 | J48: 2.383484083 | K48: 22 | L48: 206609.24 | M48: 206609.24 | N48: 4715 | O48: 4715 | P48: 15 | Q48: 140932 | R48: 140932 | S48: 869 | T48: 869 | U48: 0 | V48: 0 | W48: 0
B49: BRT22 | C49: North | D49: RURAL SHORT | E49: 1546.5 | F49: 93.37136853 | G49: 3.3352718 | H49: 5.677662547 | I49: 12.02070447 | J49: 2.634579612 | K49: 25 | L49: 515927.92 | M49: 422391.44 | N49: 5158 | O49: 3609 | P49: 14 | Q49: 113076 | R49: 113076 | S49: 614 | T49: 614 | U49: 1 | V49: 1526 | W49: 0
B50: BWA21 | C50: North | D50: URBAN | E50: 4 | F50: 1.459127902 | G50: 2.879592753 | H50: 2.019571242 | I50: 0.03864248195 | J50: 3.22020683 | K50: 2 | L50: 9 | M50: 9 | N50: 3 | O50: 3 | P50: 1 | Q50: 750 | R50: 750 | S50: 3 | T50: 3 | U50: 0 | V50: 0 | W50: 0
B51: BWA22 | C51: North | D51: RURAL LONG | E51: 1415.5 | F51: 230.7379372 | G51: 4.810832954 | H51: 3.962932248 | I51: 1.506440049 | J51: 5.147213728 | K51: 52 | L51: 84729.71 | M51: 84093.88 | N51: 2666 | O51: 2657 | P51: 47 | Q51: 289505 | R51: 289505 | S51: 2707 | T51: 2707 | U51: 2 | V51: 2775 | W51: 1389
B52: BWA23 | C52: North | D52: RURAL SHORT | E52: 426.5 | F52: 174.1139538 | G52: 1.738731157 | H52: 7.239972376 | I52: 33.06003496 | J52: 20.62340124 | K52: 36 | L52: 284094.68 | M52: 92650.68 | N52: 1410 | O52: 992 | P52: 32 | Q52: 177223 | R52: 177223 | S52: 1066 | T52: 1066 | U52: 5 | V52: 2065 | W52: 1647
B53: BWN11 | C53: Central | D53: URBAN | E53: 2889 | F53: 8.998702531 | G53: 14.89358914 | H53: 9.602489677 | I53: 1.802104767 | J53: 1.890184943 | K53: 19 | L53: 103301.03 | M53: 103301.03 | N53: 2303 | O53: 2303 | P53: 6 | Q53: 108350 | R53: 108350 | S53: 568 | T53: 568 | U53: 2 | V53: 4282 | W53: 4282
B54: BWN12 | C54: Central | D54: URBAN | E54: 1103.5 | F54: 3.748969037 | G54: 7.160756338 | H54: 6.363554667 | I54: 8.564744024 | J54: 0.3102200962 | K54: 14 | L54: 253281.34 | M54: 253281.34 | N54: 1381 | O54: 1381 | P54: 2 | Q54: 9174 | R54: 9174 | S54: 39 | T54: 39 | U54: 2 | V54: 2177 | W54: 2177
B55: BWN13 | C55: Central | D55: URBAN | E55: 1764 | F55: 10.70201616 | G55: 4.823258098 | H55: 6.287344431 | I55: 13.26717021 | J55: 7.356516676 | K55: 23 | L55: 694841.78 | M55: 313464.59 | N55: 3717 | O55: 3444 | P55: 8 | Q55: 385283 | R55: 385283 | S55: 1313 | T55: 1313 | U55: 5 | V55: 16304 | W55: 16304
B56: BWN14 | C56: Central | D56: RURAL SHORT | E56: 2704.5 | F56: 73.67843709 | G56: 8.760313579 | H56: 8.345020791 | I56: 104.8156596 | J56: 3.292480542 | K56: 59 | L56: 6229031.7 | M56: 639902.98 | N56: 13079 | O56: 8680 | P56: 29 | Q56: 195667 | R56: 195667 | S56: 930 | T56: 930 | U56: 3 | V56: 13385 | W56: 13385
B57: BWR12 | C57: Central | D57: URBAN | E57: 779.5 | F57: 6.07883911 | G57: 0.4349499071 | H57: 6.782710962 | I57: 1.394200242 | J57: 0.1368113147 | K57: 10 | L57: 32100.64 | M57: 26656.22 | N57: 531 | O57: 520 | P57: 2 | Q57: 3150 | R57: 3150 | S57: 30 | T57: 30 | U57: 2 | V57: 1060 | W57: 1060
B58: BWR13 | C58: Central | D58: URBAN | E58: 4431.5 | F58: 33.2788914 | G58: 5.785717515 | H58: 11.92690186 | I58: 25.99756914 | J58: 5.456563533 | K58: 66 | L58: 1807111.37 | M58: 804304.37 | N58: 15946 | O58: 11547 | P58: 11 | Q58: 379290 | R58: 379290 | S58: 1283 | T58: 1283 | U58: 2 | V58: 4668 | W58: 4668
B59: BWR14 | C59: Central | D59: URBAN | E59: 1 | F59: 0.006481209808 | G59: 1.17112962 | H59: 2.514937773 | I59: 0 | J59: 0 | K59: 0 | L59: 0 | M59: 0 | N59: 0 | O59: 0 | P59: 0 | Q59: 0 | R59: 0 | S59: 0 | T59: 0 | U59: 0 | V59: 0 | W59: 0
B60: BWR21 | C60: Central | D60: URBAN | E60: 0 | F60: 0.006833128003 | G60: 1.142843473 | H60: 2.705463361 | I60: 0 | J60: 0 | K60: 0 | L60: 0 | M60: 0 | N60: 0 | O60: 0 | P60: 0 | Q60: 0 | R60: 0 | S60: 0 | T60: 0 | U60: 0 | V60: 0 | W60: 0
B61: BWR22 | C61: Central | D61: URBAN | E61: 1061 | F61: 9.758364848 | G61: 0.5414742857 | H61: 7.5067082 | I61: 1.634180202 | J61: 1.740729247 | K61: 16 | L61: 42288.76 | M61: 41506.76 | N61: 1122 | O61: 1121 | P61: 3 | Q61: 45046 | R61: 45046 | S61: 136 | T61: 136 | U61: 2 | V61: 2091 | W61: 2091
B62: BWR23 | C62: Central | D62: URBAN | E62: 3624.5 | F62: 17.47777675 | G62: 2.266415946 | H62: 9.945435737 | I62: 24.91060151 | J62: 18.51821718 | K62: 27 | L62: 1081783.79 | M62: 201323.79 | N62: 3535 | O62: 1109 | P62: 21 | Q62: 804184 | R62: 804184 | S62: 2479 | T62: 2479 | U62: 2 | V62: 5907 | W62: 3588
B63: BWR24 | C63: Central | D63: URBAN | E63: 741 | F63: 5.696966437 | G63: 3.479060327 | H63: 9.678699913 | I63: 11.94754701 | J63: 5.801997254 | K63: 9 | L63: 126765.14 | M63: 126765.14 | N63: 820 | O63: 820 | P63: 6 | Q63: 61560 | R63: 61560 | S63: 278 | T63: 278 | U63: 3 | V63: 2203 | W63: 1468
B64: BWR32 | C64: Central | D64: URBAN | E64: 2822 | F64: 12.96542666 | G64: 0.9119783131 | H64: 7.621023553 | I64: 2.450141775 | J64: 0.6393540956 | K64: 30 | L64: 140872.19 | M64: 140872.19 | N64: 1145 | O64: 1145 | P64: 7 | Q64: 36760 | R64: 36760 | S64: 154 | T64: 154 | U64: 6 | V64: 16683 | W64: 11125
B65: BWR33 | C65: Central | D65: URBAN | E65: 95.5 | F65: 1.676949477 | G65: 1.191888971 | H65: 6.096818843 | I65: 2.43431599 | J65: 0 | K65: 4 | L65: 16022.52 | M65: 13305 | N65: 62 | O65: 58 | P65: 0 | Q65: 0 | R65: 0 | S65: 0 | T65: 0 | U65: 0 | V65: 0 | W65: 0
B66: BWR34 | C66: Central | D66: URBAN | E66: 3084.5 | F66: 10.48799573 | G66: 1.552092436 | H66: 7.963969613 | I66: 4.030046478 | J66: 1.342266169 | K66: 25 | L66: 261198.51 | M66: 214539.59 | N66: 3901 | O66: 3799 | P66: 5 | Q66: 86996 | R66: 86996 | S66: 513 | T66: 513 | U66: 6 | V66: 18051 | W66: 9145
B67: CF1 | C67: North | D67: RURAL SHORT | E67: 69 | F67: 6.333080074 | G67: 18.86768777 | H67: 4.572614132 | I67: 2.65380539 | J67: 1.794814255 | K67: 10 | L67: 38927 | M67: 38927 | N67: 470 | O67: 470 | P67: 8 | Q67: 26327 | R67: 26327 | S67: 167 | T67: 167 | U67: 2 | V67: 133 | W67: 133
B68: CF2 | C68: North | D68: RURAL SHORT | E68: 650.5 | F68: 15.78258547 | G68: 5.647296857 | H68: 4.801244839 | I68: 12.96627759 | J68: 6.876839255 | K68: 22 | L68: 372088.26 | M68: 372088.26 | N68: 5111 | O68: 5111 | P68: 9 | Q68: 197342 | R68: 197342 | S68: 722 | T68: 722 | U68: 0 | V68: 0 | W68: 0
B69: CLN12 | C69: Central | D69: URBAN | E69: 4421 | F69: 6.810626839 | G69: 21.48591818 | H69: 9.183333382 | I69: 1.694281729 | J69: 0.1862383555 | K69: 9 | L69: 170712.4 | M69: 170712.4 | N69: 4392 | O69: 4392 | P69: 4 | Q69: 18765 | R69: 18765 | S69: 122 | T69: 122 | U69: 0 | V69: 0 | W69: 0
B70: CLN13 | C70: Central | D70: RURAL SHORT | E70: 3355 | F70: 8.191148772 | G70: 26.12441445 | H70: 6.249239314 | I70: 9.56694879 | J70: 1.173992792 | K70: 22 | L70: 768881 | M70: 246472 | N70: 10065 | O70: 6542 | P70: 10 | Q70: 94352 | R70: 94352 | S70: 342 | T70: 342 | U70: 2 | V70: 5812 | W70: 5812
B71: CLN14 | C71: Central | D71: URBAN | E71: 3974 | F71: 4.25530351 | G71: 19.80111074 | H71: 9.526279442 | I71: 5.383470228 | J71: 2.186169553 | K71: 17 | L71: 418279.94 | M71: 418279.94 | N71: 4236 | O71: 4236 | P71: 7 | Q71: 169859 | R71: 169859 | S71: 412 | T71: 412 | U71: 0 | V71: 0 | W71: 0
B72: CLN21 | C72: Central | D72: URBAN | E72: 4605 | F72: 10.26619839 | G72: 24.49945609 | H72: 12.57468886 | I72: 6.974344008 | J72: 1.420157659 | K72: 25 | L72: 550808.88 | M72: 550808.88 | N72: 10121 | O72: 10121 | P72: 8 | Q72: 112159 | R72: 112159 | S72: 372 | T72: 372 | U72: 1 | V72: 5543 | W72: 5543
B73: CLN22 | C73: Central | D73: RURAL SHORT | E73: 1046 | F73: 78.72947979 | G73: 2.709777961 | H73: 6.630290491 | I73: 54.86767073 | J73: 17.41617882 | K73: 71 | L73: 1237323.21 | M73: 169945.61 | N73: 3408 | O73: 1848 | P73: 30 | Q73: 392753 | R73: 392753 | S73: 1164 | T73: 1164 | U73: 0 | V73: 0 | W73: 0
B74: CLN23 | C74: Central | D74: RURAL SHORT | E74: 4942.5 | F74: 24.85748019 | G74: 35.62447465 | H74: 9.488174324 | I74: 2.689584855 | J74: 3.353996708 | K74: 22 | L74: 264221.9 | M74: 201590.98 | N74: 4855 | O74: 4712 | P74: 13 | Q74: 329493 | R74: 329493 | S74: 886 | T74: 886 | U74: 1 | V74: 4577 | W74: 4577
B75: CNR1 | C75: East | D75: RURAL SHORT | E75: 144 | F75: 9.029258512 | G75: 2.025285612 | H75: 0.4191562954 | I75: 1.939689324 | J75: 1.209048853 | K75: 25 | L75: 96962.9 | M75: 13522.9 | N75: 428 | O75: 148 | P75: 8 | Q75: 60439 | R75: 60439 | S75: 242 | T75: 242 | U75: 0 | V75: 0 | W75: 0
B76: CNR2 | C76: East | D76: RURAL SHORT | E76: 1187 | F76: 143.604895 | G76: 1.00328459 | H76: 2.400622419 | I76: 15.95043903 | J76: 2.382996617 | K76: 36 | L76: 1370621.9 | M76: 875587.9 | N76: 4717 | O76: 3354 | P76: 8 | Q76: 204771 | R76: 204771 | S76: 1367 | T76: 1367 | U76: 0 | V76: 0 | W76: 0
B77: CNR3 | C77: East | D77: RURAL SHORT | E77: 61 | F77: 86.2688183 | G77: 0.1259676554 | H77: 0.1905255888 | I77: 2.717089592 | J77: 0.2455468213 | K77: 30 | L77: 222106 | M77: 183482 | N77: 1622 | O77: 1498 | P77: 2 | Q77: 20072 | R77: 20072 | S77: 84 | T77: 84 | U77: 0 | V77: 0 | W77: 0
B78: CPK11 | C78: Central | D78: RURAL SHORT | E78: 3356 | F78: 27.08069082 | G78: 4.965945429 | H78: 8.840387322 | I78: 33.70965016 | J78: 13.91249714 | K78: 37 | L78: 2676204.41 | M78: 649048.41 | N78: 30509 | O78: 20217 | P78: 13 | Q78: 986950 | R78: 986950 | S78: 3192 | T78: 3192 | U78: 9 | V78: 24880 | W78: 24880
B79: CPK12 | C79: Central | D79: RURAL SHORT | E79: 2189 | F79: 119.6599877 | G79: 13.65625926 | H79: 6.935131434 | I79: 114.646783 | J79: 36.36442622 | K79: 55 | L79: 2203007.82 | M79: 346092.82 | N79: 10986 | O79: 5815 | P79: 25 | Q79: 678563 | R79: 678563 | S79: 3395 | T79: 3395 | U79: 2 | V79: 3067 | W79: 2233
B80: CPK13 | C80: Central | D80: URBAN | E80: 4638.5 | F80: 18.96013703 | G80: 3.927979873 | H80: 11.20290462 | I80: 1.010480084 | J80: 5.053435619 | K80: 36 | L80: 228043.52 | M80: 82068.52 | N80: 5596 | O80: 936 | P80: 7 | Q80: 451060 | R80: 451060 | S80: 1321 | T80: 1321 | U80: 7 | V80: 32199 | W80: 32199
B81: CPK21 | C81: Central | D81: URBAN | E81: 1676.5 | F81: 11.27833501 | G81: 2.272386342 | H81: 6.858921198 | I81: 52.71873153 | J81: 28.352753 | K81: 30 | L81: 2140154.26 | M81: 1434149.26 | N81: 8374 | O81: 5069 | P81: 12 | Q81: 1121030 | R81: 1121030 | S81: 3377 | T81: 3377 | U81: 6 | V81: 8427 | W81: 6733
B82: CPK22 | C82: Central | D82: URBAN | E82: 1503.5 | F82: 16.11744748 | G82: 3.390576593 | H82: 6.211134196 | I82: 0.8639692479 | J82: 15.86861525 | K82: 12 | L82: 102330 | M82: 35235 | N82: 1844 | O82: 353 | P82: 10 | Q82: 647165 | R82: 647165 | S82: 1500 | T82: 1500 | U82: 2 | V82: 2985 | W82: 2985
B83: CPK23 | C83: Central | D83: URBAN | E83: 2236 | F83: 12.17317163 | G83: 1.974034383 | H83: 5.677662547 | I83: 1.029691671 | J83: 12.16976413 | K83: 22 | L83: 265177.28 | M83: 82744.64 | N83: 3157 | O83: 1094 | P83: 18 | Q83: 1102855 | R83: 1102855 | S83: 2723 | T83: 2723 | U83: 1 | V83: 2076 | W83: 2076
B84: CRE21 | C84: Central | D84: RURAL SHORT | E84: 2619 | F84: 16.63566276 | G84: 14.20414332 | H84: 6.287344431 | I84: 0.3782406645 | J84: 0.01453139243 | K84: 14 | L84: 24050.99 | M84: 23660.99 | N84: 198 | O84: 195 | P84: 5 | Q84: 924 | R84: 924 | S84: 8 | T84: 8 | U84: 2 | V84: 5192 | W84: 5192
B85: CRE22 | C85: Central | D85: URBAN | E85: 2604.5 | F85: 8.665910084 | G85: 2.537566826 | H85: 8.53554638 | I85: 2.235685597 | J85: 1.258927113 | K85: 19 | L85: 113612.79 | M85: 40241 | N85: 504 | O85: 465 | P85: 6 | Q85: 63976 | R85: 63976 | S85: 462 | T85: 462 | U85: 1 | V85: 2574 | W85: 2574
B86: CRE23 | C86: Central | D86: URBAN | E86: 2617.5 | F86: 4.824611905 | G86: 12.72297018 | H86: 6.782710962 | I86: 0.9894185854 | J86: 0.3887226655 | K86: 8 | L86: 51873.36 | M86: 51873.36 | N86: 1177 | O86: 1177 | P86: 2 | Q86: 20380 | R86: 20380 | S86: 202 | T86: 202 | U86: 1 | V86: 1754 | W86: 1754
B87: CRE31 | C87: Central | D87: RURAL SHORT | E87: 5825.5 | F87: 14.37090827 | G87: 22.37133794 | H87: 11.01237903 | I87: 5.020755282 | J87: 1.048327981 | K87: 25 | L87: 495970.14 | M87: 260153.14 | N87: 17387 | O87: 11882 | P87: 7 | Q87: 103558 | R87: 103558 | S87: 403 | T87: 403 | U87: 3 | V87: 17247 | W87: 17247
B88: CRE32 | C88: Central | D88: URBAN | E88: 1967.5 | F88: 11.47286353 | G88: 4.159800588 | H88: 8.573651497 | I88: 9.461430674 | J88: 2.392781262 | K88: 26 | L88: 400275.27 | M88: 399914.27 | N88: 3277 | O88: 3276 | P88: 11 | Q88: 101229 | R88: 101229 | S88: 567 | T88: 567 | U88: 5 | V88: 13788 | W88: 11841
B89: CRE33 | C89: Central | D89: RURAL SHORT | E89: 2356.5 | F89: 77.90299035 | G89: 7.0486342 | H89: 6.973236551 | I89: 8.920729061 | J89: 30.75877504 | K89: 46 | L89: 497987.34 | M89: 167606.34 | N89: 3775 | O89: 1673 | P89: 38 | Q89: 1717066 | R89: 1717066 | S89: 4722 | T89: 4722 | U89: 1 | V89: 2262 | W89: 2262
B90: CYN11 | C90: Central | D90: URBAN | E90: 1482.5 | F90: 5.289522577 | G90: 3.379056637 | H90: 8.53554638 | I90: 2.739897184 | J90: 10.13338952 | K90: 20 | L90: 83657.61 | M90: 80768.01 | N90: 796 | O90: 779 | P90: 7 | Q90: 309404 | R90: 309404 | S90: 909 | T90: 909 | U90: 2 | V90: 2465 | W90: 2465
B91: CYN12 | C91: Central | D91: URBAN | E91: 2766.5 | F91: 9.884561687 | G91: 3.531810489 | H91: 10.66943297 | I91: 7.861923311 | J91: 20.75455086 | K91: 35 | L91: 481140.8 | M91: 300113.84 | N91: 1531 | O91: 1157 | P91: 22 | Q91: 1270155 | R91: 1270155 | S91: 4405 | T91: 4405 | U91: 4 | V91: 11040 | W91: 11040
B92: CYN13 | C92: Central | D92: URBAN | E92: 1071 | F92: 9.947992086 | G92: 1.819846867 | H92: 7.773444024 | I92: 7.129082487 | J92: 3.514820928 | K92: 13 | L92: 156212.95 | M92: 128706.1 | N92: 2100 | O92: 2066 | P92: 5 | Q92: 77017 | R92: 77017 | S92: 234 | T92: 234 | U92: 5 | V92: 3500 | W92: 1407
B93: CYN14 | C93: Central | D93: URBAN | E93: 2045.5 | F93: 6.626838017 | G93: 0.2336287237 | H93: 4.229668072 | I93: 3.066840892 | J93: 2.971250412 | K93: 23 | L93: 279800.1 | M93: 267086.1 | N93: 3947 | O93: 3621 | P93: 3 | Q93: 271079 | R93: 271079 | S93: 897 | T93: 897 | U93: 5 | V93: 10554 | W93: 8561
B94: CYN21 | C94: Central | D94: URBAN | E94: 2309 | F94: 12.71049662 | G94: 4.081454599 | H94: 5.906293254 | I94: 4.76351188 | J94: 2.207364912 | K94: 15 | L94: 297718.83 | M94: 297718.83 | N94: 1827 | O94: 1827 | P94: 4 | Q94: 137960 | R94: 137960 | S94: 730 | T94: 730 | U94: 2 | V94: 3609 | W94: 3609
B95: CYN22 | C95: Central | D95: URBAN | E95: 2064.5 | F95: 10.7541663 | G95: 1.640751643 | H95: 5.715767665 | I95: 3.625173221 | J95: 0 | K95: 19 | L95: 190704.12 | M95: 190704.12 | N95: 1567 | O95: 1567 | P95: 0 | Q95: 0 | R95: 0 | S95: 0 | T95: 0 | U95: 1 | V95: 1560 | W95: 1560
B96: CYN23 | C96: Central | D96: URBAN | E96: 1738 | F96: 8.717905008 | G96: 0.4678275443 | H96: 5.029875545 | I96: 7.421764171 | J96: 8.984613279 | K96: 20 | L96: 428417.04 | M96: 425525.04 | N96: 2109 | O96: 2108 | P96: 8 | Q96: 518631.6 | R96: 518631.6 | S96: 1401 | T96: 1401 | U96: 1 | V96: 1720 | W96: 0
B97: CYN24 | C97: Central | D97: URBAN | E97: 1272.5 | F97: 12.09139767 | G97: 2.237388725 | H97: 10.82185345 | I97: 15.74862252 | J97: 2.513253169 | K97: 24 | L97: 289712.88 | M97: 22466.88 | N97: 983 | O97: 101 | P97: 7 | Q97: 46234 | R97: 46234 | S97: 208 | T97: 208 | U97: 6 | V97: 6661 | W97: 6285
B98: CYN31 | C98: Central | D98: URBAN | E98: 1848 | F98: 9.426442649 | G98: 0.6720938136 | H98: 3.962932248 | I98: 0.5691687765 | J98: 2.229594739 | K98: 13 | L98: 64005.6 | M98: 49254.6 | N98: 324 | O98: 304 | P98: 4 | Q98: 250728 | R98: 250728 | S98: 911 | T98: 911 | U98: 1 | V98: 1822 | W98: 1822
B99: CYN32 | C99: Central | D99: URBAN | E99: 3969 | F99: 18.62379735 | G99: 1.541212119 | H99: 10.02164597 | I99: 3.168562643 | J99: 13.88685866 | K99: 48 | L99: 223088.63 | M99: 110291.07 | N99: 2581 | O99: 1316 | P99: 18 | Q99: 977730.48 | R99: 977730.48 | S99: 2884 | T99: 2884 | U99: 8 | V99: 30722 | W99: 30722
B100: CYN33 | C100: Central | D100: URBAN | E100: 3397.5 | F100: 23.03304571 | G100: 2.747491793 | H100: 8.421231026 | I100: 9.724235376 | J100: 6.000707881 | K100: 58 | L100: 902683.41 | M100: 229821.7 | N100: 2734 | O100: 1239 | P100: 15 | Q100: 557035 | R100: 557035 | S100: 1941 | T100: 1941 | U100: 1 | V100: 3389 | W100: 3389
B101: DRN11 | C101: Central | D101: RURAL SHORT | E101: 5405 | F101: 16.7532194 | G101: 31.51244907 | H101: 10.02164597 | I101: 6.274559129 | J101: 1.489433138 | K101: 13 | L101: 598311.02 | M101: 598311.02 | N101: 5805 | O101: 5805 | P101: 9 | Q101: 142025 | R101: 142025 | S101: 639 | T101: 639 | U101: 0 | V101: 0 | W101: 0
B102: DRN12 | C102: Central | D102: URBAN | E102: 4709.5 | F102: 8.754034706 | G102: 24.77375741 | H102: 11.50774557 | I102: 8.98778738 | J102: 6.495567397 | K102: 32 | L102: 604045.55 | M102: 604045.55 | N102: 3967 | O102: 3967 | P102: 18 | Q102: 436550 | R102: 436550 | S102: 1231 | T102: 1231 | U102: 0 | V102: 0 | W102: 0
B103: DRN13 | C103: Central | D103: RURAL SHORT | E103: 2935.5 | F103: 23.1037195 | G103: 15.16499783 | H103: 7.544813318 | I103: 0.8005302708 | J103: 2.851315503 | K103: 13 | L103: 56283.32 | M103: 41136.32 | N103: 430 | O103: 404 | P103: 11 | Q103: 200469 | R103: 200469 | S103: 573 | T103: 573 | U103: 0 | V103: 0 | W103: 0
B104: DRN14 | C104: Central | D104: RURAL SHORT | E104: 4123 | F104: 69.50341568 | G104: 19.67476697 | H104: 10.44080227 | I104: 1.242804248 | J104: 3.16717589 | K104: 23 | L104: 106625.27 | M104: 101589 | N104: 529 | O104: 527 | P104: 17 | Q104: 271725 | R104: 271725 | S104: 1010 | T104: 1010 | U104: 0 | V104: 0 | W104: 0
B105: DRN21 | C105: Central | D105: RURAL SHORT | E105: 2383 | F105: 8.914248761 | G105: 13.93714407 | H105: 5.410926723 | I105: 1.517147497 | J105: 0.5309753003 | K105: 13 | L105: 138524.01 | M105: 138524.01 | N105: 392 | O105: 392 | P105: 3 | Q105: 48481 | R105: 48481 | S105: 160 | T105: 160 | U105: 1 | V105: 2351 | W105: 2351
B106: DRN22 | C106: Central | D106: RURAL SHORT | E106: 3412 | F106: 81.23239851 | G106: 18.32117065 | H106: 8.306915673 | I106: 6.014683068 | J106: 17.7807625 | K106: 52 | L106: 366423.27 | M106: 257408.27 | N106: 3770 | O106: 3695 | P106: 21 | Q106: 1083230 | R106: 1083230 | S106: 3755 | T106: 3755 | U106: 6 | V106: 18106 | W106: 18106
B107: DRN23 | C107: Central | D107: RURAL LONG | E107: 2602 | F107: 227.6718753 | G107: 4.904322865 | H107: 9.526279442 | I107: 12.60412608 | J107: 11.08707345 | K107: 85 | L107: 699141.82 | M107: 580502.82 | N107: 5993 | O107: 5964 | P107: 23 | Q107: 614992 | R107: 614992 | S107: 1830 | T107: 1830 | U107: 1 | V107: 1 | W107: 1
B108: ELM11 | C108: Central | D108: URBAN | E108: 2263.5 | F108: 6.85076288 | G108: 4.27189465 | H108: 9.526279442 | I108: 6.006694044 | J108: 10.28900526 | K108: 21 | L108: 307331.36 | M108: 106083.36 | N108: 796 | O108: 279 | P108: 9 | Q108: 526435 | R108: 526435 | S108: 2707 | T108: 2707 | U108: 2 | V108: 4063 | W108: 2234
B109: ELM12 | C109: Central | D109: RURAL SHORT | E109: 2910.5 | F109: 20.3680927 | G109: 7.141254079 | H109: 7.735338907 | I109: 2.434237557 | J109: 7.159126728 | K109: 20 | L109: 184102.15 | M109: 184102.15 | N109: 938 | O109: 938 | P109: 10 | Q109: 541447 | R109: 541447 | S109: 1329 | T109: 1329 | U109: 4 | V109: 11596 | W109: 11596
B110: ELM13 | C110: Central | D110: URBAN | E110: 2069.5 | F110: 9.154499024 | G110: 2.001684588 | H110: 8.002074731 | I110: 4.886006577 | J110: 1.200254308 | K110: 24 | L110: 365013.2 | M110: 187759.2 | N110: 2912 | O110: 876 | P110: 6 | Q110: 89666 | R110: 89666 | S110: 516 | T110: 516 | U110: 10 | V110: 19150 | W110: 17708
B111: ELM15 | C111: Central | D111: RURAL SHORT | E111: 6080.5 | F111: 79.93711068 | G111: 12.99055847 | H111: 19.96708171 | I111: 8.98881131 | J111: 17.76270843 | K111: 67 | L111: 669801.67 | M111: 366712.67 | N111: 13137 | O111: 12291 | P111: 36 | Q111: 1323589 | R111: 1323589 | S111: 4415 | T111: 4415 | U111: 5 | V111: 27428 | W111: 27428
B112: ELM31 | C112: Central | D112: URBAN | E112: 4071.5 | F112: 14.57906965 | G112: 5.142428708 | H112: 10.09785621 | I112: 12.18105122 | J112: 9.381838835 | K112: 45 | L112: 960300.62 | M112: 608949.62 | N112: 11584 | O112: 7336 | P112: 7 | Q112: 739623 | R112: 739623 | S112: 2074 | T112: 2074 | U112: 1 | V112: 2026 | W112: 2026
B113: ELM32 | C113: Central | D113: URBAN | E113: 3325.5 | F113: 21.03783872 | G113: 5.509425017 | H113: 10.44080227 | I113: 7.189804017 | J113: 12.8980521 | K113: 23 | L113: 475597.65 | M113: 475597.65 | N113: 2397 | O113: 2397 | P113: 9 | Q113: 853192 | R113: 853192 | S113: 2275 | T113: 2275 | U113: 2 | V113: 7917 | W113: 7917
B114: ELM33 | C114: Central | D114: RURAL SHORT | E114: 2232.5 | F114: 113.0999459 | G114: 6.579222638 | H114: 6.401659785 | I114: 20.85049834 | J114: 9.149470179 | K114: 67 | L114: 1044604.37 | M114: 296212.37 | N114: 8053 | O114: 5944 | P114: 20 | Q114: 458386 | R114: 458386 | S114: 1688 | T114: 1688 | U114: 5 | V114: 8202 | W114: 8094
B115: ELM34 | C115: Central | D115: URBAN | E115: 3214.5 | F115: 30.84574858 | G115: 1.829367709 | H115: 10.02164597 | I115: 28.68025751 | J115: 31.97896436 | K115: 59 | L115: 1840746.52 | M115: 812700.82 | N115: 12011 | O115: 9077 | P115: 28 | Q115: 2052463 | R115: 2052463 | S115: 5745 | T115: 5745 | U115: 5 | V115: 12202 | W115: 11305
B116: EPG11 | C116: Central | D116: URBAN | E116: 1506 | F116: 2.686810336 | G116: 4.692092438 | H116: 7.049446787 | I116: 0.08916208866 | J116: 0 | K116: 4 | L116: 3826.51 | M116: 3826.51 | N116: 69 | O116: 69 | P116: 0 | Q116: 0 | R116: 0 | S116: 0 | T116: 0 | U116: 0 | V116: 0 | W116: 0
B117: EPG12 | C117: Central | D117: URBAN | E117: 1557 | F117: 5.920316631 | G117: 2.600082976 | H117: 3.124619657 | I117: 0.2463867568 | J117: 0.9048057088 | K117: 8 | L117: 28691.84 | M117: 28691.84 | N117: 139 | O117: 139 | P117: 5 | Q117: 105365 | R117: 105365 | S117: 472 | T117: 472 | U117: 0 | V117: 0 | W117: 0
B118: EPG13 | C118: Central | D118: RURAL SHORT | E118: 5231.5 | F118: 26.78225008 | G118: 31.39045297 | H118: 10.05975109 | I118: 0.4468367498 | J118: 1.346346613 | K118: 18 | L118: 39075.87 | M118: 37361.87 | N118: 134 | O118: 133 | P118: 9 | Q118: 117738 | R118: 117738 | S118: 328 | T118: 328 | U118: 1 | V118: 5014 | W118: 5014
B119: EPG14 | C119: Central | D119: URBAN | E119: 2236.5 | F119: 10.72607396 | G119: 0.7737056693 | H119: 5.639557429 | I119: 0.3304293191 | J119: 0.3487747379 | K119: 18 | L119: 27460.4 | M119: 6755.44 | N119: 47 | O119: 33 | P119: 2 | Q119: 28985 | R119: 28985 | S119: 183 | T119: 183 | U119: 1 | V119: 2211 | W119: 2211
B120: EPG21 | C120: Central | D120: URBAN | E120: 1 | F120: 0.001999049469 | G120: 2.965393317 | H120: 2.55304289 | I120: 0 | J120: 0 | K120: 0 | L120: 0 | M120: 0 | N120: 0 | O120: 0 | P120: 0 | Q120: 0 | R120: 0 | S120: 0 | T120: 0 | U120: 0 | V120: 0 | W120: 0
B121: EPG22 | C121: Central | D121: URBAN | E121: 137 | F121: 1.611478504 | G121: 1.717018943 | H121: 8.040179849 | I121: 0.04836249922 | J121: 7.218793901 | K121: 1 | L121: 140 | M121: 140 | N121: 2 | O121: 2 | P121: 1 | Q121: 20897 | R121: 20897 | S121: 59 | T121: 59 | U121: 0 | V121: 0 | W121: 0
B122: EPG23 | C122: Central | D122: URBAN | E122: 874 | F122: 10.15628478 | G122: 5.223335511 | H122: 7.773444024 | I122: 2.96925484 | J122: 4.672417694 | K122: 12 | L122: 63438 | M122: 63438 | N122: 844 | O122: 844 | P122: 5 | Q122: 99826 | R122: 99826 | S122: 254 | T122: 254 | U122: 3 | V122: 1741 | W122: 1741
B123: EPG24 | C123: Central | D123: URBAN | E123: 0 | F123: 0.004875478679 | G123: 0.2282466111 | H123: 4.572614132 | I123: 0 | J123: 0 | K123: 0 | L123: 0 | M123: 0 | N123: 0 | O123: 0 | P123: 0 | Q123: 0 | R123: 0 | S123: 0 | T123: 0 | U123: 0 | V123: 0 | W123: 0
B124: EPG31 | C124: Central | D124: URBAN | E124: 3073 | F124: 13.75705381 | G124: 1.798948275 | H124: 6.363554667 | I124: 1.042688656 | J124: 3.797951382 | K124: 10 | L124: 109982 | M124: 109982 | N124: 818 | O124: 818 | P124: 7 | Q124: 400605 | R124: 400605 | S124: 1279 | T124: 1279 | U124: 1 | V124: 3036 | W124: 3036
B125: EPG32 | C125: Central | D125: RURAL SHORT | E125: 3018.5 | F125: 26.09441194 | G125: 12.12896246 | H125: 7.049446787 | I125: 5.864836113 | J125: 2.640164282 | K125: 24 | L125: 406978.75 | M125: 406830.75 | N125: 5292 | O125: 5291 | P125: 12 | Q125: 183209 | R125: 183209 | S125: 626 | T125: 626 | U125: 4 | V125: 6941 | W125: 6941
B126: EPG33 | C126: Central | D126: URBAN | E126: 0.5 | F126: 0.002500254754 | G126: 2.964540117 | H126: 3.619986188 | I126: 0 | J126: 0 | K126: 0 | L126: 0 | M126: 0 | N126: 0 | O126: 0 | P126: 0 | Q126: 0 | R126: 0 | S126: 0 | T126: 0 | U126: 0 | V126: 0 | W126: 0
B127: EPG34 | C127: Central | D127: URBAN | E127: 3327.5 | F127: 8.170687758 | G127: 8.699811079 | H127: 6.935131434 | I127: 2.347299892 | J127: 4.669055073 | K127: 23 | L127: 236359.1 | M127: 234988.1 | N127: 3887 | O127: 3886 | P127: 5 | Q127: 470146 | R127: 470146 | S127: 1250 | T127: 1250 | U127: 2 | V127: 6620 | W127: 6620
B128: EPG35 | C128: Central | D128: URBAN | E128: 129.5 | F128: 2.146288101 | G128: 14.7207841 | H128: 8.306915673 | I128: 0.7564705049 | J128: 1.688522072 | K128: 1 | L128: 1439 | M128: 1439 | N128: 1 | O128: 1 | P128: 5 | Q128: 3212 | R128: 3212 | S128: 9 | T128: 9 | U128: 0 | V128: 0 | W128: 0
B129: FGY12 | C129: Central | D129: URBAN | E129: 4056.5 | F129: 2.149153609 | G129: 24.24286314 | H129: 9.869225502 | I129: 3.092015209 | J129: 2.308964067 | K129: 11 | L129: 275134.5 | M129: 275134.5 | N129: 2942 | O129: 2942 | P129: 6 | Q129: 205456.84 | R129: 205456.84 | S129: 771 | T129: 771 | U129: 4 | V129: 13210 | W129: 13210
B130: FGY13 | C130: Central | D130: RURAL SHORT | E130: 1551.5 | F130: 18.21706042 | G130: 0.7298322163 | H130: 3.467565717 | I130: 40.69221339 | J130: 6.944445484 | K130: 42 | L130: 3668422.02 | M130: 1159344.02 | N130: 4664 | O130: 2797 | P130: 17 | Q130: 626045 | R130: 626045 | S130: 3256 | T130: 3256 | U130: 8 | V130: 10686 | W130: 6590
B131: FGY14 | C131: Central | D131: URBAN | E131: 2560 | F131: 11.03569373 | G131: 0.1956531603 | H131: 10.2883818 | I131: 13.91024636 | J131: 13.88859127 | K131: 24 | L131: 910306.14 | M131: 569302.14 | N131: 5729 | O131: 3189 | P131: 17 | Q131: 908889 | R131: 908889 | S131: 2705 | T131: 2705 | U131: 7 | V131: 15007 | W131: 12476
B132: FGY21 | C132: Central | D132: RURAL SHORT | E132: 2512 | F132: 20.58455985 | G132: 12.62375045 | H132: 9.526279442 | I132: 5.419009385 | J132: 6.414005403 | K132: 21 | L132: 226432.28 | M132: 223176.08 | N132: 2875 | O132: 2874 | P132: 19 | Q132: 268008 | R132: 268008 | S132: 872 | T132: 872 | U132: 3 | V132: 7476 | W132: 4964
B133: FGY22 | C133: Central | D133: URBAN | E133: 3357 | F133: 6.120776713 | G133: 15.04426776 | H133: 10.17406644 | I133: 8.063868524 | J133: 3.150783196 | K133: 15 | L133: 416015.22 | M133: 416015.22 | N133: 3538 | O133: 3538 | P133: 9 | Q133: 162549 | R133: 162549 | S133: 1230 | T133: 1230 | U133: 0 | V133: 0 | W133: 0
B134: FGY23 | C134: Central | D134: URBAN | E134: 1146.5 | F134: 10.42312733 | G134: 0.3799300598 | H134: 3.391355481 | I134: 1.456332181 | J134: 0.3195135697 | K134: 18 | L134: 67426 | M134: 67426 | N134: 970 | O134: 970 | P134: 7 | Q134: 14793 | R134: 14793 | S134: 81 | T134: 81 | U134: 2 | V134: 2266 | W134: 2266
B135: FGY31 | C135: Central | D135: URBAN | E135: 1183 | F135: 10.1516354 | G135: 6.218205297 | H135: 9.71680503 | I135: 7.967679879 | J135: 7.765305209 | K135: 8 | L135: 190862.81 | M135: 190862.81 | N135: 1406 | O135: 1406 | P135: 8 | Q135: 186015 | R135: 186015 | S135: 777 | T135: 777 | U135: 1 | V135: 1089 | W135: 1089
B136: FGY32 | C136: Central | D136: URBAN | E136: 1349 | F136: 8.834050379 | G136: 0.6376172345 | H136: 5.449031841 | I136: 8.631695083 | J136: 15.10067349 | K136: 26 | L136: 345616.52 | M136: 151952.52 | N136: 1358 | O136: 1255 | P136: 15 | Q136: 604637 | R136: 604637 | S136: 1553 | T136: 1553 | U136: 1 | V136: 1342 | W136: 1342
B137: FGY33 | C137: Central | D137: URBAN | E137: 1893.5 | F137: 12.83052326 | G137: 3.649494978 | H137: 7.5067082 | I137: 24.36312321 | J137: 14.74162456 | K137: 46 | L137: 1123277.33 | M137: 961933.33 | N137: 3862 | O137: 3820 | P137: 14 | Q137: 679672 | R137: 679672 | S137: 2070 | T137: 2070 | U137: 3 | V137: 4272 | W137: 4272
B138: FGY34 | C138: Central | D138: URBAN | E138: 3641.5 | F138: 22.67131471 | G138: 3.199307077 | H138: 9.907330619 | I138: 49.30872919 | J138: 12.61217096 | K138: 72 | L138: 4822130.52 | M138: 867468.95 | N138: 11154 | O138: 5958 | P138: 21 | Q138: 1233403 | R138: 1233403 | S138: 4073 | T138: 4073 | U138: 3 | V138: 5108 | W138: 4180
B139: FTR12 | C139: East | D139: RURAL LONG | E139: 1643.5 | F139: 481.7253315 | G139: 1.149904234 | H139: 5.144190898 | I139: 24.29871861 | J139: 6.249128465 | K139: 252 | L139: 1166610.03 | M139: 887287.03 | N139: 10575 | O139: 7773 | P139: 27 | Q139: 300028 | R139: 300028 | S139: 958 | T139: 958 | U139: 10 | V139: 9077 | W139: 5967
B140: FTR21 | C140: East | D140: RURAL LONG | E140: 2413 | F140: 409.1306074 | G140: 0.6591453721 | H140: 4.61071925 | I140: 14.10433296 | J140: 7.449617257 | K140: 227 | L140: 1174716.53 | M140: 705499.18 | N140: 8548 | O140: 3469 | P140: 51 | Q140: 620461 | R140: 620461 | S140: 2157 | T140: 2157 | U140: 2 | V140: 4789 | W140: 4789
B141: FTR22 | C141: East | D141: RURAL SHORT | E141: 1299 | F141: 129.0409614 | G141: 1.643188465 | H141: 3.086514539 | I141: 15.12950966 | J141: 8.547462759 | K141: 76 | L141: 777671.69 | M141: 591127.69 | N141: 3438 | O141: 1721 | P141: 23 | Q141: 439348 | R141: 439348 | S141: 1292 | T141: 1292 | U141: 5 | V141: 6051 | W141: 3838
B142: FTR23 | C142: East | D142: RURAL LONG | E142: 3406.5 | F142: 420.6320528 | G142: 3.68702006 | H142: 10.09785621 | I142: 17.16705485 | J142: 11.76559671 | K142: 169 | L142: 960705.17 | M142: 779732.17 | N142: 22054 | O142: 21773 | P142: 53 | Q142: 658428 | R142: 658428 | S142: 3812 | T142: 3812 | U142: 9 | V142: 28694 | W142: 25323
B143: HPK11 | C143: Central | D143: URBAN | E143: 4590 | F143: 4.968580533 | G143: 14.61251403 | H143: 8.078284967 | I143: 18.48787238 | J143: 0.2175240145 | K143: 4 | L143: 1789131 | M143: 36151 | N143: 5259 | O143: 1200 | P143: 3 | Q143: 21050.5 | R143: 21050.5 | S143: 167 | T143: 167 | U143: 0 | V143: 0 | W143: 0
B144: HPK12 | C144: Central | D144: URBAN | E144: 1541.5 | F144: 7.902124778 | G144: 8.476537236 | H144: 8.611756615 | I144: 1.799739322 | J144: 2.585030962 | K144: 9 | L144: 61577.5 | M144: 61577.5 | N144: 1412 | O144: 1412 | P144: 3 | Q144: 88446 | R144: 88446 | S144: 246 | T144: 246 | U144: 0 | V144: 0 | W144: 0
B145: HPK13 | C145: Central | D145: URBAN | E145: 1985.5 | F145: 8.662303426 | G145: 8.04933057 | H145: 7.011341669 | I145: 1.140903387 | J145: 0.00206336518 | K145: 10 | L145: 66352 | M145: 65302 | N145: 124 | O145: 122 | P145: 1 | Q145: 120 | R145: 120 | S145: 4 | T145: 4 | U145: 0 | V145: 0 | W145: 0
B146: HPK14 | C146: Central | D146: URBAN | E146: 4018.5 | F146: 8.954695679 | G146: 12.35495432 | H146: 9.107123146 | I146: 0.6336110842 | J146: 0.9846190566 | K146: 7 | L146: 54125.53 | M146: 54125.53 | N146: 276 | O146: 276 | P146: 4 | Q146: 84110 | R146: 84110 | S146: 383 | T146: 383 | U146: 0 | V146: 0 | W146: 0
B147: HPK21 | C147: Central | D147: RURAL SHORT | E147: 3023 | F147: 9.696670997 | G147: 11.66803675 | H147: 6.058713725 | I147: 1.320575684 | J147: 0.03656561193 | K147: 11 | L147: 130376 | M147: 130376 | N147: 3148 | O147: 3148 | P147: 2 | Q147: 3610 | R147: 3610 | S147: 10 | T147: 10 | U147: 2 | V147: 5256 | W147: 5256
B148: HPK22 | C148: Central | D148: URBAN | E148: 4347 | F148: 8.539466316 | G148: 20.18583922 | H148: 9.602489677 | I148: 2.376714712 | J148: 0.3976741545 | K148: 19 | L148: 196544.43 | M148: 196508.43 | N148: 398 | O148: 397 | P148: 3 | Q148: 32886 | R148: 32886 | S148: 227 | T148: 227 | U148: 2 | V148: 8657 | W148: 8657
B149: HPK23 | C149: Central | D149: URBAN | E149: 3205 | F149: 8.440396535 | G149: 13.39575636 | H149: 8.840387322 | I149: 3.191512296 | J149: 1.964640997 | K149: 5 | L149: 191849 | M149: 191849 | N149: 2262 | O149: 2262 | P149: 4 | Q149: 118099 | R149: 118099 | S149: 300 | T149: 300 | U149: 2 | V149: 4267 | W149: 4267
B150: HPK24 | C150: Central | D150: URBAN | E150: 1486 | F150: 8.555498287 | G150: 3.785677355 | H150: 7.621023553 | I150: 15.04555042 | J150: 2.473550104 | K150: 10 | L150: 419332.62 | M150: 7404.62 | N150: 192 | O150: 68 | P150: 5 | Q150: 68940 | R150: 68940 | S150: 313 | T150: 313 | U150: 0 | V150: 0 | W150: 0
B151: KLK1 | C151: Central | D151: RURAL SHORT | E151: 1441.5 | F151: 183.1070437 | G151: 10.05740326 | H151: 3.619986188 | I151: 62.66413978 | J151: 13.11743123 | K151: 115 | L151: 3480165.06 | M151: 1758716.06 | N151: 8128 | O151: 7311 | P151: 32 | Q151: 728500 | R151: 728500 | S151: 2006 | T151: 2006 | U151: 0 | V151: 0 | W151: 0
B152: KLK2 | C152: Central | D152: RURAL SHORT | E152: 788.5 | F152: 86.79381106 | G152: 1.605158748 | H152: 1.600414946 | I152: 17.63799574 | J152: 8.033653635 | K152: 55 | L152: 1064731.88 | M152: 945229.88 | N152: 3226 | O152: 3187 | P152: 12 | Q152: 484958 | R152: 484958 | S152: 1494 | T152: 1494 | U152: 0 | V152: 0 | W152: 0
B153: KLK3 | C153: Central | D153: RURAL SHORT | E153: 139.5 | F153: 59.28043183 | G153: 0 | H153: 0.5334716487 | I153: 5.333277876 | J153: 4.807657606 | K153: 31 | L153: 270002 | M153: 48581 | N153: 364 | O153: 226 | P153: 8 | Q153: 243392 | R153: 243392 | S153: 653 | T153: 653 | U153: 2 | V153: 275 | W153: 139
B154: KLO11 | C154: Central | D154: RURAL SHORT | E154: 1 | F154: 0.003677511246 | G154: 0.1297291528 | H154: 0.015 | I154: 0.01473652787 | J154: 0 | K154: 4 | L154: 190 | M154: 190 | N154: 2 | O154: 2 | P154: 0 | Q154: 0 | R154: 0 | S154: 0 | T154: 0 | U154: 0 | V154: 0 | W154: 0
B155: KLO14 | C155: Central | D155: RURAL LONG | E155: 3288 | F155: 249.5265943 | G155: 19.2606564 | H155: 7.811549142 | I155: 35.01090617 | J155: 46.90995857 | K155: 129 | L155: 1893146.08 | M155: 1378039.62 | N155: 22953 | O155: 21953 | P155: 70 | Q155: 2536564 | R155: 2536564 | S155: 6602 | T155: 6602 | U155: 1 | V155: 1665 | W155: 1665
B156: KLO24 | C156: Central | D156: RURAL SHORT | E156: 4132 | F156: 75.20101599 | G156: 30.92663969 | H156: 9.297648735 | I156: 12.63685391 | J156: 15.02679919 | K156: 37 | L156: 848146.31 | M156: 847687.28 | N156: 12453 | O156: 12453 | P156: 20 | Q156: 1008552 | R156: 1008552 | S156: 3460 | T156: 3460 | U156: 2 | V156: 8036 | W156: 8036
B157: KMS1 | C157: North | D157: RURAL SHORT | E157: 1314 | F157: 112.4985411 | G157: 5.642661306 | H157: 8.916597557 | I157: 0.7758066881 | J157: 2.245210471 | K157: 36 | L157: 29849.69 | M157: 29849.69 | N157: 320 | O157: 320 | P157: 27 | Q157: 86386 | R157: 86386 | S157: 402 | T157: 402 | U157: 1 | V157: 757 | W157: 757
B158: KMS21 | C158: North | D158: RURAL SHORT | E158: 3098.5 | F158: 168.8884701 | G158: 12.3434431 | H158: 2.705463361 | I158: 4.299191557 | J158: 6.333049238 | K158: 59 | L158: 250822.24 | M158: 249772.24 | N158: 6059 | O158: 6045 | P158: 62 | Q158: 369481 | R158: 369481 | S158: 1273 | T158: 1273 | U158: 12 | V158: 34042 | W158: 31002
B159: LDL11 | C159: Central | D159: URBAN | E159: 1296.5 | F159: 5.702318948 | G159: 2.056279792 | H159: 3.886722012 | I159: 0.09359212369 | J159: 6.753030833 | K159: 6 | L159: 21570.67 | M159: 3846.67 | N159: 1302 | O159: 36 | P159: 8 | Q159: 277552 | R159: 277552 | S159: 939 | T159: 939 | U159: 1 | V159: 1258 | W159: 0
B160: LDL12 | C160: Central | D160: URBAN | E160: 475 | F160: 3.699606536 | G160: 0.5821844745 | H160: 7.621023553 | I160: 0.2897079762 | J160: 0.833514935 | K160: 12 | L160: 8869.04 | M160: 2401.04 | N160: 485 | O160: 23 | P160: 1 | Q160: 6908 | R160: 6908 | S160: 22 | T160: 22 | U160: 0 | V160: 0 | W160: 0
B161: LDL13 | C161: Central | D161: RURAL SHORT | E161: 3988 | F161: 134.3761065 | G161: 1.34785056 | H161: 8.421231026 | I161: 22.98348316 | J161: 11.81863987 | K161: 107 | L161: 1693671.67 | M161: 528760.67 | N161: 12624 | O161: 3099 | P161: 32 | Q161: 822362 | R161: 822362 | S161: 2702 | T161: 2702 | U161: 0 | V161: 0 | W161: 0
B162: LDL14 | C162: Central | D162: RURAL SHORT | E162: 2224 | F162: 133.3516962 | G162: 4.000400619 | H162: 8.19260032 | I162: 18.26451095 | J162: 6.914909063 | K162: 72 | L162: 750852.22 | M162: 257851.22 | N162: 3162 | O162: 638 | P162: 20 | Q162: 272621 | R162: 272621 | S162: 865 | T162: 865 | U162: 3 | V162: 6434 | W162: 2196
B163: LDL21 | C163: Central | D163: RURAL SHORT | E163: 2346.5 | F163: 24.63251589 | G163: 14.6432923 | H163: 6.82081608 | I163: 33.3137292 | J163: 19.32734717 | K163: 73 | L163: 1807023.7 | M163: 646841.7 | N163: 6494 | O163: 3161 | P163: 17 | Q163: 1015770 | R163: 1015770 | S163: 2737 | T163: 2737 | U163: 1 | V163: 850 | W163: 850
B164: LDL22 | C164: Central | D164: URBAN | E164: 1805 | F164: 10.97940837 | G164: 3.958352601 | H164: 8.002074731 | I164: 5.249699211 | J164: 1.05122426 | K164: 18 | L164: 272702.39 | M164: 122758.39 | N164: 5094 | O164: 2702 | P164: 4 | Q164: 43150 | R164: 43150 | S164: 164 | T164: 164 | U164: 2 | V164: 2982 | W164: 1793
B165: LDL23 | C165: Central | D165: RURAL LONG | E165: 4627 | F165: 212.7077652 | G165: 8.508659362 | H165: 14.55615499 | I165: 247.5390359 | J165: 20.10878709 | K165: 183 | L165: 12737640.27 | M165: 2331637.27 | N165: 38473 | O165: 14836 | P165: 67 | Q165: 1029539 | R165: 1029539 | S165: 3016 | T165: 3016 | U165: 11 | V165: 45478 | W165: 25131
B166: LDL24 | C166: Central | D166: URBAN | E166: 3765.5 | F166: 14.3879491 | G166: 10.60311869 | H166: 12.38416327 | I166: 5.950172924 | J166: 4.156125301 | K166: 30 | L166: 606513.98 | M166: 268563.98 | N166: 7979 | O166: 3004 | P166: 8 | Q166: 387158 | R166: 387158 | S166: 1253 | T166: 1253 | U166: 1 | V166: 3722 | W166: 0
B167: LGA11 | C167: East | D167: RURAL LONG | E167: 1669 | F167: 251.7751569 | G167: 0.1998271907 | H167: 3.734301541 | I167: 4.907175865 | J167: 3.674332303 | K167: 69 | L167: 302466.51 | M167: 284695.32 | N167: 1981 | O167: 1939 | P167: 20 | Q167: 226477 | R167: 226477 | S167: 1113 | T167: 1113 | U167: 2 | V167: 2243 | W167: 599
B168: LGA12 | C168: East | D168: RURAL SHORT | E168: 984 | F168: 183.0418483 | G168: 1.679343053 | H168: 4.343983425 | I168: 4.57495824 | J168: 12.67484565 | K168: 76 | L168: 155068.97 | M168: 74181.97 | N168: 2339 | O168: 855 | P168: 42 | Q168: 429616 | R168: 429616 | S168: 1870 | T168: 1870 | U168: 2 | V168: 1081 | W168: 971
B169: LGA13 | C169: East | D169: RURAL LONG | E169: 910 | F169: 290.368318 | G169: 0.140354096 | H169: 2.591148008 | I169: 7.766779717 | J169: 9.509866677 | K169: 64 | L169: 449368 | M169: 272915 | N169: 3414 | O169: 2033 | P169: 20 | Q169: 550219 | R169: 550219 | S169: 1939 | T169: 1939 | U169: 6 | V169: 8758 | W169: 7593
B170: LGA14 | C170: East | D170: RURAL LONG | E170: 1508 | F170: 212.7943832 | G170: 1.162254728 | H170: 3.962932248 | I170: 16.75980108 | J170: 6.792823676 | K170: 64 | L170: 959705.48 | M170: 246607.48 | N170: 12701 | O170: 4440 | P170: 51 | Q170: 388973 | R170: 388973 | S170: 1519 | T170: 1519 | U170: 7 | V170: 18552 | W170: 18552
B171: LGA21 | C171: East | D171: RURAL SHORT | E171: 1753.5 | F171: 83.12841931 | G171: 1.953537555 | H171: 2.591148008 | I171: 1.971672499 | J171: 4.720060105 | K171: 26 | L171: 125078.47 | M171: 54247.47 | N171: 2760 | O171: 1393 | P171: 24 | Q171: 299430 | R171: 299430 | S171: 998 | T171: 998 | U171: 1 | V171: 1249 | W171: 0
B172: LGA22 | C172: East | D172: RURAL SHORT | E172: 1987.5 | F172: 57.17111621 | G172: 1.240235439 | H172: 5.791977901 | I172: 0.7713332563 | J172: 12.46805164 | K172: 18 | L172: 33712.84 | M172: 20550 | N172: 221 | O172: 141 | P172: 21 | Q172: 544944 | R172: 544944 | S172: 2227 | T172: 2227 | U172: 0 | V172: 0 | W172: 0
B173: LGA23 | C173: East | D173: RURAL LONG | E173: 1506.5 | F173: 334.1969539 | G173: 0.5698528954 | H173: 4.077247601 | I173: 8.862486245 | J173: 7.067862122 | K173: 81 | L173: 431832.69 | M173: 232795.65 | N173: 4117 | O173: 2239 | P173: 38 | Q173: 344388 | R173: 344388 | S173: 1452 | T173: 1452 | U173: 1 | V173: 774 | W173: 0
B174: LGA24 | C174: East | D174: RURAL SHORT | E174: 1077 | F174: 175.3154313 | G174: 17.22652772 | H174: 5.868188136 | I174: 35.00801321 | J174: 4.965773963 | K174: 59 | L174: 765072 | M174: 324935 | N174: 3463 | O174: 1662 | P174: 13 | Q174: 108523 | R174: 108523 | S174: 425 | T174: 425 | U174: 2 | V174: 3583 | W174: 1540
B175: LGA25 | C175: East | D175: RURAL SHORT | E175: 1 | F175: 0.002499542794 | G175: 1.305267447 | H175: 0.1524204711 | I175: 0 | J175: 0 | K175: 0 | L175: 0 | M175: 0 | N175: 0 | O175: 0 | P175: 0 | Q175: 0 | R175: 0 | S175: 0 | T175: 0 | U175: 0 | V175: 0 | W175: 0
B176: LGA41 | C176: East | D176: URBAN | E176: 2 | F176: 0.002000075533 | G176: 1.320551726 | H176: 6.706500727 | I176: 0 | J176: 0 | K176: 0 | L176: 0 | M176: 0 | N176: 0 | O176: 0 | P176: 0 | Q176: 0 | R176: 0 | S176: 0 | T176: 0 | U176: 0 | V176: 0 | W176: 0
B177: LLG11 | C177: Central | D177: RURAL SHORT | E177: 961 | F177: 157.6063341 | G177: 0.4641218822 | H177: 2.629253126 | I177: 11.38491606 | J177: 14.16153978 | K177: 75 | L177: 483462.24 | M177: 213296.74 | N177: 1781 | O177: 1352 | P177: 43 | Q177: 601372 | R177: 601372 | S177: 1953 | T177: 1953 | U177: 2 | V177: 1903 | W177: 1903
B178: LLG12 | C178: East | D178: RURAL SHORT | E178: 1428 | F178: 188.7137124 | G178: 3.808014783 | H178: 4.915560192 | I178: 5.797928979 | J178: 5.37701029 | K178: 73 | L178: 205082.61 | M178: 130619.61 | N178: 3681 | O178: 3109 | P178: 30 | Q178: 190194 | R178: 190194 | S178: 1121 | T178: 1121 | U178: 4 | V178: 5601 | W178: 5601
B179: LLG13 | C179: East | D179: RURAL SHORT | E179: 1289.5 | F179: 112.5125836 | G179: 3.071764659 | H179: 5.106085781 | I179: 7.819619672 | J179: 7.950076622 | K179: 49 | L179: 207520.87 | M179: 173448.87 | N179: 4719 | O179: 4091 | P179: 18 | Q179: 210983 | R179: 210983 | S179: 692 | T179: 692 | U179: 2 | V179: 2391 | W179: 2391
B180: LLG14 | C180: Central | D180: RURAL SHORT | E180: 2494 | F180: 133.9460672 | G180: 4.550473885 | H180: 7.621023553 | I180: 16.75449952 | J180: 17.26883353 | K180: 71 | L180: 784962.03 | M180: 592563.03 | N180: 7035 | O180: 6681 | P180: 66 | Q180: 809059 | R180: 809059 | S180: 2514 | T180: 2514 | U180: 1 | V180: 2428 | W180: 2428
B181: LYD11 | C181: Central | D181: RURAL SHORT | E181: 2386 | F181: 10.6770401 | G181: 9.913187974 | H181: 5.334716487 | I181: 1.187847648 | J181: 2.229447786 | K181: 10 | L181: 106967.4 | M181: 102264 | N181: 442 | O181: 432 | P181: 8 | Q181: 200765 | R181: 200765 | S181: 1011 | T181: 1011 | U181: 3 | V181: 7086 | W181: 4724
B182: LYD12 | C182: Central | D182: URBAN | E182: 2061 | F182: 0.002246391004 | G182: 10.11817395 | H182: 4.077247601 | I182: 0.6096613325 | J182: 0.04062259849 | K182: 2 | L182: 72908.55 | M182: 72908.55 | N182: 137 | O182: 137 | P182: 2 | Q182: 4858 | R182: 4858 | S182: 133 | T182: 133 | U182: 0 | V182: 0 | W182: 0
B183: LYD13 | C183: Central | D183: URBAN | E183: 2010 | F183: 10.17968842 | G183: 9.624158336 | H183: 6.668395609 | I183: 2.472518376 | J183: 2.346621006 | K183: 7 | L183: 155876 | M183: 510 | N183: 1232 | O183: 3 | P183: 12 | Q183: 147939 | R183: 147939 | S183: 1112 | T183: 1112 | U183: 2 | V183: 3543 | W183: 1999
B184: LYD14 | C184: Central | D184: RURAL SHORT | E184: 1160.5 | F184: 31.32559722 | G184: 10.32181376 | H184: 4.915560192 | I184: 5.780116324 | J184: 11.86414843 | K184: 23 | L184: 233301.07 | M184: 231169.07 | N184: 1328 | O184: 1302 | P184: 10 | Q184: 478869 | R184: 478869 | S184: 1532 | T184: 1532 | U184: 5 | V184: 6971 | W184: 5301
B185: LYS36 | C185: East | D185: RURAL SHORT | E185: 1.5 | F185: 4.170515955 | G185: 1.009188247 | H185: 0.1407090057 | I185: 0.2678363726 | J185: 1.858551525 | K185: 1 | L185: 230 | M185: 230 | N185: 4 | O185: 4 | P185: 2 | Q185: 1596 | R185: 1596 | S185: 4 | T185: 4 | U185: 0 | V185: 0 | W185: 0
B186: MBY11 | C186: North | D186: RURAL SHORT | E186: 1142.5 | F186: 107.7725797 | G186: 1.488674397 | H186: 3.315145246 | I186: 9.302604147 | J186: 0.400215949 | K186: 36 | L186: 658431.7 | M186: 658431.7 | N186: 6265 | O186: 6265 | P186: 10 | Q186: 28327 | R186: 28327 | S186: 146 | T186: 146 | U186: 0 | V186: 0 | W186: 0
B187: MBY12 | C187: North | D187: RURAL SHORT | E187: 705.5 | F187: 22.01344225 | G187: 0.5649524351 | H187: 2.21009683 | I187: 5.183901472 | J187: 0.1946510851 | K187: 9 | L187: 328343 | M187: 327952 | N187: 2099 | O187: 2098 | P187: 6 | Q187: 12329 | R187: 12329 | S187: 71 | T187: 71 | U187: 0 | V187: 0 | W187: 0
B188: MBY13 | C188: North | D188: RURAL SHORT | E188: 214.5 | F188: 0.0160819038 | G188: 51.28194097 | H188: 4.420193661 | I188: 0.8101030532 | J188: 0.05745769182 | K188: 2 | L188: 16073 | M188: 16073 | N188: 364 | O188: 364 | P188: 1 | Q188: 1140 | R188: 1140 | S188: 5 | T188: 5 | U188: 0 | V188: 0 | W188: 0
B189: MBY14 | C189: North | D189: RURAL SHORT | E189: 1 | F189: 8.740480941 | G189: 0.09873153535 | H189: 1.714730299 | I189: 0 | J189: 0 | K189: 5 | L189: 1612 | M189: 1612 | N189: 705 | O189: 705 | P189: 4 | Q189: 672386 | R189: 672386 | S189: 1417 | T189: 1417 | U189: 2 | V189: 713 | W189: 713
B190: MDG1 | C190: Central | D190: RURAL SHORT | E190: 753.5 | F190: 7.330461311 | G190: 4.186414167 | H190: 1.211742745 | I190: 14.67327718 | J190: 20.47967231 | K190: 52 | L190: 831925.67 | M190: 360280.67 | N190: 6535 | O190: 4998 | P190: 24 | Q190: 1136073 | R190: 1136073 | S190: 3671 | T190: 3671 | U190: 7 | V190: 15960 | W190: 9810
B191: MDI1 | C191: North | D191: RURAL SHORT | E191: 54.5 | F191: 24.79663295 | G191: 0 | H191: 0.3810511777 | I191: 0.001332902206 | J191: 1.129237922 | K191: 4 | L191: 84 | M191: 84 | N191: 1 | O191: 1 | P191: 5 | Q191: 71165 | R191: 71165 | S191: 213 | T191: 213 | U191: 0 | V191: 0 | W191: 0
B192: MFA14 | C192: East | D192: URBAN | E192: 32 | F192: 0.8723530906 | G192: 0.07772063423 | H192: 8.002074731 | I192: 0 | J192: 0 | K192: 0 | L192: 0 | M192: 0 | N192: 0 | O192: 0 | P192: 0 | Q192: 0 | R192: 0 | S192: 0 | T192: 0 | U192: 0 | V192: 0 | W192: 0
B193: MFA21 | C193: East | D193: RURAL LONG | E193: 2458.5 | F193: 435.6274442 | G193: 1.598708233 | H193: 8.19260032 | I193: 10.60500804 | J193: 16.45772895 | K193: 98 | L193: 544807.27 | M193: 525787.27 | N193: 7861 | O193: 6846 | P193: 60 | Q193: 845477 | R193: 845477 | S193: 2894 | T193: 2894 | U193: 0 | V193: 0 | W193: 0
B194: MFA22 | C194: East | D194: RURAL LONG | E194: 1575.5 | F194: 319.2422171 | G194: 0.2458819155 | H194: 6.173029078 | I194: 16.32555008 | J194: 36.83490906 | K194: 110 | L194: 571917.32 | M194: 531964.32 | N194: 3791 | O194: 2241 | P194: 50 | Q194: 1290402 | R194: 1290402 | S194: 3549 | T194: 3549 | U194: 2 | V194: 3105 | W194: 3105
B195: MFA23 | C195: East | D195: RURAL SHORT | E195: 478 | F195: 126.8798392 | G195: 1.210298543 | H195: 2.286307066 | I195: 0.332345115 | J195: 10.6750415 | K195: 36 | L195: 9338.41 | M195: 8783.41 | N195: 67 | O195: 64 | P195: 25 | Q195: 299953 | R195: 299953 | S195: 1243 | T195: 1243 | U195: 4 | V195: 1858 | W195: 1394
B196: MFA31 | C196: East | D196: RURAL SHORT | E196: 2166.5 | F196: 25.87046067 | G196: 0.6238169411 | H196: 4.915560192 | I196: 2.940800645 | J196: 2.620128177 | K196: 20 | L196: 245732.28 | M196: 245460.28 | N196: 3101 | O196: 3099 | P196: 13 | Q196: 218937 | R196: 218937 | S196: 772 | T196: 772 | U196: 4 | V196: 7139 | W196: 711
B197: MFA34 | C197: East | D197: RURAL SHORT | E197: 1531 | F197: 185.8806061 | G197: 1.619128899 | H197: 8.268810555 | I197: 3.874469103 | J197: 10.73074053 | K197: 51 | L197: 108977.72 | M197: 100926.47 | N197: 2260 | O197: 2230 | P197: 24 | Q197: 301825 | R197: 301825 | S197: 987 | T197: 987 | U197: 4 | V197: 6040 | W197: 6040
B198: MJG11 | C198: North | D198: RURAL SHORT | E198: 1347 | F198: 77.63845273 | G198: 22.71846779 | H198: 12.11742745 | I198: 14.59482041 | J198: 23.10278757 | K198: 32 | L198: 453244 | M198: 453244 | N198: 3899 | O198: 3899 | P198: 14 | Q198: 717460 | R198: 717460 | S198: 1727 | T198: 1727 | U198: 3 | V198: 2873 | W198: 2873
B199: MOE13 | C199: East | D199: RURAL SHORT | E199: 3040 | F199: 32.84654199 | G199: 0.3709355547 | H199: 5.906293254 | I199: 3.856921723 | J199: 8.375272275 | K199: 27 | L199: 330073.15 | M199: 326231.95 | N199: 3174 | O199: 3154 | P199: 29 | Q199: 716751 | R199: 716751 | S199: 2484 | T199: 2484 | U199: 6 | V199: 15769 | W199: 15769
B200: MOE14 | C200: East | D200: RURAL SHORT | E200: 1802.5 | F200: 151.111002 | G200: 10.0801787 | H200: 3.200829892 | I200: 7.399233441 | J200: 9.403069834 | K200: 50 | L200: 479656.88 | M200: 306183.88 | N200: 5572 | O200: 4672 | P200: 38 | Q200: 609556 | R200: 609556 | S200: 2743 | T200: 2743 | U200: 1 | V200: 1345 | W200: 0
B201: MOE21 | C201: East | D201: RURAL SHORT | E201: 684.5 | F201: 186.2958977 | G201: 0.7167995368 | H201: 2.857883832 | I201: 9.237686619 | J201: 3.238187115 | K201: 78 | L201: 424449.74 | M201: 206774.74 | N201: 3611 | O201: 2051 | P201: 14 | Q201: 148787 | R201: 148787 | S201: 576 | T201: 576 | U201: 2 | V201: 1354 | W201: 1354
B202: MOE22 | C202: East | D202: RURAL LONG | E202: 2622.5 | F202: 256.4659253 | G202: 3.29132907 | H202: 6.058713725 | I202: 3.12643703 | J202: 8.325009238 | K202: 76 | L202: 200514.99 | M202: 64602.99 | N202: 1547 | O202: 508 | P202: 55 | Q202: 533927 | R202: 533927 | S202: 2089 | T202: 2089 | U202: 2 | V202: 5171 | W202: 2586
B203: MOE23 | C203: East | D203: RURAL SHORT | E203: 1159.5 | F203: 9.411328826 | G203: 1.101564725 | H203: 1.981466124 | I203: 0.1420832526 | J203: 1.584310977 | K203: 12 | L203: 14258 | M203: 14055 | N203: 147 | O203: 146 | P203: 9 | Q203: 158985 | R203: 158985 | S203: 749 | T203: 749 | U203: 2 | V203: 2265 | W203: 2265
B204: MOE24 | C204: East | D204: RURAL SHORT | E204: 2088 | F204: 17.35144679 | G204: 1.513249796 | H204: 5.029875545 | I204: 0.896107545 | J204: 0.7398982349 | K204: 15 | L204: 60054.73 | M204: 60054.73 | N204: 794 | O204: 794 | P204: 6 | Q204: 49586 | R204: 49586 | S204: 300 | T204: 300 | U204: 3 | V204: 6204 | W204: 6204
... 158 more rows

Sheet 3.6.9 Network-reliability
B1: =(LOOKUP(dms_Model,dms_Model_List,dms_Worksheet_List)) -> ANNUAL REPORTING STATEMENT
B2: =dms_TradingName -> AusNet (D)
B3: =CONCATENATE("Annual Reporting RIN Response ",CRY) -> Annual Reporting RIN Response 2016
B4: 3.6 QUALITY OF SERVICES
B7: 3.6.9 - NETWORK FEEDER RELIABILITY - PLANNED OUTAGES
C8: =CRY -> 2016
B9: 3.6.9.1 - PLANNED MINUTES OFF SUPPLY (SAIDI)
B10: =INDEX(dms_FeederName_1,MATCH(dms_TradingName,dms_TradingName_List)) -> CBD | C10: 0
B11: =INDEX(dms_FeederName_2,MATCH(dms_TradingName,dms_TradingName_List)) -> Urban | C11: 131.7006106
B12: =INDEX(dms_FeederName_3,MATCH(dms_TradingName,dms_TradingName_List)) -> Short rural | C12: 233.2623594
B13: =INDEX(dms_FeederName_4,MATCH(dms_TradingName,dms_TradingName_List)) -> Long rural | C13: 282.2442606
B14: =IF((INDEX(dms_FeederName_5,MATCH(dms_TradingName,dms_TradingName_List))=0),"",(INDEX(dms_FeederName_5,MATCH(dms_TradingName,dms_TradingName_List)))) -> 
C16: =CRY -> 2016
B17: 3.6.9.2 - PLANNED INTERRUPTIONS TO SUPPLY (SAIFI)
B18: =INDEX(dms_FeederName_1,MATCH(dms_TradingName,dms_TradingName_List)) -> CBD | C18: 0
B19: =INDEX(dms_FeederName_2,MATCH(dms_TradingName,dms_TradingName_List)) -> Urban | C19: 0.426190522
B20: =INDEX(dms_FeederName_3,MATCH(dms_TradingName,dms_TradingName_List)) -> Short rural | C20: 0.8501740837
B21: =INDEX(dms_FeederName_4,MATCH(dms_TradingName,dms_TradingName_List)) -> Long rural | C21: 1.117554643
B22: =IF((INDEX(dms_FeederName_5,MATCH(dms_TradingName,dms_TradingName_List))=0),"",(INDEX(dms_FeederName_5,MATCH(dms_TradingName,dms_TradingName_List)))) -> 

Sheet 4.1 Public lighting
B1: =(LOOKUP(dms_Model,dms_Model_List,dms_Worksheet_List)) -> ANNUAL REPORTING STATEMENT
B2: =dms_TradingName -> AusNet (D)
B3: =CONCATENATE("Annual Reporting RIN Response ",CRY) -> Annual Reporting RIN Response 2016
B4: 4.1 PUBLIC LIGHTING
B6: Tables 4.1.1 - 4.1.3 deliberately omitted.
B8: 4.1.4 - PUBLIC LIGHTING METRICS BY TARIFF
C9: Number of Lights | D9: Public Lighting Revenue
B10: Tariff categories | C10: 0's | D10: $0's, nominal
B11: 50W Colour Corrected Mercury Vapour - Central | C11: =[7]PMS_Revenue_Summary!J24 -> 75 | D11: =[7]PMS_Revenue_Summary!H24 -> 4514.04
B12: 80W Colour Corrected Mercury Vapour - Central | C12: =[7]PMS_Revenue_Summary!J25 -> 33071 | D12: =[7]PMS_Revenue_Summary!H25 -> 1208595.04
B13: 125W Colour Corrected Mercury Vapour - Central | C13: =[7]PMS_Revenue_Summary!J26 -> 425 | D13: =[7]PMS_Revenue_Summary!H26 -> 23510.56
B14: 250W Colour Corrected Mercury Vapour - Central | C14: =[7]PMS_Revenue_Summary!J27 -> 702 | D14: =[7]PMS_Revenue_Summary!H27 -> 69092.69
B15: 400W Colour Corrected Mercury Vapour - Central | C15: =[7]PMS_Revenue_Summary!J28 -> 143 | D15: =[7]PMS_Revenue_Summary!H28 -> 13930.07
B16: 50W High Pressure Sodium - Central | C16: =[7]PMS_Revenue_Summary!J29 -> 0 | D16: =[7]PMS_Revenue_Summary!H29 -> 0
B17: 100W High Pressure Sodium - Central | C17: =[7]PMS_Revenue_Summary!J30 -> 2851 | D17: =[7]PMS_Revenue_Summary!H30 -> 276844.45
B18: 150W High Pressure Sodium - Central | C18: =[7]PMS_Revenue_Summary!J31 -> 15306 | D18: =[7]PMS_Revenue_Summary!H31 -> 1376852.01
B19: 250W High Pressure Sodium - Central | C19: =[7]PMS_Revenue_Summary!J32 -> 6810 | D19: =[7]PMS_Revenue_Summary!H32 -> 602725.06
B20: 400W High Pressure Sodium - Central | C20: =[7]PMS_Revenue_Summary!J33 -> 282 | D20: =[7]PMS_Revenue_Summary!H33 -> 35351.44
B21: 32W Compact Fluorescent - Central | C21: =[7]PMS_Revenue_Summary!J34 -> 2908 | D21: =[7]PMS_Revenue_Summary!H34 -> 87057.79
B22: 42W Compact Fluorescent - Central | C22: =[7]PMS_Revenue_Summary!J35 -> 1570 | D22: =[7]PMS_Revenue_Summary!H35 -> 46272.78
B23: 2x14W T5 Fluorescent - Central | C23: =[7]PMS_Revenue_Summary!J36 -> 21929 | D23: =[7]PMS_Revenue_Summary!H36 -> 749464.31
B24: 2x24W T5 Fluorescent - Central | C24: =[7]PMS_Revenue_Summary!J37 -> 1690 | D24: =[7]PMS_Revenue_Summary!H37 -> 63299.79
B25: 18W LED - Central | C25: =[7]PMS_Revenue_Summary!J38 -> 12368 | D25: =[7]PMS_Revenue_Summary!H38 -> 209625.49
B26: 70W Metal Halide - Central | C26: =[7]PMS_Revenue_Summary!J39 -> 31 | D26: =[7]PMS_Revenue_Summary!H39 -> 5076.24
B27: 100W Metal Halide - Central | C27: =[7]PMS_Revenue_Summary!J40 -> 34 | D27: =[7]PMS_Revenue_Summary!H40 -> 7610.88
B28: 150W Metal Halide - Central | C28: =[7]PMS_Revenue_Summary!J41 -> 33 | D28: =[7]PMS_Revenue_Summary!H41 -> 8498.15
B29: 50W Colour Corrected Mercury Vapour - North & East | C29: =[7]PMS_Revenue_Summary!J42 -> 146 | D29: =[7]PMS_Revenue_Summary!H42 -> 9371.82
B30: 80W Colour Corrected Mercury Vapour - North & East | C30: =[7]PMS_Revenue_Summary!J43 -> 6984 | D30: =[7]PMS_Revenue_Summary!H43 -> 319970.63
B31: 125W Colour Corrected Mercury Vapour - North & East | C31: =[7]PMS_Revenue_Summary!J44 -> 26 | D31: =[7]PMS_Revenue_Summary!H44 -> 1763.63
B32: 250W Colour Corrected Mercury Vapour - North & East | C32: =[7]PMS_Revenue_Summary!J45 -> 277 | D32: =[7]PMS_Revenue_Summary!H45 -> 34864.17
B33: 400W Colour Corrected Mercury Vapour - North & East | C33: =[7]PMS_Revenue_Summary!J46 -> 92 | D33: =[7]PMS_Revenue_Summary!H46 -> 10756.89
B34: 50W High Pressure Sodium - North & East | C34: =[7]PMS_Revenue_Summary!J47 -> 0 | D34: =[7]PMS_Revenue_Summary!H47 -> 747.24
B35: 100W High Pressure Sodium - North & East | C35: =[7]PMS_Revenue_Summary!J48 -> 244 | D35: =[7]PMS_Revenue_Summary!H48 -> 32785.54
B36: 150W High Pressure Sodium - North & East | C36: =[7]PMS_Revenue_Summary!J49 -> 5333 | D36: =[7]PMS_Revenue_Summary!H49 -> 578417.64
B37: 250W High Pressure Sodium - North & East | C37: =[7]PMS_Revenue_Summary!J50 -> 5034 | D37: =[7]PMS_Revenue_Summary!H50 -> 527231.96
B38: 400W High Pressure Sodium - North & East | C38: =[7]PMS_Revenue_Summary!J51 -> 349 | D38: =[7]PMS_Revenue_Summary!H51 -> 53022.17
B39: 32W Compact Fluorescent - North & East | C39: =[7]PMS_Revenue_Summary!J52 -> 640 | D39: =[7]PMS_Revenue_Summary!H52 -> 22278.41
B40: 42W Compact Fluorescent - North & East | C40: =[7]PMS_Revenue_Summary!J53 -> 2614 | D40: =[7]PMS_Revenue_Summary!H53 -> 92786.83
B41: 2x14W T5 Fluorescent - North & East | C41: =[7]PMS_Revenue_Summary!J54 -> 7036 | D41: =[7]PMS_Revenue_Summary!H54 -> 278361.24
B42: 2x24W T5 Fluorescent - North & East | C42: =[7]PMS_Revenue_Summary!J55 -> 1002 | D42: =[7]PMS_Revenue_Summary!H55 -> 43767.53
B43: 18W LED - North & East | C43: =[7]PMS_Revenue_Summary!J56 -> 14920 | D43: =[7]PMS_Revenue_Summary!H56 -> 276974.07
B48: To enter further tariff categories - please insert new lines above this line.
B49: Total | C49: =SUM(C11:C47) -> 144925 | D49: =SUM(D11:D47) -> 7071420.56

Sheet 6.2 STPIS Reliability
B1: =(LOOKUP(dms_Model,dms_Model_List,dms_Worksheet_List)) -> ANNUAL REPORTING STATEMENT
B2: =dms_TradingName -> AusNet (D)
B3: =CONCATENATE("Annual Reporting RIN Response ",CRY) -> Annual Reporting RIN Response 2016
B4: 6.2 RELIABILITY AND CUSTOMER SERVICE PERFORMANCE
B6: Did the MAIFI parameter of the STPIS apply during the period? NB:This flag is set from the response on worksheet 3.6.8 Network feeders | D6: ='3.6.8 Network-feeders'!F6 -> Yes
B9: 6.2.1 - UNPLANNED MINUTES OFF SUPPLY (SAIDI)
D10: =CRY -> 2016
B11: Total sustained minutes off supply | C11: =INDEX(dms_FeederName_1,MATCH(dms_TradingName,dms_TradingName_List)) -> CBD | D11: 0
C12: =INDEX(dms_FeederName_2,MATCH(dms_TradingName,dms_TradingName_List)) -> Urban | D12: 175.2891092
C13: =INDEX(dms_FeederName_3,MATCH(dms_TradingName,dms_TradingName_List)) -> Short rural | D13: 580.1092611
C14: =INDEX(dms_FeederName_4,MATCH(dms_TradingName,dms_TradingName_List)) -> Long rural | D14: 509.7574774
C15: =IF((INDEX(dms_FeederName_5,MATCH(dms_TradingName,dms_TradingName_List))=0),"",(INDEX(dms_FeederName_5,MATCH(dms_TradingName,dms_TradingName_List)))) -> 
C16: Whole Network | D16: 386.2907232
B17: Total of excluded events* *see 3.3 of STPIS | C17: =INDEX(dms_FeederName_1,MATCH(dms_TradingName,dms_TradingName_List)) -> CBD | D17: 0
C18: =INDEX(dms_FeederName_2,MATCH(dms_TradingName,dms_TradingName_List)) -> Urban | D18: 91.5539222
C19: =INDEX(dms_FeederName_3,MATCH(dms_TradingName,dms_TradingName_List)) -> Short rural | D19: 362.2889469
C20: =INDEX(dms_FeederName_4,MATCH(dms_TradingName,dms_TradingName_List)) -> Long rural | D20: 212.3896529
C21: =IF((INDEX(dms_FeederName_5,MATCH(dms_TradingName,dms_TradingName_List))=0),"",(INDEX(dms_FeederName_5,MATCH(dms_TradingName,dms_TradingName_List)))) -> 
C22: Whole Network | D22: 214.9173887
B23: Total sustained minutes off supply after removing excluded events | C23: =INDEX(dms_FeederName_1,MATCH(dms_TradingName,dms_TradingName_List)) -> CBD | D23: 0
C24: =INDEX(dms_FeederName_2,MATCH(dms_TradingName,dms_TradingName_List)) -> Urban | D24: 83.73518705
C25: =INDEX(dms_FeederName_3,MATCH(dms_TradingName,dms_TradingName_List)) -> Short rural | D25: 217.8203142
C26: =INDEX(dms_FeederName_4,MATCH(dms_TradingName,dms_TradingName_List)) -> Long rural | D26: 297.3678245
C27: =IF((INDEX(dms_FeederName_5,MATCH(dms_TradingName,dms_TradingName_List))=0),"",(INDEX(dms_FeederName_5,MATCH(dms_TradingName,dms_TradingName_List)))) -> 
C28: Whole Network | D28: 171.3733345
B31: 6.2.2 - UNPLANNED INTERRUPTIONS TO SUPPLY (SAIFI)
D32: =CRY -> 2016
B33: Total sustained interruptions | C33: =INDEX(dms_FeederName_1,MATCH(dms_TradingName,dms_TradingName_List)) -> CBD | D33: 0
C34: =INDEX(dms_FeederName_2,MATCH(dms_TradingName,dms_TradingName_List)) -> Urban | D34: 1.15576944
C35: =INDEX(dms_FeederName_3,MATCH(dms_TradingName,dms_TradingName_List)) -> Short rural | D35: 3.008895077
C36: =INDEX(dms_FeederName_4,MATCH(dms_TradingName,dms_TradingName_List)) -> Long rural | D36: 3.530373179
C37: =IF((INDEX(dms_FeederName_5,MATCH(dms_TradingName,dms_TradingName_List))=0),"",(INDEX(dms_FeederName_5,MATCH(dms_TradingName,dms_TradingName_List)))) -> 
C38: Whole Network | D38: 2.26723761
B39: Total of excluded events* *see 3.3 of STPIS | C39: =INDEX(dms_FeederName_1,MATCH(dms_TradingName,dms_TradingName_List)) -> CBD | D39: 0
C40: =INDEX(dms_FeederName_2,MATCH(dms_TradingName,dms_TradingName_List)) -> Urban | D40: 0.2934558951
C41: =INDEX(dms_FeederName_3,MATCH(dms_TradingName,dms_TradingName_List)) -> Short rural | D41: 0.8485291687
C42: =INDEX(dms_FeederName_4,MATCH(dms_TradingName,dms_TradingName_List)) -> Long rural | D42: 0.7260558831
C43: =IF((INDEX(dms_FeederName_5,MATCH(dms_TradingName,dms_TradingName_List))=0),"",(INDEX(dms_FeederName_5,MATCH(dms_TradingName,dms_TradingName_List)))) -> 
C44: Whole Network | D44: 0.5782841214
B45: Total sustained interruptions after removing excluded events | C45: =INDEX(dms_FeederName_1,MATCH(dms_TradingName,dms_TradingName_List)) -> CBD | D45: 0
C46: =INDEX(dms_FeederName_2,MATCH(dms_TradingName,dms_TradingName_List)) -> Urban | D46: 0.8623135453
C47: =INDEX(dms_FeederName_3,MATCH(dms_TradingName,dms_TradingName_List)) -> Short rural | D47: 2.160365908
C48: =INDEX(dms_FeederName_4,MATCH(dms_TradingName,dms_TradingName_List)) -> Long rural | D48: 2.804317296
C49: =IF((INDEX(dms_FeederName_5,MATCH(dms_TradingName,dms_TradingName_List))=0),"",(INDEX(dms_FeederName_5,MATCH(dms_TradingName,dms_TradingName_List)))) -> 
C50: Whole Network | D50: 1.688953488
B53: 6.2.3 - UNPLANNED MOMENTARY INTERRUPTIONS TO SUPPLY (MAIFI)
D54: =CRY -> 2016
B55: Total momentary interruptions | C55: =INDEX(dms_FeederName_1,MATCH(dms_TradingName,dms_TradingName_List)) -> CBD | D55: 0
C56: =INDEX(dms_FeederName_2,MATCH(dms_TradingName,dms_TradingName_List)) -> Urban | D56: 2.500301276
C57: =INDEX(dms_FeederName_3,MATCH(dms_TradingName,dms_TradingName_List)) -> Short rural | D57: 5.592828475
C58: =INDEX(dms_FeederName_4,MATCH(dms_TradingName,dms_TradingName_List)) -> Long rural | D58: 10.76605338
C59: =IF((INDEX(dms_FeederName_5,MATCH(dms_TradingName,dms_TradingName_List))=0),"",(INDEX(dms_FeederName_5,MATCH(dms_TradingName,dms_TradingName_List)))) -> 
C60: Whole Network | D60: 5.09774979
B61: Total of excluded events* *see 3.3 of STPIS | C61: =INDEX(dms_FeederName_1,MATCH(dms_TradingName,dms_TradingName_List)) -> CBD | D61: 0
C62: =INDEX(dms_FeederName_2,MATCH(dms_TradingName,dms_TradingName_List)) -> Urban | D62: 0.2653634866
C63: =INDEX(dms_FeederName_3,MATCH(dms_TradingName,dms_TradingName_List)) -> Short rural | D63: 0.7221746307
C64: =INDEX(dms_FeederName_4,MATCH(dms_TradingName,dms_TradingName_List)) -> Long rural | D64: 1.057112496
C65: =IF((INDEX(dms_FeederName_5,MATCH(dms_TradingName,dms_TradingName_List))=0),"",(INDEX(dms_FeederName_5,MATCH(dms_TradingName,dms_TradingName_List)))) -> 
C66: Whole Network | D66: 0.5749686432
B67: Total momentary interruptions after removing excluded events | C67: =INDEX(dms_FeederName_1,MATCH(dms_TradingName,dms_TradingName_List)) -> CBD | D67: 0
C68: =INDEX(dms_FeederName_2,MATCH(dms_TradingName,dms_TradingName_List)) -> Urban | D68: 2.23493779
C69: =INDEX(dms_FeederName_3,MATCH(dms_TradingName,dms_TradingName_List)) -> Short rural | D69: 4.870653844
C70: =INDEX(dms_FeederName_4,MATCH(dms_TradingName,dms_TradingName_List)) -> Long rural | D70: 9.708940887
C71: =IF((INDEX(dms_FeederName_5,MATCH(dms_TradingName,dms_TradingName_List))=0),"",(INDEX(dms_FeederName_5,MATCH(dms_TradingName,dms_TradingName_List)))) -> 
C72: Whole Network | D72: 4.522781147
B75: 6.2.4 - DISTRIBUTION CUSTOMER NUMBERS
D76: =CRY -> 2016
B77: Customer numbers at the start of the period | C77: =INDEX(dms_FeederName_1,MATCH(dms_TradingName,dms_TradingName_List)) -> CBD | D77: 0
C78: =INDEX(dms_FeederName_2,MATCH(dms_TradingName,dms_TradingName_List)) -> Urban | D78: 312330
C79: =INDEX(dms_FeederName_3,MATCH(dms_TradingName,dms_TradingName_List)) -> Short rural | D79: 256757
C80: =INDEX(dms_FeederName_4,MATCH(dms_TradingName,dms_TradingName_List)) -> Long rural | D80: 119435
C81: =IF((INDEX(dms_FeederName_5,MATCH(dms_TradingName,dms_TradingName_List))=0),"",(INDEX(dms_FeederName_5,MATCH(dms_TradingName,dms_TradingName_List)))) -> 
C82: Whole Network | D82: 688522
B83: Customer numbers at the end of the period | C83: =INDEX(dms_FeederName_1,MATCH(dms_TradingName,dms_TradingName_List)) -> CBD
C84: =INDEX(dms_FeederName_2,MATCH(dms_TradingName,dms_TradingName_List)) -> Urban | D84: 311682
C85: =INDEX(dms_FeederName_3,MATCH(dms_TradingName,dms_TradingName_List)) -> Short rural | D85: 269714
C86: =INDEX(dms_FeederName_4,MATCH(dms_TradingName,dms_TradingName_List)) -> Long rural | D86: 120530
C87: =IF((INDEX(dms_FeederName_5,MATCH(dms_TradingName,dms_TradingName_List))=0),"",(INDEX(dms_FeederName_5,MATCH(dms_TradingName,dms_TradingName_List)))) -> 
C88: Whole Network | D88: 701926
B89: Average customer numbers | C89: =INDEX(dms_FeederName_1,MATCH(dms_TradingName,dms_TradingName_List)) -> CBD | D89: 0
C90: =INDEX(dms_FeederName_2,MATCH(dms_TradingName,dms_TradingName_List)) -> Urban | D90: 312006
C91: =INDEX(dms_FeederName_3,MATCH(dms_TradingName,dms_TradingName_List)) -> Short rural | D91: 263236
C92: =INDEX(dms_FeederName_4,MATCH(dms_TradingName,dms_TradingName_List)) -> Long rural | D92: 119983
C93: =IF((INDEX(dms_FeederName_5,MATCH(dms_TradingName,dms_TradingName_List))=0),"",(INDEX(dms_FeederName_5,MATCH(dms_TradingName,dms_TradingName_List)))) ->  | D93: 0
C94: Whole Network | D94: 695224

Sheet 6.6 STPIS Customer Service
B1: =(LOOKUP(dms_Model,dms_Model_List,dms_Worksheet_List)) -> ANNUAL REPORTING STATEMENT
B2: =dms_TradingName -> AusNet (D)
B3: =CONCATENATE("Annual Reporting RIN Response ",CRY) -> Annual Reporting RIN Response 2016
B4: 6.6 STPIS CUSTOMER SERVICE
B7: 6.6.1 - TELEPHONE ANSWERING
C8: Number of calls after removing excluded events | D8: Total number of calls
C9: =CRY -> 2016 | D9: =CRY -> 2016
B10: Number of calls received | C10: ='[6]6.6 STPIS Customer Service'!$C$11 -> 93080 | D10: =[6]!dms_060601_02_Values -> 111546
B11: Number of calls answered within 30 seconds | C11: ='[6]6.6 STPIS Customer Service'!$C$12 -> 76109
B12: Percentage of calls answered within 30 seconds | C12: =C11/C10 -> 0.8176729695

Sheet 6.7 STPIS Daily Performance
B1: =(LOOKUP(dms_Model,dms_Model_List,dms_Worksheet_List)) -> ANNUAL REPORTING STATEMENT | I1: =CONCATENATE(IF(LEN(CRY)=4,"1-Jan-","1-Jul-"),LEFT(CRY,4)) -> 1-Jan-2016
B2: =dms_TradingName -> AusNet (D)
B3: =CONCATENATE("Annual Reporting RIN Response ",CRY) -> Annual Reporting RIN Response 2016
B4: 6.7 STPIS DAILY PERFORMANCE
B7: Did the MAIFI parameter of the STPIS apply during the period? This flag is set from the response on worksheet 3.6.8 Network feeders | G7: =dms_MAIFI_Flag -> 
B9: The excluded events to be removed from the data refer only to events listed in clause 3.3(a) of the STPIS, with respect to reliability data, and in clause 5.4 of the STPIS with respect to customer service parameters. *Customer service information must be reported as per the definitions in the STPIS, that is excluding: • calls to payment lines and automated interactive services • calls abandoned by the customer within 30 seconds of the call being queued for response by a human operator (where the time in which a telephone call is abandoned is not measured, then an estimate of the number of calls abandoned within 30 seconds will be determined by taking 20 per cent of all calls abandoned).
B11: 6.7.1 - DAILY PERFORMANCE DATA - UNPLANNED
B12: Date | C12: Customer service* | E12: MAIFI
C13: Number of calls received (after removing excluded events) | D13: Number of calls answered in 30 seconds (after removing excluded events) | E13: =INDEX(dms_FeederName_1,MATCH(dms_TradingName,dms_TradingName_List)) -> CBD | G13: =INDEX(dms_FeederName_2,MATCH(dms_TradingName,dms_TradingName_List)) -> Urban | I13: =INDEX(dms_FeederName_3,MATCH(dms_TradingName,dms_TradingName_List)) -> Short rural | K13: =INDEX(dms_FeederName_4,MATCH(dms_TradingName,dms_TradingName_List)) -> Long rural | M13: =IF((INDEX(dms_FeederName_5,MATCH(dms_TradingName,dms_TradingName_List))=0),"Network",(INDEX(dms_FeederName_5,MATCH(dms_TradingName,dms_TradingName_List)))) -> Network | O13: Network
E14: All events | F14: After removing excluded events | G14: All events | H14: After removing excluded events | I14: All events | J14: After removing excluded events | K14: All events | L14: After removing excluded events | M14: All events | N14: After removing excluded events | O14: All events | P14: After removing excluded events
B15: =CONCATENATE(IF(LEN(CRY)=4,"1-Jan-","1-Jul-"),LEFT(CRY,4)) -> 1-Jan-2016 | C15: 137 | D15: 135 | E15: N/A | F15: N/A | G15: 0.01598687205 | H15: 0.01598687205 | I15: 0.02579054537 | J15: 0.02579054537 | K15: 0.02659543435 | L15: 0.02659543435 | M15: 0.02152975156 | N15: 0.02152975156
B16: =B15+1 -> 2016-01-02 | C16: 319 | D16: 227 | E16: N/A | F16: N/A | G16: 0.0395377012 | H16: 0.0395377012 | I16: 0.01695436794 | J16: 0.01695436794 | K16: 0.1179333739 | L16: 0.1179333739 | M16: 0.04451658746 | N16: 0.04451658746
B17: 2016-01-03 | C17: 377 | D17: 315 | E17: N/A | F17: N/A | G17: 0 | H17: 0 | I17: 0.01408621921 | J17: 0.01408621921 | K17: 0.08589550186 | L17: 0.08589550186 | M17: 0.02015753196 | N17: 0.02015753196
B18: 2016-01-04 | C18: 327 | D18: 292 | E18: N/A | F18: N/A | G18: 0.01618879124 | H18: 0.01618879124 | I18: 0.01054187117 | J18: 0.01054187117 | K18: 0.06120867123 | L18: 0.06120867123 | M18: 0.0218203054 | N18: 0.0218203054
B19: 2016-01-05 | C19: 320 | D19: 282 | E19: N/A | F19: N/A | G19: 0.02465978218 | H19: 0.02465978218 | I19: 0.009671929371 | J19: 0.009671929371 | K19: 0.02493686606 | L19: 0.02493686606 | M19: 0.01903271464 | N19: 0.01903271464
B20: 2016-01-06 | C20: 213 | D20: 203 | E20: N/A | F20: N/A | G20: 0.004144151074 | H20: 0.004144151074 | I20: 0.008490480026 | J20: 0.008490480026 | K20: 0.004800680096 | L20: 0.004800680096 | M20: 0.005903133379 | N20: 0.005903133379
B21: 2016-01-07 | C21: 211 | D21: 193 | E21: N/A | F21: N/A | G21: 0.02346749742 | H21: 0.02346749742 | I21: 0.01771794132 | J21: 0.01771794132 | K21: 0.02368668895 | L21: 0.02368668895 | M21: 0.02132837762 | N21: 0.02132837762
B22: 2016-01-08 | C22: 153 | D22: 139 | E22: N/A | F22: N/A | G22: 0 | H22: 0 | I22: 0.003643118722 | J22: 0.003643118722 | K22: 0.009751381446 | L22: 0.009751381446 | M22: 0.003062322359 | N22: 0.003062322359
B23: 2016-01-09 | C23: 116 | D23: 108 | E23: N/A | F23: N/A | G23: 0.01265039775 | H23: 0.01265039775 | I23: 0.007916850279 | J23: 0.007916850279 | K23: 0.02738721319 | L23: 0.02738721319 | M23: 0.01340143608 | N23: 0.01340143608
B24: 2016-01-10 | C24: 158 | D24: 148 | E24: N/A | F24: N/A | G24: 0.006403723005 | H24: 0.006403723005 | I24: 0.01439392788 | J24: 0.01439392788 | K24: 0.006709283815 | L24: 0.006709283815 | M24: 0.00948183607 | N24: 0.00948183607
B25: 2016-01-11 | C25: 352 | D25: 316 | E25: N/A | F25: N/A | G25: 0.005339640904 | H25: 0.005339640904 | I25: 0.01124846146 | J25: 0.01124846146 | K25: 0.009409666369 | L25: 0.009409666369 | M25: 0.008279345937 | N25: 0.008279345937
B26: 2016-01-12 | C26: 318 | D26: 287 | E26: N/A | F26: N/A | G26: 0.01272411428 | H26: 0.01272411428 | I26: 0.007726906654 | J26: 0.007726906654 | K26: 0.004692331414 | L26: 0.004692331414 | M26: 0.009445876437 | N26: 0.009445876437
B27: 2016-01-13 | E27: N/A | F27: N/A | G27: 0.0898796818 | H27: 0.0898796818 | I27: 0.09885046118 | J27: 0.09885046118 | K27: 0.2671378445 | L27: 0.2671378445 | M27: 0.1238679907 | N27: 0.1238679907
B28: 2016-01-14 | C28: 471 | D28: 674 | E28: N/A | F28: N/A | G28: 0.01414716384 | H28: 0.01414716384 | I28: 0.03929553708 | J28: 0.03929553708 | K28: 0.05628297342 | L28: 0.05628297342 | M28: 0.03094110675 | N28: 0.03094110675
B29: 2016-01-15 | C29: 290 | D29: 236 | E29: N/A | F29: N/A | G29: 0.0003012762575 | H29: 0.0003012762575 | I29: 0.02308194928 | J29: 0.02308194928 | K29: 0.01958610803 | L29: 0.01958610803 | M29: 0.01225504298 | N29: 0.01225504298
B30: 2016-01-16 | C30: 146 | D30: 124 | E30: N/A | F30: N/A | G30: 0.007281911245 | H30: 0.007281911245 | I30: 0.001352398608 | J30: 0.001352398608 | K30: 0.02821233008 | L30: 0.02821233008 | M30: 0.008649010966 | N30: 0.008649010966
B31: 2016-01-17 | C31: 116 | D31: 111 | E31: N/A | F31: N/A | G31: 0 | H31: 0 | I31: 0.008642434925 | J31: 0.008642434925 | K31: 0.0008751239759 | L31: 0.0008751239759 | M31: 0.003423357076 | N31: 0.003423357076
B32: 2016-01-18 | C32: 316 | D32: 288 | E32: N/A | F32: N/A | G32: 0.07199541034 | H32: 0.07199541034 | I32: 0.08479843183 | J32: 0.08479843183 | K32: 0.02801230174 | L32: 0.02801230174 | M32: 0.06925249991 | N32: 0.06925249991
B33: 2016-01-19 | C33: 297 | D33: 240 | E33: N/A | F33: N/A | G33: 0.01839067197 | H33: 0.01839067197 | I33: 0.02272105639 | J33: 0.02272105639 | K33: 0.01804422293 | L33: 0.01804422293 | M33: 0.01997054187 | N33: 0.01997054187
B34: 2016-01-20 | C34: 522 | D34: 468 | E34: N/A | F34: N/A | G34: 0.01297410947 | H34: 0.01297410947 | I34: 0.01404063274 | J34: 0.01404063274 | K34: 0.01949442838 | L34: 0.01949442838 | M34: 0.01450323924 | N34: 0.01450323924
B35: 2016-01-21 | C35: 260 | D35: 239 | E35: N/A | F35: N/A | G35: 0 | H35: 0 | I35: 0.005892051239 | J35: 0.005892051239 | K35: 0.002633706442 | L35: 0.002633706442 | M35: 0.002685465404 | N35: 0.002685465404
B36: 2016-01-22 | C36: 311 | D36: 265 | E36: N/A | F36: N/A | G36: 0.0001057671968 | H36: 0.0001057671968 | I36: 0.003369599903 | J36: 0.003369599903 | K36: 0.01164331614 | L36: 0.01164331614 | M36: 0.003332738801 | N36: 0.003332738801
B37: 2016-01-23 | C37: 122 | D37: 105 | E37: N/A | F37: N/A | G37: 0.02485208618 | H37: 0.02485208618 | I37: 0 | J37: 0 | K37: 0.008784577815 | L37: 0.008784577815 | M37: 0.01266929795 | N37: 0.01266929795
B38: 2016-01-24 | C38: 133 | D38: 125 | E38: N/A | F38: N/A | G38: 0.005881297155 | H38: 0.005881297155 | I38: 0.009052713155 | J38: 0.009052713155 | K38: 0.04636490169 | L38: 0.04636490169 | M38: 0.01406884688 | N38: 0.01406884688
B39: 2016-01-25 | C39: 192 | D39: 184 | E39: N/A | F39: N/A | G39: 0.01259911668 | H39: 0.01259911668 | I39: 0.005432387667 | J39: 0.005432387667 | K39: 0.003433819791 | L39: 0.003433819791 | M39: 0.008303798488 | N39: 0.008303798488
B40: 2016-01-26 | C40: 116 | D40: 110 | E40: N/A | F40: N/A | G40: 0.001535226887 | H40: 0.001535226887 | I40: 0.01785090185 | J40: 0.01785090185 | K40: 0.01706908479 | L40: 0.01706908479 | M40: 0.01039377237 | N40: 0.01039377237
B41: 2016-01-27 | C41: 700 | D41: 355 | E41: N/A | F41: N/A | G41: 0.01117286206 | H41: 0.01117286206 | I41: 0.02641356046 | J41: 0.02641356046 | K41: 0.1034979955 | L41: 0.1034979955 | M41: 0.0328771734 | N41: 0.0328771734
B42: 2016-01-28 | C42: 578 | D42: 435 | E42: N/A | F42: N/A | G42: 0.01405742197 | H42: 0.01405742197 | I42: 0.1093771369 | J42: 0.1093771369 | K42: 0.3382479185 | L42: 0.3382479185 | M42: 0.1060981784 | N42: 0.1060981784
B43: 2016-01-29 | C43: 448 | D43: 341 | E43: N/A | F43: N/A | G43: 0.02110856842 | H43: 0.02110856842 | I43: 0.0351357717 | J43: 0.0351357717 | K43: 0.05492444763 | L43: 0.05492444763 | M43: 0.03225579094 | N43: 0.03225579094
B44: 2016-01-30 | C44: 276 | D44: 232 | E44: N/A | F44: N/A | G44: 0.009278667718 | H44: 0.009278667718 | I44: 0.06164810284 | J44: 0.06164810284 | K44: 0.1567722094 | L44: 0.1567722094 | M44: 0.05456227058 | N44: 0.05456227058
B45: 2016-01-31 | C45: 369 | D45: 298 | E45: N/A | F45: N/A | G45: 0 | H45: 0 | I45: 0.006765791913 | J45: 0.006765791913 | K45: 0.131635315 | L45: 0.131635315 | M45: 0.02527962211 | N45: 0.02527962211
B46: 2016-02-01 | C46: 338 | D46: 311 | E46: N/A | F46: N/A | G46: 0.01475292142 | H46: 0.01475292142 | I46: 0.004315519154 | J46: 0.004315519154 | K46: 0.01110990724 | L46: 0.01110990724 | M46: 0.01017226103 | N46: 0.01017226103
B47: 2016-02-02 | C47: 393 | D47: 295 | E47: N/A | F47: N/A | G47: 0.0120702807 | H47: 0.0120702807 | I47: 0.01570833777 | J47: 0.01570833777 | K47: 0.04596484502 | L47: 0.04596484502 | M47: 0.01929737754 | N47: 0.01929737754
B48: 2016-02-03 | C48: 408 | D48: 330 | E48: N/A | F48: N/A | G48: 0.00809920322 | H48: 0.00809920322 | I48: 0.02791411509 | J48: 0.02791411509 | K48: 0.02871240092 | L48: 0.02871240092 | M48: 0.01915929254 | N48: 0.01915929254
B49: 2016-02-04 | C49: 236 | D49: 216 | E49: N/A | F49: N/A | G49: 0.005878092088 | H49: 0.005878092088 | I49: 0.008551261985 | J49: 0.008551261985 | K49: 0.01596892893 | L49: 0.01596892893 | M49: 0.008631750342 | N49: 0.008631750342
B50: 2016-02-05 | C50: 379 | D50: 256 | E50: N/A | F50: N/A | G50: 0.01072415274 | H50: 0.01072415274 | I50: 0.001348599736 | J50: 0.001348599736 | K50: 0.03209621363 | L50: 0.03209621363 | M50: 0.01086268598 | N50: 0.01086268598
B51: 2016-02-06 | C51: 137 | D51: 119 | E51: N/A | F51: N/A | G51: 0 | H51: 0 | I51: 0.0001937424972 | J51: 0.0001937424972 | K51: 0.01207671087 | L51: 0.01207671087 | M51: 0.002157577989 | N51: 0.002157577989
B52: 2016-02-07 | C52: 149 | D52: 143 | E52: N/A | F52: N/A | G52: 0 | H52: 0 | I52: 0 | J52: 0 | K52: 0.0006750956385 | L52: 0.0006750956385 | M52: 0.0001165092114 | N52: 0.0001165092114
B53: 2016-02-08 | C53: 248 | D53: 239 | E53: N/A | F53: N/A | G53: 0.007160118716 | H53: 0.007160118716 | I53: 0.01280220031 | J53: 0.01280220031 | K53: 0.02212813482 | L53: 0.02212813482 | M53: 0.01187962441 | N53: 0.01187962441
B54: 2016-02-09 | C54: 225 | D54: 188 | E54: N/A | F54: N/A | G54: 0 | H54: 0 | I54: 0.01276801045 | J54: 0.01276801045 | K54: 0.04325612795 | L54: 0.04325612795 | M54: 0.01229963292 | N54: 0.01229963292
B55: 2016-02-10 | C55: 241 | D55: 218 | E55: N/A | F55: N/A | G55: 0.006506285136 | H55: 0.006506285136 | I55: 8.357519488e-05 | J55: 8.357519488e-05 | K55: 0.003725527783 | L55: 0.003725527783 | M55: 0.00359452493 | N55: 0.00359452493
B56: 2016-02-11 | C56: 241 | D56: 210 | E56: N/A | F56: N/A | G56: 0.008406889611 | H56: 0.008406889611 | I56: 0.002199547174 | J56: 0.002199547174 | K56: 0.05417434137 | L56: 0.05417434137 | M56: 0.01395521443 | N56: 0.01395521443
B57: 2016-02-12 | C57: 225 | D57: 208 | E57: N/A | F57: N/A | G57: 0.004785164388 | H57: 0.004785164388 | I57: 0.006040207266 | J57: 0.006040207266 | K57: 0.009342990257 | L57: 0.009342990257 | M57: 0.006046971911 | N57: 0.006046971911
B58: 2016-02-13 | C58: 206 | D58: 174 | E58: N/A | F58: N/A | G58: 0.0009839554368 | H58: 0.0009839554368 | I58: 0.02221200748 | J58: 0.02221200748 | K58: 0.04148087646 | L58: 0.04148087646 | M58: 0.01601066707 | N58: 0.01601066707
B59: 2016-02-14 | C59: 138 | D59: 136 | E59: N/A | F59: N/A | G59: 0 | H59: 0 | I59: 0.005474175265 | J59: 0.005474175265 | K59: 0.008667894618 | L59: 0.008667894618 | M59: 0.003568633994 | N59: 0.003568633994
B60: 2016-02-15 | C60: 381 | D60: 298 | E60: N/A | F60: N/A | G60: 0.01196130844 | H60: 0.01196130844 | I60: 0.01352018721 | J60: 0.01352018721 | K60: 0.06715951426 | L60: 0.06715951426 | M60: 0.02207777637 | N60: 0.02207777637
B61: 2016-02-16 | C61: 225 | D61: 208 | E61: N/A | F61: N/A | G61: 0 | H61: 0 | I61: 0.01917670835 | J61: 0.01917670835 | K61: 0.01082653376 | L61: 0.01082653376 | M61: 0.009129431665 | N61: 0.009129431665
B62: 2016-02-17 | C62: 245 | D62: 211 | E62: N/A | F62: N/A | G62: 0.008512656808 | H62: 0.008512656808 | I62: 0.007468583324 | J62: 0.007468583324 | K62: 0.05695806906 | L62: 0.05695806906 | M62: 0.0164781423 | N62: 0.0164781423
B63: 2016-02-18 | C63: 225 | D63: 210 | E63: N/A | F63: N/A | G63: 0 | H63: 0 | I63: 0.01414700117 | J63: 0.01414700117 | K63: 0.007609411333 | L63: 0.007609411333 | M63: 0.006669792757 | N63: 0.006669792757
B64: 2016-02-19 | C64: 294 | D64: 279 | E64: N/A | F64: N/A | G64: 0 | H64: 0 | I64: 0.00150815238 | J64: 0.00150815238 | K64: 0.03209621363 | L64: 0.03209621363 | M64: 0.006110260866 | N64: 0.006110260866
B65: 2016-02-20 | C65: 145 | D65: 136 | E65: N/A | F65: N/A | G65: 0 | H65: 0 | I65: 0.002856752116 | J65: 0.002856752116 | K65: 0.01140161523 | L65: 0.01140161523 | M65: 0.003049376891 | N65: 0.003049376891
B66: 2016-02-21 | C66: 140 | D66: 124 | E66: N/A | F66: N/A | G66: 0 | H66: 0 | I66: 0.002256530262 | J66: 0.002256530262 | K66: 0.07478559463 | L66: 0.07478559463 | M66: 0.01376103242 | N66: 0.01376103242
B67: 2016-02-22 | C67: 252 | D67: 233 | E67: N/A | F67: N/A | G67: 0 | H67: 0 | I67: 0.02170675743 | J67: 0.02170675743 | K67: 0.008709567189 | L67: 0.008709567189 | M67: 0.00972204642 | N67: 0.00972204642
B68: 2016-02-23 | C68: 466 | D68: 383 | E68: N/A | F68: N/A | G68: 0.006419748338 | H68: 0.006419748338 | I68: 0.01545761218 | J68: 0.01545761218 | K68: 0.05362426344 | L68: 0.05362426344 | M68: 0.01798844689 | N68: 0.01798844689
B69: 2016-02-24 | C69: 1009 | D69: 348 | E69: N/A | F69: N/A | G69: 0 | H69: 0 | I69: 0.002473065994 | J69: 0.002473065994 | K69: 0.0348049307 | L69: 0.0348049307 | M69: 0.006943085969 | N69: 0.006943085969
B70: 2016-02-25 | C70: 306 | D70: 259 | E70: N/A | F70: N/A | G70: 0 | H70: 0 | I70: 0.01241471531 | J70: 0.01241471531 | K70: 0.03441320854 | L70: 0.03441320854 | M70: 0.01063973626 | N70: 0.01063973626
B71: 2016-02-26 | C71: 233 | D71: 192 | E71: N/A | F71: N/A | G71: 0 | H71: 0 | I71: 0.01650230212 | J71: 0.01650230212 | K71: 0.001800255036 | L71: 0.001800255036 | M71: 0.006559037087 | N71: 0.006559037087
B72: 2016-02-27 | C72: 108 | D72: 103 | E72: N/A | F72: N/A | G72: 0.001528816754 | H72: 0.001528816754 | I72: 0.002921332948 | J72: 0.002921332948 | K72: 0.001158497454 | L72: 0.001158497454 | M72: 0.001992163677 | N72: 0.001992163677
B73: 2016-02-28 | C73: 123 | D73: 109 | E73: N/A | F73: N/A | G73: 0.01702851868 | H73: 0.01702851868 | I73: 0.0001823458797 | J73: 0.0001823458797 | K73: 0.02025286916 | L73: 0.02025286916 | M73: 0.01120646008 | N73: 0.01120646008
B74: 2016-02-29 | C74: 358 | D74: 308 | E74: N/A | F74: N/A | G74: 0.01663750056 | H74: 0.01663750056 | I74: 0.0008889361637 | J74: 0.0008889361637 | K74: 0.0336214297 | L74: 0.0336214297 | M74: 0.0136056868 | N74: 0.0136056868
B75: 2016-03-01 | C75: 314 | D75: 290 | E75: N/A | F75: N/A | G75: 0.003628135356 | H75: 0.003628135356 | I75: 0.01562476257 | J75: 0.01562476257 | K75: 0.01731912021 | L75: 0.01731912021 | M75: 0.01053329574 | N75: 0.01053329574
B76: 2016-03-02 | C76: 273 | D76: 257 | E76: N/A | F76: N/A | G76: 0.01609584431 | H76: 0.01609584431 | I76: 0.001853849777 | J76: 0.001853849777 | K76: 0.01584391122 | L76: 0.01584391122 | M76: 0.01065987365 | N76: 0.01065987365
B77: 2016-03-03 | C77: 302 | D77: 225 | E77: N/A | F77: N/A | G77: 0.003134555105 | H77: 0.003134555105 | I77: 0.006507468583 | J77: 0.006507468583 | K77: 0.01771084237 | L77: 0.01771084237 | M77: 0.006927263731 | N77: 0.006927263731
B78: 2016-03-04 | C78: 311 | D78: 265 | E78: N/A | F78: N/A | G78: 0.01814067678 | H78: 0.01814067678 | I78: 0.02946785394 | J78: 0.02946785394 | K78: 0.05920005334 | L78: 0.05920005334 | M78: 0.02951566689 | N78: 0.02951566689
B79: 2016-03-05 | C79: 156 | D79: 146 | E79: N/A | F79: N/A | G79: 0 | H79: 0 | I79: 0.04140771019 | J79: 0.04140771019 | K79: 0.04443129443 | L79: 0.04443129443 | M79: 0.02334643223 | N79: 0.02334643223
B80: =B79+1 -> 2016-03-06 | C80: 149 | D80: 142 | E80: N/A | F80: N/A | G80: 0.001458305289 | H80: 0.001458305289 | I80: 0.01174611375 | J80: 0.01174611375 | K80: 0.04166423577 | L80: 0.04166423577 | M80: 0.012292441 | N80: 0.012292441
B81: 2016-03-07 | C81: 280 | D81: 244 | E81: N/A | F81: N/A | G81: 0.009060723191 | H81: 0.009060723191 | I81: 0.01588688477 | J81: 0.01588688477 | K81: 0.01401031813 | L81: 0.01401031813 | M81: 0.01249956848 | N81: 0.01249956848
B82: 2016-03-08 | C82: 621 | D82: 326 | E82: N/A | F82: N/A | G82: 0.02043229938 | H82: 0.02043229938 | I82: 0.0289208163 | J82: 0.0289208163 | K82: 0.03181284015 | L82: 0.03181284015 | M82: 0.02561045073 | N82: 0.02561045073
B83: 2016-03-09 | C83: 422 | D83: 343 | E83: N/A | F83: N/A | G83: 0.003689031621 | H83: 0.003689031621 | I83: 0.007396404747 | J83: 0.007396404747 | K83: 0.04115583041 | L83: 0.04115583041 | M83: 0.01155886448 | N83: 0.01155886448
B84: 2016-03-10 | C84: 454 | D84: 368 | E84: N/A | F84: N/A | G84: 0.0003012762575 | H84: 0.0003012762575 | I84: 0.05017550791 | J84: 0.05017550791 | K84: 0.1489461007 | L84: 0.1489461007 | M84: 0.04483878577 | N84: 0.04483878577
B85: 2016-03-11 | C85: 330 | D85: 273 | E85: N/A | F85: N/A | G85: 0.004781959321 | H85: 0.004781959321 | I85: 0.008102995031 | J85: 0.008102995031 | K85: 0.003967228691 | L85: 0.003967228691 | M85: 0.005898818223 | N85: 0.005898818223
B86: 2016-03-12 | C86: 141 | D86: 122 | E86: N/A | F86: N/A | G86: 0 | H86: 0 | I86: 0.0008547463113 | J86: 0.0008547463113 | K86: 0.06319228557 | L86: 0.06319228557 | M86: 0.01122947424 | N86: 0.01122947424
B87: 2016-03-13 | C87: 71 | D87: 71 | E87: N/A | F87: N/A | G87: 0.01797401332 | H87: 0.01797401332 | I87: 0.05256499871 | J87: 0.05256499871 | K87: 0.01408532875 | L87: 0.01408532875 | M87: 0.03040027387 | N87: 0.03040027387
B88: 2016-03-14 | C88: 122 | D88: 117 | E88: N/A | F88: N/A | G88: 0 | H88: 0 | I88: 0.01054187117 | J88: 0.01054187117 | K88: 0.009626363735 | L88: 0.009626363735 | M88: 0.005652854332 | N88: 0.005652854332
B89: 2016-03-15 | C89: 321 | D89: 274 | E89: N/A | F89: N/A | G89: 0.02294507157 | H89: 0.02294507157 | I89: 0.02503456974 | J89: 0.02503456974 | K89: 0.03911387447 | L89: 0.03911387447 | M89: 0.02652670219 | N89: 0.02652670219
B90: 2016-03-16 | C90: 290 | D90: 252 | E90: N/A | F90: N/A | G90: 0.0109581226 | H90: 0.0109581226 | I90: 0.02127368597 | J90: 0.02127368597 | K90: 0 | L90: 0 | M90: 0.01297279726 | N90: 0.01297279726
B91: 2016-03-17 | C91: 268 | D91: 254 | E91: N/A | F91: N/A | G91: 0.001455100222 | H91: 0.001455100222 | I91: 0.002655411874 | J91: 0.002655411874 | K91: 0.01379362076 | L91: 0.01379362076 | M91: 0.004038985996 | N91: 0.004038985996
B92: 2016-03-18 | E92: N/A | F92: N/A | G92: 0.09277385691 | H92: 0.09277385691 | I92: 0.2203611968 | J92: 0.2203611968 | K92: 0.2927164682 | L92: 0.2927164682 | M92: 0.1755894503 | N92: 0.1755894503
B93: 2016-03-19 | C93: 283 | D93: 320 | E93: N/A | F93: N/A | G93: 0.01082671487 | H93: 0.01082671487 | I93: 0 | J93: 0 | K93: 0.02432011202 | L93: 0.02432011202 | M93: 0.009056074014 | N93: 0.009056074014
B94: 2016-03-20 | C94: 206 | D94: 176 | E94: N/A | F94: N/A | G94: 0 | H94: 0 | I94: 0.01333024358 | J94: 0.01333024358 | K94: 0.01226840469 | L94: 0.01226840469 | M94: 0.00716459731 | N94: 0.00716459731
B95: 2016-03-21 | C95: 225 | D95: 186 | E95: N/A | F95: N/A | G95: 0.009272257585 | H95: 0.009272257585 | I95: 0.008699418013 | J95: 0.008699418013 | K95: 0.01526049524 | L95: 0.01526049524 | M95: 0.01008883468 | N95: 0.01008883468
B96: 2016-03-22 | C96: 233 | D96: 200 | E96: N/A | F96: N/A | G96: 0.01838746691 | H96: 0.01838746691 | I96: 0.002552842316 | J96: 0.002552842316 | K96: 0.02104464799 | L96: 0.02104464799 | M96: 0.0128505345 | N96: 0.0128505345
B97: 2016-03-23 | C97: 242 | D97: 214 | E97: N/A | F97: N/A | G97: 0.002012781805 | H97: 0.002012781805 | I97: 0.01530565728 | J97: 0.01530565728 | K97: 0.03045431436 | L97: 0.03045431436 | M97: 0.01195442045 | N97: 0.01195442045
B98: 2016-03-24 | C98: 227 | D98: 212 | E98: N/A | F98: N/A | G98: 0 | H98: 0 | I98: 0.0109521494 | J98: 0.0109521494 | K98: 0.002708717068 | L98: 0.002708717068 | M98: 0.004614340126 | N98: 0.004614340126
B99: 2016-03-25 | C99: 118 | D99: 107 | E99: N/A | F99: N/A | G99: 0.00856714294 | H99: 0.00856714294 | I99: 0.01060645201 | J99: 0.01060645201 | K99: 0.003108773743 | L99: 0.003108773743 | M99: 0.008397293534 | N99: 0.008397293534
B100: 2016-03-26 | C100: 113 | D100: 104 | E100: N/A | F100: N/A | G100: 0.00592296302 | H100: 0.00592296302 | I100: 0.009668130499 | J100: 0.009668130499 | K100: 0.0211696657 | L100: 0.0211696657 | M100: 0.009972325466 | N100: 0.009972325466
B101: 2016-03-27 | C101: 121 | D101: 109 | E101: N/A | F101: N/A | G101: 0.007855618161 | H101: 0.007855618161 | I101: 0.001557537723 | J101: 0.001557537723 | K101: 0 | L101: 0 | M101: 0.004115220418 | N101: 0.004115220418
B102: 2016-03-28 | C102: 170 | D102: 153 | E102: N/A | F102: N/A | G102: 0 | H102: 0 | I102: 0.003225242748 | J102: 0.003225242748 | K102: 0.007617745847 | L102: 0.007617745847 | M102: 0.00253587333 | N102: 0.00253587333
B103: 2016-03-29 | C103: 233 | D103: 203 | E103: N/A | F103: N/A | G103: 0.01475933155 | H103: 0.01475933155 | I103: 0.0112978468 | J103: 0.0112978468 | K103: 0.03337972879 | L103: 0.03337972879 | M103: 0.01666225562 | N103: 0.01666225562
B104: 2016-03-30 | C104: 281 | D104: 257 | E104: N/A | F104: N/A | G104: 0 | H104: 0 | I104: 0.007160874652 | J104: 0.007160874652 | K104: 0.03935557537 | L104: 0.03935557537 | M104: 0.00950341185 | N104: 0.00950341185
B105: 2016-03-31 | C105: 324 | D105: 275 | E105: N/A | F105: N/A | G105: 0.005839631289 | H105: 0.005839631289 | I105: 0.002799769029 | J105: 0.002799769029 | K105: 0.02878741155 | L105: 0.02878741155 | M105: 0.008649010966 | N105: 0.008649010966
B106: 2016-04-01 | C106: 215 | D106: 185 | E106: N/A | F106: N/A | G106: 0.007509470972 | H106: 0.007509470972 | I106: 0.03199790302 | J106: 0.03199790302 | K106: 0.02296992074 | L106: 0.02296992074 | M106: 0.01944984638 | N106: 0.01944984638
B107: 2016-04-02 | C107: 80 | D107: 76 | E107: N/A | F107: N/A | G107: 0.008419709877 | H107: 0.008419709877 | I107: 0.0006002218542 | J107: 0.0006002218542 | K107: 0.04723169116 | L107: 0.04723169116 | M107: 0.01215723278 | N107: 0.01215723278
B108: 2016-04-03 | C108: 104 | D108: 99 | E108: N/A | F108: N/A | G108: 0.00833317308 | H108: 0.00833317308 | I108: 0.01425716847 | J108: 0.01425716847 | K108: 0.007826108699 | L108: 0.007826108699 | M108: 0.0104887058 | N108: 0.0104887058
B109: 2016-04-04 | C109: 238 | D109: 219 | E109: N/A | F109: N/A | G109: 0.01900283969 | H109: 0.01900283969 | I109: 0.01989849413 | J109: 0.01989849413 | K109: 0.02394505888 | L109: 0.02394505888 | M109: 0.02019492998 | N109: 0.02019492998
B110: 2016-04-05 | C110: 285 | D110: 268 | E110: N/A | F110: N/A | G110: 0.005650532362 | H110: 0.005650532362 | I110: 0.01963257305 | J110: 0.01963257305 | K110: 0.01339356409 | L110: 0.01339356409 | M110: 0.01228093391 | N110: 0.01228093391
B111: 2016-04-06 | C111: 319 | D111: 307 | E111: N/A | F111: N/A | G111: 0.01238758229 | H111: 0.01238758229 | I111: 0.02452172195 | J111: 0.02452172195 | K111: 0.08379520432 | L111: 0.08379520432 | M111: 0.02930566264 | N111: 0.02930566264
B112: 2016-04-07 | C112: 248 | D112: 209 | E112: N/A | F112: N/A | G112: 0.01367601905 | H112: 0.01367601905 | I112: 0.003479767205 | J112: 0.003479767205 | K112: 0.007576073277 | L112: 0.007576073277 | M112: 0.008762643407 | N112: 0.008762643407
B113: 2016-04-08 | C113: 237 | D113: 211 | E113: N/A | F113: N/A | G113: 0 | H113: 0 | I113: 0.01361895789 | J113: 0.01361895789 | K113: 0.01779418751 | L113: 0.01779418751 | M113: 0.008227564066 | N113: 0.008227564066
B114: 2016-04-09 | C114: 117 | D114: 105 | E114: N/A | F114: N/A | G114: 0.01469843529 | H114: 0.01469843529 | I114: 0.03255633728 | J114: 0.03255633728 | K114: 0.009701374361 | L114: 0.009701374361 | M114: 0.02059767787 | N114: 0.02059767787
B115: 2016-04-10 | C115: 115 | D115: 95 | E115: N/A | F115: N/A | G115: 0.02852829753 | H115: 0.02852829753 | I115: 0.0128439879 | J115: 0.0128439879 | K115: 0.005284081912 | L115: 0.005284081912 | M115: 0.01857818487 | N115: 0.01857818487
B116: 2016-04-11 | C116: 217 | D116: 174 | E116: N/A | F116: N/A | G116: 0 | H116: 0 | I116: 0.00322904162 | J116: 0.00322904162 | K116: 0.00538409608 | L116: 0.00538409608 | M116: 0.002151824448 | N116: 0.002151824448
B117: 2016-04-12 | C117: 256 | D117: 237 | E117: N/A | F117: N/A | G117: 0 | H117: 0 | I117: 0.03009846678 | J117: 0.03009846678 | K117: 0.0004167257028 | L117: 0.0004167257028 | M117: 0.01146824621 | N117: 0.01146824621
B118: 2016-04-13 | C118: 202 | D118: 187 | E118: N/A | F118: N/A | G118: 0.006496669936 | H118: 0.006496669936 | I118: 0.01500554635 | J118: 0.01500554635 | K118: 0.00807614412 | L118: 0.00807614412 | M118: 0.009991024476 | N118: 0.009991024476
B119: 2016-04-14 | C119: 192 | D119: 164 | E119: N/A | F119: N/A | G119: 0 | H119: 0 | I119: 0.01233493899 | J119: 0.01233493899 | K119: 0.01193502413 | L119: 0.01193502413 | M119: 0.006730204941 | N119: 0.006730204941
B120: 2016-04-15 | C120: 178 | D120: 162 | E120: N/A | F120: N/A | G120: 0.01072735781 | H120: 0.01072735781 | I120: 0 | J120: 0 | K120: 0.0326712951 | L120: 0.0326712951 | M120: 0.01045274617 | N120: 0.01045274617
B121: 2016-04-16 | C121: 114 | D121: 104 | E121: N/A | F121: N/A | G121: 0 | H121: 0 | I121: 0.01589828139 | J121: 0.01589828139 | K121: 0.01309352158 | L121: 0.01309352158 | M121: 0.008279345937 | N121: 0.008279345937
B122: 2016-04-17 | C122: 137 | D122: 128 | E122: N/A | F122: N/A | G122: 0.0283488138 | H122: 0.0283488138 | I122: 0 | J122: 0 | K122: 0.00507571906 | L122: 0.00507571906 | M122: 0.01359849487 | N122: 0.01359849487
B123: 2016-04-18 | C123: 184 | D123: 177 | E123: N/A | F123: N/A | G123: 0.0009903655699 | H123: 0.0009903655699 | I123: 0.03195611542 | J123: 0.03195611542 | K123: 0.06630939383 | L123: 0.06630939383 | M123: 0.02398795208 | N123: 0.02398795208
B124: 2016-04-19 | C124: 162 | D124: 157 | E124: N/A | F124: N/A | G124: 0 | H124: 0 | I124: 0.0342240423 | J124: 0.0342240423 | K124: 0.07212688464 | L124: 0.07212688464 | M124: 0.02540620002 | N124: 0.02540620002
B125: 2016-04-20 | C125: 233 | D125: 221 | E125: N/A | F125: N/A | G125: 0.005512714499 | H125: 0.005512714499 | I125: 0.01062544637 | J125: 0.01062544637 | K125: 0.0008667894618 | L125: 0.0008667894618 | M125: 0.006646778592 | N125: 0.006646778592
B126: 2016-04-21 | C126: 192 | D126: 173 | E126: N/A | F126: N/A | G126: 0.01472087075 | H126: 0.01472087075 | I126: 0.001204242581 | J126: 0.001204242581 | K126: 0.01114324529 | L126: 0.01114324529 | M126: 0.008985593133 | N126: 0.008985593133
B127: 2016-04-22 | C127: 185 | D127: 168 | E127: N/A | F127: N/A | G127: 0 | H127: 0 | I127: 0.003825464602 | J127: 0.003825464602 | K127: 0.004717334956 | L127: 0.004717334956 | M127: 0.002262580118 | N127: 0.002262580118
B128: 2016-04-23 | C128: 127 | D128: 116 | E128: N/A | F128: N/A | G128: 0 | H128: 0 | I128: 0.006006017414 | J128: 0.006006017414 | K128: 0 | L128: 0 | M128: 0.002274087201 | N128: 0.002274087201
B129: 2016-04-24 | C129: 69 | D129: 67 | E129: N/A | F129: N/A | G129: 0.007573572303 | H129: 0.007573572303 | I129: 0.008991931195 | J129: 0.008991931195 | K129: 0.00472566947 | L129: 0.00472566947 | M129: 0.007619127073 | N129: 0.007619127073
B130: 2016-04-25 | C130: 57 | D130: 54 | E130: N/A | F130: N/A | G130: 0 | H130: 0 | I130: 0.01300354055 | J130: 0.01300354055 | K130: 0.01803588842 | L130: 0.01803588842 | M130: 0.008036258817 | N130: 0.008036258817
B131: 2016-04-26 | C131: 258 | D131: 211 | E131: N/A | F131: N/A | G131: 0.01618238111 | H131: 0.01618238111 | I131: 0.0333958881 | J131: 0.0333958881 | K131: 0.01327688089 | L131: 0.01327688089 | M131: 0.02219860074 | N131: 0.02219860074
B132: 2016-04-27 | C132: 208 | D132: 195 | E132: N/A | F132: N/A | G132: 0.009804298635 | H132: 0.009804298635 | I132: 0.004946131988 | J132: 0.004946131988 | K132: 0.0188526708 | L132: 0.0188526708 | M132: 0.009526426015 | N132: 0.009526426015
B133: 2016-04-28 | C133: 222 | D133: 201 | E133: N/A | F133: N/A | G133: 0.0153971398 | H133: 0.0153971398 | I133: 0.01806363871 | J133: 0.01806363871 | K133: 0 | L133: 0 | M133: 0.01374952533 | N133: 0.01374952533
B134: 2016-04-29 | C134: 308 | D134: 274 | E134: N/A | F134: N/A | G134: 0.01230745563 | H134: 0.01230745563 | I134: 0.02974897051 | J134: 0.02974897051 | K134: 0.01274347199 | L134: 0.01274347199 | M134: 0.01898668631 | N134: 0.01898668631
B135: 2016-04-30 | C135: 152 | D135: 127 | E135: N/A | F135: N/A | G135: 0.0142176753 | H135: 0.0142176753 | I135: 0.0009459192512 | J135: 0.0009459192512 | K135: 0.0001583557671 | L135: 0.0001583557671 | M135: 0.006766164574 | N135: 0.006766164574
B136: 2016-05-01 | E136: N/A | F136: N/A | G136: 0.02104767216 | H136: 0.02104767216 | I136: 0.1425830813 | J136: 0.1425830813 | K136: 0.1637815357 | L136: 0.1637815357 | M136: 0.09169850293 | N136: 0.09169850293
B137: 2016-05-02 | C137: 552 | D137: 731 | E137: N/A | F137: N/A | G137: 0 | H137: 0 | I137: 0.02431278397 | J137: 0.02431278397 | K137: 0.01551053066 | L137: 0.01551053066 | M137: 0.01188250118 | N137: 0.01188250118
B138: 2016-05-03 | E138: N/A | F138: N/A | G138: 0.03202182009 | H138: 0.03202182009 | I138: 0.1086781443 | J138: 0.1086781443 | K138: 0.2087795771 | L138: 0.2087795771 | M138: 0.09155178763 | N138: 0.09155178763
B139: 2016-05-04 | C139: 470 | D139: 385 | E139: N/A | F139: N/A | G139: 0.01183631084 | H139: 0.01183631084 | I139: 0.007552158519 | J139: 0.007552158519 | K139: 0.02463682355 | L139: 0.02463682355 | M139: 0.01242333406 | N139: 0.01242333406
B140: 2016-05-05 | C140: 334 | D140: 293 | E140: N/A | F140: N/A | G140: 0 | H140: 0 | I140: 0.01429895607 | J140: 0.01429895607 | K140: 0.01681904937 | L140: 0.01681904937 | M140: 0.008316743956 | N140: 0.008316743956
B141: 2016-05-06 | C141: 368 | D141: 270 | E141: N/A | F141: N/A | G141: 0.004775549188 | H141: 0.004775549188 | I141: 0.01501694297 | J141: 0.01501694297 | K141: 0.01730245118 | L141: 0.01730245118 | M141: 0.01081521927 | N141: 0.01081521927
B142: 2016-05-07 | C142: 140 | D142: 132 | E142: N/A | F142: N/A | G142: 0 | H142: 0 | I142: 0.002461669377 | J142: 0.002461669377 | K142: 0.009376328313 | L142: 0.009376328313 | M142: 0.002550257183 | N142: 0.002550257183
B143: 2016-05-08 | C143: 124 | D143: 120 | E143: N/A | F143: N/A | G143: 0 | H143: 0 | I143: 0.01663146378 | J143: 0.01663146378 | K143: 0.03402148638 | L143: 0.03402148638 | M143: 0.01216873986 | N143: 0.01216873986
B144: =B143+1 -> 2016-05-09 | C144: 610 | D144: 467 | E144: N/A | F144: N/A | G144: 0 | H144: 0 | I144: 0.05850643529 | J144: 0.05850643529 | K144: 0.1290766192 | L144: 0.1290766192 | M144: 0.04442884595 | N144: 0.04442884595
B145: 2016-05-10 | C145: 384 | D145: 336 | E145: N/A | F145: N/A | G145: 0.0008269071749 | H145: 0.0008269071749 | I145: 0.03060371682 | J145: 0.03060371682 | K145: 0.07468558046 | L145: 0.07468558046 | M145: 0.02484810651 | N145: 0.02484810651
B146: 2016-05-11 | C146: 286 | D146: 250 | E146: N/A | F146: N/A | G146: 0 | H146: 0 | I146: 0.004083787932 | J146: 0.004083787932 | K146: 0.008509538851 | L146: 0.008509538851 | M146: 0.003014855644 | N146: 0.003014855644
B147: 2016-05-12 | C147: 301 | D147: 267 | E147: N/A | F147: N/A | G147: 0 | H147: 0 | I147: 0.01478521175 | J147: 0.01478521175 | K147: 0.03128776577 | L147: 0.03128776577 | M147: 0.0109978942 | N147: 0.0109978942
B148: 2016-05-13 | C148: 230 | D148: 213 | E148: N/A | F148: N/A | G148: 0.01329461613 | H148: 0.01329461613 | I148: 0.0004786579343 | J148: 0.0004786579343 | K148: 0.007226023687 | L148: 0.007226023687 | M148: 0.007394738962 | N148: 0.007394738962
B149: 2016-05-14 | C149: 102 | D149: 96 | E149: N/A | F149: N/A | G149: 0 | H149: 0 | I149: 0 | J149: 0 | K149: 0.006275889084 | L149: 0.006275889084 | M149: 0.001083104151 | N149: 0.001083104151
B150: 2016-05-15 | C150: 131 | D150: 108 | E150: N/A | F150: N/A | G150: 0.01474651129 | H150: 0.01474651129 | I150: 0 | J150: 0 | K150: 0.01776084945 | L150: 0.01776084945 | M150: 0.009683210016 | N150: 0.009683210016
B151: 2016-05-16 | C151: 227 | D151: 208 | E151: N/A | F151: N/A | G151: 0.01275616495 | H151: 0.01275616495 | I151: 0.00680757951 | J151: 0.00680757951 | K151: 0.004842352667 | L151: 0.004842352667 | M151: 0.009138061977 | N151: 0.009138061977
B152: 2016-05-17 | C152: 256 | D152: 224 | E152: N/A | F152: N/A | G152: 0 | H152: 0 | I152: 0.0379811272 | J152: 0.0379811272 | K152: 0.0171941025 | L152: 0.0171941025 | M152: 0.01734836542 | N152: 0.01734836542
B153: 2016-05-18 | C153: 218 | D153: 178 | E153: N/A | F153: N/A | G153: 0 | H153: 0 | I153: 0.0001329605373 | J153: 0.0001329605373 | K153: 0.009951409783 | L153: 0.009951409783 | M153: 0.001767775566 | N153: 0.001767775566
B154: 2016-05-19 | C154: 230 | D154: 210 | E154: N/A | F154: N/A | G154: 0.01272731935 | H154: 0.01272731935 | I154: 0.01579951071 | J154: 0.01579951071 | K154: 0.003250460482 | L154: 0.003250460482 | M154: 0.01225504298 | N154: 0.01225504298
B155: 2016-05-20 | C155: 193 | D155: 166 | E155: N/A | F155: N/A | G155: 0 | H155: 0 | I155: 0.0002051391147 | J155: 0.0002051391147 | K155: 0 | L155: 0 | M155: 7.767280761e-05 | N155: 7.767280761e-05
B156: 2016-05-21 | C156: 83 | D156: 74 | E156: N/A | F156: N/A | G156: 0 | H156: 0 | I156: 0.007350818277 | J156: 0.007350818277 | K156: 0.0002250318795 | L156: 0.0002250318795 | M156: 0.00282211201 | N156: 0.00282211201
B157: 2016-05-22 | C157: 109 | D157: 102 | E157: N/A | F157: N/A | G157: 0.01356704679 | H157: 0.01356704679 | I157: 0.01051148019 | J157: 0.01051148019 | K157: 0.003392147221 | L157: 0.003392147221 | M157: 0.01065412011 | N157: 0.01065412011
B158: 2016-05-23 | C158: 244 | D158: 223 | E158: N/A | F158: N/A | G158: 1.602533285e-05 | H158: 1.602533285e-05 | I158: 0.008342323998 | J158: 0.008342323998 | K158: 0.04665660969 | L158: 0.04665660969 | M158: 0.01121796716 | N158: 0.01121796716
B159: 2016-05-24 | C159: 176 | D159: 156 | E159: N/A | F159: N/A | G159: 0 | H159: 0 | I159: 0.001500554635 | J159: 0.001500554635 | K159: 0.0004167257028 | L159: 0.0004167257028 | M159: 0.0006400814701 | N159: 0.0006400814701
B160: 2016-05-25 | C160: 204 | D160: 190 | E160: N/A | F160: N/A | G160: 0.005480663833 | H160: 0.005480663833 | I160: 0.001899436247 | J160: 0.001899436247 | K160: 0.005100722602 | L160: 0.005100722602 | M160: 0.00405912339 | N160: 0.00405912339
B161: 2016-05-26 | C161: 230 | D161: 219 | E161: N/A | F161: N/A | G161: 0.007608828035 | H161: 0.007608828035 | I161: 0.01375951618 | J161: 0.01375951618 | K161: 0.0196277806 | L161: 0.0196277806 | M161: 0.01201195586 | N161: 0.01201195586
B162: 2016-05-27 | C162: 267 | D162: 208 | E162: N/A | F162: N/A | G162: 0 | H162: 0 | I162: 7.597744989e-06 | J162: 7.597744989e-06 | K162: 0.02264487469 | L162: 0.02264487469 | M162: 0.003910969702 | N162: 0.003910969702
B163: 2016-05-28 | C163: 173 | D163: 142 | E163: N/A | F163: N/A | G163: 0 | H163: 0 | I163: 0 | J163: 0 | K163: 0.01905269913 | L163: 0.01905269913 | M163: 0.003288148856 | N163: 0.003288148856
B164: 2016-05-29 | C164: 133 | D164: 116 | E164: N/A | F164: N/A | G164: 0.01149977885 | H164: 0.01149977885 | I164: 0.009474388002 | J164: 0.009474388002 | K164: 0.0007251027229 | L164: 0.0007251027229 | M164: 0.008873399077 | N164: 0.008873399077
B165: 2016-05-30 | C165: 228 | D165: 205 | E165: N/A | F165: N/A | G165: 0.004301199336 | H165: 0.004301199336 | I165: 0.0001709492623 | J165: 0.0001709492623 | K165: 0.002325329422 | L165: 0.002325329422 | M165: 0.002396349953 | N165: 0.002396349953
B166: 2016-05-31 | C166: 245 | D166: 218 | E166: N/A | F166: N/A | G166: 0.002003166606 | H166: 0.002003166606 | I166: 0.001405582823 | J166: 0.001405582823 | K166: 0.00980138853 | L166: 0.00980138853 | M166: 0.003122734543 | N166: 0.003122734543
B167: 2016-06-01 | C167: 196 | D167: 166 | E167: N/A | F167: N/A | G167: 0 | H167: 0 | I167: 0.005227248553 | J167: 0.005227248553 | K167: 0.01016810715 | L167: 0.01016810715 | M167: 0.003734048307 | N167: 0.003734048307
B168: 2016-06-02 | C168: 270 | D168: 232 | E168: N/A | F168: N/A | G168: 0.008233816016 | H168: 0.008233816016 | I168: 0.01681380966 | J168: 0.01681380966 | K168: 0.02095296834 | L168: 0.02095296834 | M168: 0.01367760607 | N168: 0.01367760607
B169: 2016-06-03 | C169: 171 | D169: 142 | E169: N/A | F169: N/A | G169: 0.006105651814 | H169: 0.006105651814 | I169: 0 | J169: 0 | K169: 0.01319353575 | L169: 0.01319353575 | M169: 0.005017088018 | N169: 0.005017088018
B170: 2016-06-04 | C170: 138 | D170: 128 | E170: N/A | F170: N/A | G170: 0.002448670859 | H170: 0.002448670859 | I170: 0.01371392971 | J170: 0.01371392971 | K170: 0.02334497387 | L170: 0.02334497387 | M170: 0.01032041472 | N170: 0.01032041472
B171: 2016-06-05 | C171: 149 | D171: 125 | E171: N/A | F171: N/A | G171: 0 | H171: 0 | I171: 0.02484082724 | J171: 0.02484082724 | K171: 0.0134018986 | L171: 0.0134018986 | M171: 0.01171852525 | N171: 0.01171852525
B172: 2016-06-06 | C172: 232 | D172: 199 | E172: N/A | F172: N/A | G172: 0.01028185355 | H172: 0.01028185355 | I172: 0.001500554635 | J172: 0.001500554635 | K172: 0.01261011977 | L172: 0.01261011977 | M172: 0.007358779329 | N172: 0.007358779329
B173: 2016-06-07 | C173: 301 | D173: 265 | E173: N/A | F173: N/A | G173: 0.006749870195 | H173: 0.006749870195 | I173: 0.02249692291 | J173: 0.02249692291 | K173: 0 | L173: 0 | M173: 0.0115473574 | N173: 0.0115473574
B174: 2016-06-08 | C174: 230 | D174: 209 | E174: N/A | F174: N/A | G174: 0 | H174: 0 | I174: 0.00525384066 | J174: 0.00525384066 | K174: 0.01460206863 | L174: 0.01460206863 | M174: 0.004509337998 | N174: 0.004509337998
B175: 2016-06-09 | C175: 260 | D175: 239 | E175: N/A | F175: N/A | G175: 0.01185874631 | H175: 0.01185874631 | I175: 0.008125788266 | J175: 0.008125788266 | K175: 0.004042239317 | L175: 0.004042239317 | M175: 0.009096348803 | N175: 0.009096348803
B176: 2016-06-10 | C176: 188 | D176: 166 | E176: N/A | F176: N/A | G176: 0.004634526259 | H176: 0.004634526259 | I176: 0.006655624611 | J176: 0.006655624611 | K176: 0.007901119325 | L176: 0.007901119325 | M176: 0.005963545562 | N176: 0.005963545562
B177: 2016-06-11 | C177: 117 | D177: 107 | E177: N/A | F177: N/A | G177: 0 | H177: 0 | I177: 0.003787475877 | J177: 0.003787475877 | K177: 0.0119766967 | L177: 0.0119766967 | M177: 0.003501029884 | N177: 0.003501029884
B178: 2016-06-12 | C178: 102 | D178: 93 | E178: N/A | F178: N/A | G178: 0 | H178: 0 | I178: 0.008334726253 | J178: 0.008334726253 | K178: 0.002575364843 | L178: 0.002575364843 | M178: 0.003600278471 | N178: 0.003600278471
B179: 2016-06-13 | C179: 76 | D179: 74 | E179: N/A | F179: N/A | G179: 0 | H179: 0 | I179: 0 | J179: 0 | K179: 0.005209071285 | L179: 0.005209071285 | M179: 0.0008989908289 | N179: 0.0008989908289
B180: 2016-06-14 | C180: 207 | D180: 190 | E180: N/A | F180: N/A | G180: 0 | H180: 0 | I180: 0.0009117293987 | J180: 0.0009117293987 | K180: 0 | L180: 0 | M180: 0.0003452124783 | N180: 0.0003452124783
B181: 2016-06-15 | C181: 210 | D181: 182 | E181: N/A | F181: N/A | G181: 0 | H181: 0 | I181: 0.00886276953 | J181: 0.00886276953 | K181: 0 | L181: 0 | M181: 0.003355752966 | N181: 0.003355752966
B182: 2016-06-16 | C182: 186 | D182: 161 | E182: N/A | F182: N/A | G182: 0 | H182: 0 | I182: 0.004414289839 | J182: 0.004414289839 | K182: 0 | L182: 0 | M182: 0.001671403749 | N182: 0.001671403749
B183: 2016-06-17 | C183: 171 | D183: 147 | E183: N/A | F183: N/A | G183: 0 | H183: 0 | I183: 0.01120287499 | J183: 0.01120287499 | K183: 0.0103181284 | L183: 0.0103181284 | M183: 0.006022519361 | N183: 0.006022519361
B184: 2016-06-18 | C184: 151 | D184: 145 | E184: N/A | F184: N/A | G184: 0 | H184: 0 | I184: 0.0009687124861 | J184: 0.0009687124861 | K184: 0.006025853663 | L184: 0.006025853663 | M184: 0.001406740849 | N184: 0.001406740849
B185: 2016-06-19 | C185: 87 | D185: 84 | E185: N/A | F185: N/A | G185: 0.0009871605033 | H185: 0.0009871605033 | I185: 0 | J185: 0 | K185: 0 | L185: 0 | M185: 0.0004430226805 | N185: 0.0004430226805
B186: 2016-06-20 | C186: 302 | D186: 246 | E186: N/A | F186: N/A | G186: 0 | H186: 0 | I186: 0.01189047091 | J186: 0.01189047091 | K186: 0.01811089904 | L186: 0.01811089904 | M186: 0.007627757385 | N186: 0.007627757385
B187: 2016-06-21 | C187: 241 | D187: 206 | E187: N/A | F187: N/A | G187: 1.602533285e-05 | H187: 1.602533285e-05 | I187: 0 | J187: 0 | K187: 0.007609411333 | L187: 0.007609411333 | M187: 0.001320437729 | N187: 0.001320437729
B188: 2016-06-22 | C188: 208 | D188: 169 | E188: N/A | F188: N/A | G188: 0 | H188: 0 | I188: 0.008805786443 | J188: 0.008805786443 | K188: 0.01866097697 | L188: 0.01866097697 | M188: 0.006554721931 | N188: 0.006554721931
B189: 2016-06-23 | C189: 409 | D189: 391 | E189: N/A | F189: N/A | G189: 0.005467843567 | H189: 0.005467843567 | I189: 0.03464191828 | J189: 0.03464191828 | K189: 0.02298658977 | L189: 0.02298658977 | M189: 0.01953758789 | N189: 0.01953758789
B190: 2016-06-24 | C190: 339 | D190: 305 | E190: N/A | F190: N/A | G190: 0 | H190: 0 | I190: 0.02905377684 | J190: 0.02905377684 | K190: 0.0140519907 | L190: 0.0140519907 | M190: 0.01342588863 | N190: 0.01342588863
B191: 2016-06-25 | C191: 185 | D191: 162 | E191: N/A | F191: N/A | G191: 0 | H191: 0 | I191: 0.009709918096 | J191: 0.009709918096 | K191: 0.0149437837 | L191: 0.0149437837 | M191: 0.006255537784 | N191: 0.006255537784
B192: 2016-06-26 | C192: 102 | D192: 95 | E192: N/A | F192: N/A | G192: 0.003429421229 | H192: 0.003429421229 | I192: 0.01116108739 | J192: 0.01116108739 | K192: 0.0003667186185 | L192: 0.0003667186185 | M192: 0.005828337342 | N192: 0.005828337342
B193: 2016-06-27 | C193: 287 | D193: 242 | E193: N/A | F193: N/A | G193: 0 | H193: 0 | I193: 0.001329605373 | J193: 0.001329605373 | K193: 0.004475634048 | L193: 0.004475634048 | M193: 0.001275847784 | N193: 0.001275847784
B194: 2016-06-28 | C194: 267 | D194: 234 | E194: N/A | F194: N/A | G194: 0.0001314077293 | H194: 0.0001314077293 | I194: 0 | J194: 0 | K194: 0.0004250602169 | L194: 0.0004250602169 | M194: 0.00013233145 | N194: 0.00013233145
B195: 2016-06-29 | C195: 242 | D195: 200 | E195: N/A | F195: N/A | G195: 0.004733883323 | H195: 0.004733883323 | I195: 0.0002317312222 | J195: 0.0002317312222 | K195: 0.004275605711 | L195: 0.004275605711 | M195: 0.002950128304 | N195: 0.002950128304
B196: 2016-06-30 | C196: 416 | D196: 335 | E196: N/A | F196: N/A | G196: 0.002769177516 | H196: 0.002769177516 | I196: 0.002776975794 | J196: 0.002776975794 | K196: 0.01561054483 | L196: 0.01561054483 | M196: 0.004988320311 | N196: 0.004988320311
B197: 2016-07-01 | C197: 266 | D197: 207 | E197: N/A | F197: N/A | G197: 0 | H197: 0 | I197: 0.0086044462 | J197: 0.0086044462 | K197: 0.02609536351 | L197: 0.02609536351 | M197: 0.00776152722 | N197: 0.00776152722
B198: 2016-07-02 | C198: 122 | D198: 118 | E198: N/A | F198: N/A | G198: 0 | H198: 0 | I198: 0.01842073273 | J198: 0.01842073273 | K198: 0.01359359243 | L198: 0.01359359243 | M198: 0.009320736914 | N198: 0.009320736914
B199: 2016-07-03 | C199: 75 | D199: 66 | E199: N/A | F199: N/A | G199: 0 | H199: 0 | I199: 0 | J199: 0 | K199: 0.004617320787 | L199: 0.004617320787 | M199: 0.0007968654707 | N199: 0.0007968654707
B200: 2016-07-04 | C200: 188 | D200: 177 | E200: N/A | F200: N/A | G200: 0.007951770158 | H200: 0.007951770158 | I200: 0.002735188196 | J200: 0.002735188196 | K200: 0.03279631281 | L200: 0.03279631281 | M200: 0.01026431769 | N200: 0.01026431769
B201: 2016-07-05 | C201: 335 | D201: 277 | E201: N/A | F201: N/A | G201: 0.004022358544 | H201: 0.004022358544 | I201: 0.01211460439 | J201: 0.01211460439 | K201: 0.02657876533 | L201: 0.02657876533 | M201: 0.01097919519 | N201: 0.01097919519
B202: 2016-07-06 | C202: 340 | D202: 241 | E202: N/A | F202: N/A | G202: 0.007711390166 | H202: 0.007711390166 | I202: 0.0009573158687 | J202: 0.0009573158687 | K202: 8.334514056e-06 | L202: 8.334514056e-06 | M202: 0.003824666582 | N202: 0.003824666582
B203: 2016-07-07 | C203: 272 | D203: 204 | E203: N/A | F203: N/A | G203: 0 | H203: 0 | I203: 0.009508577854 | J203: 0.009508577854 | K203: 0.03200453398 | L203: 0.03200453398 | M203: 0.009123678124 | N203: 0.009123678124
B204: 2016-07-08 | C204: 231 | D204: 202 | E204: N/A | F204: N/A | G204: 0.000349352256 | H204: 0.000349352256 | I204: 0.001625917428 | J204: 0.001625917428 | K204: 0.009359659285 | L204: 0.009359659285 | M204: 0.002387719641 | N204: 0.002387719641
... 176 more rows

Sheet 6.8 STPIS Exclusions
B1: =(LOOKUP(dms_Model,dms_Model_List,dms_Worksheet_List)) -> ANNUAL REPORTING STATEMENT
B2: =dms_TradingName -> AusNet (D)
B3: =CONCATENATE("Annual Reporting RIN Response ",CRY) -> Annual Reporting RIN Response 2016
B4: 6.8 STPIS EXCLUSIONS
B7: =CONCATENATE("This information is collected to inform the application of the STPIS to ",dms_TradingName," in future regulatory periods. The information is also collected to monitor network performance, and may be used in performance reports.") -> This information is collected to inform the application of the STPIS to AusNet (D) in future regulatory periods. The information is also collected to monitor network performance, and may be used in performance reports.
B9: 6.8.1 - STPIS EXCLUSIONS
B10: Date of event | C10: Outage ID | D10: Feeder ID / name | E10: Feeder classification (drop down) | F10: Cause of event (drop down) | G10: Unplanned | J10: Event category | K10: Effect on unplanned MAIFI | L10: Please provide separate explanation to confirm the outage was not due to inadequate transmission connection planning
B11: DD/MM/YYYY | G11: Number of interruptions | H11: Duration of interruption (mins) | I11: Total unplanned minutes off supply | J11: Use exclusion categories listed in section 3.3(a) of the STPIS (drop down) | K11: by feeder classification | O11: Cause of Event
O12: Weather
O13: Equipment failure
O14: Operational error
O15: Vegetation
O16: Animals
O17: Third party impacts
O18: Transmission failure
O19: Load shedding
O20: Inter-distributor connection failure
O21: Other
B49: To enter further events - please insert new lines above this line.

Sheet 6.9 STPIS - GSL
B1: =(LOOKUP(dms_Model,dms_Model_List,dms_Worksheet_List)) -> ANNUAL REPORTING STATEMENT
B2: =dms_TradingName -> AusNet (D)
B3: =CONCATENATE("Annual Reporting RIN Response ",CRY) -> Annual Reporting RIN Response 2016
B4: 6.9 STPIS - GUARANTEED SERVICE LEVEL
B6: Did the AER's GSL Scheme apply at any time during the regulatory year? | D6: No | E6: **IMPORTANT Please ensure this flag is set. Conditional formatting on this worksheet is dependant on this response.
B8: Instructions: Table 6.9.1 collects information relating to jurisdiction GSL scheme parameters. These parameters can be found in the jurisdictonal scheme relevant to NSP. Please identify each parameter in the relevant sub-tables and provide the volume and value of GSL payments. For GSL parameters that do not fit within the provided sub-tables provided, please enter a heading and identify the relevant parameter(s).
B10: 6.9.1 - GUARANTEED SERVICE LEVELS - JURISDICTIONAL GSL SCHEME
D11: =CRY -> 2016 | E11: =CRY -> 2016
D12: Volume | E12: Value of GSL payments
D13: 0's | E13: $0's
B14: Appointments
B15: Total customer arranged appointments | D15: ='[5]6.9 STPIS - GSL'!$D$15 -> 3478
B16: Appointments not met within 15 mins of agreed time | D16: ='[5]6.9 STPIS - GSL'!$D$16 -> 23 | E16: ='[5]6.9 STPIS - GSL'!$E$16 -> 690
B17: Appointments - GSL payments | D17: ='[5]6.9 STPIS - GSL'!$D$17 -> 23 | E17: ='[5]6.9 STPIS - GSL'!$E$17 -> 690
B19: To enter further GSL parameters relating to appointments - please copy a row from above and "insert copied cells" above this row.
B21: Connections
B22: Total connections made | D22: ='[5]6.9 STPIS - GSL'!$D$22 -> 16294
B23: Connections not made on agreed date | D23: ='[5]6.9 STPIS - GSL'!$D$23 -> 396 | E23: ='[5]6.9 STPIS - GSL'!$E$23 -> 75650
B24: Connections - GSL payments - 1-4 day delay | D24: ='[5]6.9 STPIS - GSL'!$D$24 -> 295 | E24: ='[5]6.9 STPIS - GSL'!$E$24 -> 40300
B25: Connections - GSL payments - 5+ day delay | D25: ='[5]6.9 STPIS - GSL'!$D$25 -> 101 | E25: ='[5]6.9 STPIS - GSL'!$E$25 -> 35350
B27: To enter further GSL parameters relating to connections - please copy a row from above and "insert copied cells" above this row.
B29: Reliability of supply
B30: ='[8]6.9 STPIS - GSL'!B28:C28 -> Low reliability payments - 8 events | D30: ='[8]6.9 STPIS - GSL'!D28 -> 22237 | E30: ='[8]6.9 STPIS - GSL'!$E$29 -> 2668440
B31: ='[8]6.9 STPIS - GSL'!$B$30:$C$30 -> Low reliability payments - 12 events | D31: ='[8]6.9 STPIS - GSL'!$D$30 -> 5616 | E31: ='[8]6.9 STPIS - GSL'!$E$31 -> 1010880
B32: ='[8]6.9 STPIS - GSL'!$B$32:$C$32 -> Low reliability payments - 24 events | D32: ='[8]6.9 STPIS - GSL'!$D$32 -> 2540 | E32: ='[8]6.9 STPIS - GSL'!$E$33 -> 914400
B33: ='[8]6.9 STPIS - GSL'!$B$34:$C$34 -> Low reliability payments - 20 hours | D33: ='[8]6.9 STPIS - GSL'!$D$34 -> 23574 | E33: ='[8]6.9 STPIS - GSL'!$E$35 -> 2828880
B34: ='[8]6.9 STPIS - GSL'!$B$36:$C$36 -> Low reliability payments - 30 hours | D34: ='[8]6.9 STPIS - GSL'!$D$36 -> 24154 | E34: ='[8]6.9 STPIS - GSL'!$E$37 -> 4347720
B35: ='[8]6.9 STPIS - GSL'!$B$38:$C$38 -> Low reliability payments - 60 hours | D35: ='[8]6.9 STPIS - GSL'!$D$38 -> 14402 | E35: ='[8]6.9 STPIS - GSL'!$E$39 -> 5184720
B36: ='[8]6.9 STPIS - GSL'!$B$40:$C$40 -> Low reliability payments - 24 momentary events | D36: ='[8]6.9 STPIS - GSL'!$D$40 -> 12121 | E36: ='[8]6.9 STPIS - GSL'!$E$41 -> 363630
B37: ='[8]6.9 STPIS - GSL'!$B$42:$C$42 -> Low reliability payments - 36 momentary events | D37: ='[8]6.9 STPIS - GSL'!$D$42 -> 2895 | E37: ='[8]6.9 STPIS - GSL'!$E$43 -> 115800
B38: ='[8]6.9 STPIS - GSL'!$B$44:$C$44 -> Low reliability payments - Duration per Event (12hrs) Urban | D38: ='[8]6.9 STPIS - GSL'!$D$44 -> 2181 | E38: ='[8]6.9 STPIS - GSL'!$E$45 -> 174480
B39: ='[8]6.9 STPIS - GSL'!$B$46:$C$46 -> Low reliability payments - Duration per Event (18hrs) Rural | D39: ='[8]6.9 STPIS - GSL'!$D$46 -> 126 | E39: ='[8]6.9 STPIS - GSL'!$E$47 -> 10080
B51: To enter further GSL parameters relating to reliability of supply - please copy a row from above and "insert copied cells" above this row.
B53: Street lights
B54: Street lights | D54: 146753 | E54: =D54*25 -> 3668825
B55: Street lights "out" during period | D55: =[9]Summary!$F$15 -> 7255 | E55: =D55*25 -> 181375
B56: Street lights not repaired by "fix by" date
B57: Street lights not repaired in 2 business days | D57: =[9]Summary!$F$27 -> 1622 | E57: 40550
B58: Street lights – number of business days to repair | D58: =[9]Summary!$G$30 -> 2.439210253
B59: Street Light - GSL payments | D59: 43 | E59: 1075
B61: To enter further GSL parameters relating to street lights - please copy a row from above and "insert copied cells" above this row.
B63: Planned interruptions
E64: 0
B67: To enter further GSL parameters relating to planned interruptions - please copy a row from above and "insert copied cells" above this row.
B69: <NSP defined parameter category>
B73: To enter further GSL parameters - please identify the parameter and if insufficient rows please copy a row from above and "insert copied cells" above this row.
B75: <NSP defined parameter category>
B79: To enter further GSL parameters - please identify the parameter and if insufficient rows please copy a row from above and "insert copied cells" above this row.
B81: <NSP defined parameter category>
B85: To enter further GSL parameters - please identify the parameter and if insufficient rows please copy a row from above and "insert copied cells" above this row.
B87: <NSP defined parameter category>
B91: To enter further GSL parameters - please identify the parameter and if insufficient rows please copy a row from above and "insert copied cells" above this row.
B94: 6.9.2 - GUARANTEED SERVICE LEVELS - AER GSL SCHEME
B96: Complete Table 6.9.2 if the AER's GSL scheme applied at any time during the regulatory year. Do not complete Table 6.9.2 if the AER's GSL scheme did not apply during the regulatory year.
D98: =CRY -> 2016 | E98: =CRY -> 2016
D99: Volume | E99: Value of GSL payments
D100: 0's | E100: $0's
B101: New connections
B102: Number of connections made
B103: Number of connections not made on or before the day agreed
B104: Connections - GSL payments – 1-6 day delay
B105: Connections - GSL payments – 7+ day delay
B106: Reliability of supply
B107: Frequency of interruptions – CBD feeders – 9 interruptions
B108: Frequency of interruptions – Urban feeders – 9 interruptions
B109: Frequency of interruptions – Rural (short and long) feeders – 15 interruptions
B110: Interruptions – CBD feeders – 12 hours duration
B111: Interruptions – Urban feeders – 12 hours duration
B112: Interruptions – Rural (short and long) feeders – 18 hours duration
B113: Total duration of interruptions Level 1 – 20 hours
B114: Total duration of interruptions Level 2 – 30 hours
B115: Total duration of interruptions Level 3 – 60 hours
B116: Street lights
B117: Streetlight repair 5 days – GSL payments
B118: Planned interruptions
B119: Notice of planned interruptions – 4 business days notice not given
B120: Total | E120: =SUM(E119,E117,E107:E115,E104:E105) -> 0

Sheet 7.8 Avoided TUOS Payments
B1: =(LOOKUP(dms_Model,dms_Model_List,dms_Worksheet_List)) -> ANNUAL REPORTING STATEMENT
B2: =dms_TradingName -> AusNet (D)
B3: =CONCATENATE("Annual Reporting RIN Response ",CRY) -> Annual Reporting RIN Response 2016
B4: 7.8 - AVOIDED TUOS PAYMENTS
B6: 7.8.1 - AVOIDED TUOS PAYMENTS
C7: Avoided TUOS Payment
C8: $0's, nominal
B9: Embedded generators
B10: Market network service providers
B11: Other

Sheet 7.10 Juris Scheme
B1: =(LOOKUP(dms_Model,dms_Model_List,dms_Worksheet_List)) -> ANNUAL REPORTING STATEMENT
B2: =dms_TradingName -> AusNet (D)
B3: =CONCATENATE("Annual Reporting RIN Response ",CRY) -> Annual Reporting RIN Response 2016
B4: 7.10 - JURISDICTIONAL SCHEMES
B6: Instructions Business must list each relevant jurisdictional scheme individually and report information for each scheme separately from other schemes.
B8: 7.10.1 - JURISDICTIONAL SCHEME PAYMENTS
B9: Jurisdictional Scheme Name | C9: Description | D9: Date DNSP Became Subject to Scheme | E9: Description of Cost Recovery Method | F9: Total Scheme Payments
F10: $0's, nominal
B11: PFIT | C11: Premium feed-in tariff payments | D11: 2009-11-01 | E11: Through Jurisdictional Tariffs | F11: 23154017.81
B12: TFIT | C12: Transitional feed-in tariff payments | D12: 2012-01-01 | E12: Through Jurisdictional Tariffs | F12: 10428125.32
E17: Total | F17: =SUM(F11:F16) -> 33582143.13

Sheet 7.11 DMIS-DMIA
B1: =(LOOKUP(dms_Model,dms_Model_List,dms_Worksheet_List)) -> ANNUAL REPORTING STATEMENT
B2: =dms_TradingName -> AusNet (D)
B3: =CONCATENATE("Annual Reporting RIN Response ",CRY) -> Annual Reporting RIN Response 2016
B4: 7.11 - DEMAND MANAGEMENT INCENTIVE SCHEME
B6: 7.11.1 - DMIA - PROJECTS SUBMITTED FOR APPROVAL
C7: =CONCATENATE("Total amount of the DMIA spent in ", CRY) -> Total amount of the DMIA spent in 2016
C8: Operating expenditure | D8: Capital expenditure | E8: Total
B9: Name of project | C9: $0's, nominal
B10: Grid Energy Storage System Trial | C10: 77478.3 | E10: =SUM(C10:D10) -> 77478.3
B11: Mooroolbark Community Mini Grid | D11: 1421230.41 | E11: 1421230.41
E12: 0
E13: 0
E14: 0
E15: =SUM(C15:D15) -> 0
B16: To enter additional projects - please copy a row from above and "insert copied cells" above this row.
B17: Total | C17: =SUM(C10:C16) -> 77478.3 | D17: =SUM(D10:D16) -> 1421230.41 | E17: =SUM(E10:E16) -> 1498708.71

Sheet 7.12 Safety and Bushfire
B1: =(LOOKUP(dms_Model,dms_Model_List,dms_Worksheet_List)) -> ANNUAL REPORTING STATEMENT
B2: =dms_TradingName -> AusNet (D)
B3: =CONCATENATE("Annual Reporting RIN Response ",CRY) -> Annual Reporting RIN Response 2016
B4: 7.12 SAFETY AND BUSHFIRE RELATED EXPENDITURE
B6: These templates collect information from Victorian businesses only. Bushfire and safety related expenditure information is used by the AER to monitor the expenditures throughout the regulatory control period.
B8: CPI applied to convert expected expenditure in real $ to nominal based on lagged September CPI index
B10: Instructions
B11: For "Exclusive of Margins & Overheads" reported expenditure is to EXCLUDE any overheads, profit margins or management fees paid directly or indirectly to related party contractors (not including actual incurred expense of the related party contractor) for the reporting period.
B12: For "Value of Margins & Overheads" reported expenditure is to COMPRISE ONLY the sum of overheads, profit margins or management fees paid directly or indirectly to related party contractors (not including actual incurred expenses of the related party contractor) for the reporting period.
B14: =CONCATENATE(dms_TradingName, " is to specify each activity in this table in accordance with the definition in Appendix F of the RIN.") -> AusNet (D) is to specify each activity in this table in accordance with the definition in Appendix F of the RIN.
B15: All activities must be reported but the Reason for Difference is only required if there is a 10 per cent difference between the expected value and the actual value. Use median unit costs. Where unit costs are not recorded at the asset category level - provide the best estimates of the unit cost using the cost allocation method identified in this table. (As a transitional measure, the unit cost may be based on a statistically significant annual sample of actual work orders at a 5% or better confidence interval.) Provide basis of allocation where applicable.
B17: 7.12.1 - SAFETY AND BUSHFIRE RELATED ASSET GROUP DEFINITIONS AND ALLOCATION BASIS
B18: Activity | C18: Definitions | G18: Basis for allocation of cost to activity
B19: Planned non-preferred services replacements | C19: =[10]Template!C12 -> N/A | G19: =[10]Template!G12 -> N/A
B20: Planned replacement of non-preferred services due to height | C20: =[10]Template!C13 -> N/A | G20: =[10]Template!G13 -> N/A
B21: Removal of public lighting switchwire | C21: =[10]Template!C14 -> N/A | G21: =[10]Template!G14 -> N/A
B22: Replacement of existing SWER lines with 22kV overhead bare conductor | C22: =[10]Template!C15 -> N/A | G22: =[10]Template!G15 -> N/A
B23: Installation of GFN and associated equipment at zone substations | C23: =[10]Template!C16 -> N/A - REFCL Programme works are disclosed in additional categories below. | G23: =[10]Template!G16 -> N/A
B24: Replacement of crossarms/insulator sets – pole top fire mitigation | C24: =[10]Template!C17 -> N/A | G24: =[10]Template!G17 -> N/A
B25: Replacement of crossarms – based on age and condition | C25: =[10]Template!C18 -> Replacement of crossarms – based on age and condition | G25: =[10]Template!G18 -> Projects allocated directly to activity
B26: Replacement of poles – based on age and condition | C26: =[10]Template!C19 -> N/A | G26: =[10]Template!G19 -> N/A
B27: Stake poles – based on age and condition | C27: =[10]Template!C20 -> N/A | G27: =[10]Template!G20 -> N/A
B28: Replacement of undersized poles | C28: =[10]Template!C21 -> N/A | G28: =[10]Template!G21 -> N/A
B29: Stake undersized poles | C29: =[10]Template!C22 -> N/A | G29: =[10]Template!G22 -> N/A
B30: Replacement of overhead conductor – mainly steel | C30: =[10]Template!C23 -> Includes Steel Conductor replacement programme | G30: =[10]Template!G23 -> Projects allocated directly to activity
B31: Service line clearance – overhead services requiring relocation | C31: =[10]Template!C24 -> N/A | G31: =[10]Template!G24 -> N/A
B32: Service line clearance – overhead services requiring undergrounding | C32: =[10]Template!C25 -> N/A | G32: =[10]Template!G25 -> N/A
B33: Replacement of 22kV distribution feeders with ABC/underground cabling | C33: =[10]Template!C26 -> Includes Vibration Dampers & Armour Rods, 56M (overhangs), Jigsaw/ABC projects. This will include works in codified areas (in future periods). | G33: =[10]Template!G26 -> Projects allocated directly to activity
B34: Replacement of SWER with covered carbon core conductor or equivalent | C34: =[10]Template!C27 -> N/A | G34: =[10]Template!G27 -> N/A
B35: Replacement of SWER with ABC | C35: =[10]Template!C28 -> N/A | G35: =[10]Template!G28 -> N/A
B36: Replacement of SWER with underground | C36: =[10]Template!C29 -> N/A | G36: =[10]Template!G29 -> N/A
B37: Replacement of surge diverters (neptune configuration) | C37: =[10]Template!C30 -> N/A | G37: =[10]Template!G30 -> N/A
B38: Replacement of surge diverters (single phase or three phase) | C38: =[10]Template!C31 -> REFCL Programme - Surge Arrester Replacements | G38: =[10]Template!G31 -> Projects allocated directly to activity
B39: =[10]Template!B32 -> REFCL Programme - Zone Substation Works | C39: =[10]Template!C32 -> REFCL Programme - Zone Substation Works | G39: =[10]Template!G32 -> Projects allocated directly to activity
B40: =[10]Template!B33 -> REFCL Programme - Network Balancing | C40: =[10]Template!C33 -> REFCL Programme - Network Balancing | G40: =[10]Template!G33 -> Projects allocated directly to activity
B41: =[10]Template!B34 -> REFCL Programme - Other | C41: =[10]Template!C34 -> REFCL Programme - Other | G41: =[10]Template!G34 -> Projects allocated directly to activity
B42: =[10]Template!B35 -> Other | C42: =[10]Template!C35 -> Other | G42: =[10]Template!G35 -> Projects allocated directly to activity
B43: =[10]Template!B36 -> Other - Environmental works | C43: =[10]Template!C36 -> Other - Environmental works | G43: =[10]Template!G36 -> Projects allocated directly to activity
B44: =[10]Template!B37 -> Other - EDO | C44: =[10]Template!C37 -> Other - EDO | G44: =[10]Template!G37 -> Projects allocated directly to activity
B45: =[10]Template!B38 -> Other - Security | C45: =[10]Template!C38 -> Other - Security | G45: =[10]Template!G38 -> Projects allocated directly to activity
B46: To enter further activities - please copy row from above and "insert copied cells" into a row above this row.
B48: 7.12.2 - BUSHFIRE RELATED
B50: 7.12.2.1 - NUMBER OF ACTIVITIES
B51: Activity | C51: Units | D51: Number of Activities
B52: Planned non-preferred services replacements | C52: number of services | D52: 0
B53: Planned replacement of non-preferred services due to height | C53: number of services | D53: 0
B54: Removal of public lighting switchwire | C54: number of spans removed | D54: 0
B55: Replacement of existing SWER lines with 22kV overhead bare conductor | C55: kms of SWER | D55: 0
B56: Installation of GFN and associated equipment at zone substations | C56: number of zone substations | D56: 0
B57: Replacement of crossarms/insulator sets – pole top fire mitigation | C57: number of crossarms/sets | D57: 0
B58: Replacement of crossarms – based on age and condition | C58: number of crossarms | D58: 0
B59: Replacement of poles – based on age and condition | C59: number of poles | D59: 0
B60: Stake poles – based on age and condition | C60: number of poles | D60: 0
B61: Replacement of undersized poles | C61: number of poles | D61: 0
B62: Stake undersized poles | C62: number of poles | D62: 0
B63: Replacement of overhead conductor – mainly steel | C63: kms | D63: 359
B64: Service line clearance – overhead services requiring relocation | C64: number of services | D64: 0
B65: Service line clearance – overhead services requiring undergrounding | C65: number of services | D65: 0
B66: Replacement of 22kV distribution feeders with ABC/underground cabling | C66: number of feeders | D66: 20608.95731
B67: Replacement of SWER with covered carbon core conductor or equivalent | C67: kms | D67: 0
B68: Replacement of SWER with ABC | C68: kms | D68: 0
B69: Replacement of SWER with underground | C69: kms | D69: 0
B70: Replacement of surge diverters (neptune configuration) | C70: number of units | D70: 0
B71: Replacement of surge diverters (single phase or three phase) | C71: number of units | D71: 0
B72: =IF(ISBLANK(B39),"",B39) -> REFCL Programme - Zone Substation Works | C72: =[10]Template!C65 -> number of units | D72: 0
B73: =IF(ISBLANK(B40),"",B40) -> REFCL Programme - Network Balancing | C73: =[10]Template!C66 -> number of units | D73: 1.908039841
B74: REFCL Programme - Other | C74: =[10]Template!C67 -> number of units | D74: 0
B75: Other | C75: =[10]Template!C68 -> number of units | D75: 47.66542643
B76: Other - Environmental works | C76: =[10]Template!C69 -> number of units | D76: 0
B77: Other - EDO | C77: =[10]Template!C70 -> number of units | D77: 844
B78: Other - Security | C78: =[10]Template!C71 -> number of projects | D78: 0
B79: To enter further activities - please copy row from above and "insert copied cells" into a row above this row.
B82: 7.12.2.2 - EXPENDITURE
B83: Activity | C83: Units | D83: Exclusive of Margins & Overheads | E83: Value of Margins & Overheads
D84: Actual Expenditure
D85: $0's, Nominal
B86: Planned non-preferred services replacements | C86: number of services | D86: 0 | E86: 0
B87: Planned replacement of non-preferred services due to height | C87: number of services | D87: 0 | E87: 0
B88: Removal of public lighting switchwire | C88: number of spans removed | D88: 0 | E88: 0
B89: Replacement of existing SWER lines with 22kV overhead bare conductor | C89: kms of SWER | D89: 0 | E89: 0
B90: Installation of GFN and associated equipment at zone substations | C90: number of zone substations | D90: 0 | E90: 0
B91: Replacement of crossarms/insulator sets – pole top fire mitigation | C91: number of crossarms/sets | D91: 0 | E91: 0
B92: Replacement of crossarms – based on age and condition | C92: number of crossarms | D92: 0 | E92: 0
B93: Replacement of poles – based on age and condition | C93: number of poles | D93: 0 | E93: 0
B94: Stake poles – based on age and condition | C94: number of poles | D94: 0 | E94: 0
B95: Replacement of undersized poles | C95: number of poles | D95: 0 | E95: 0
B96: Stake undersized poles | C96: number of poles | D96: 0 | E96: 0
B97: Replacement of overhead conductor – mainly steel | C97: kms | D97: 19749010.82 | E97: 2273051.326
B98: Service line clearance – overhead services requiring relocation | C98: number of services | D98: 0 | E98: 0
B99: Service line clearance – overhead services requiring undergrounding | C99: number of services | D99: 0 | E99: 0
B100: Replacement of 22kV distribution feeders with ABC/underground cabling | C100: number of feeders | D100: 38068171.79 | E100: 4560524.938
B101: Replacement of SWER with covered carbon core conductor or equivalent | C101: kms | D101: 0 | E101: 0
B102: Replacement of SWER with ABC | C102: kms | D102: 0 | E102: 0
B103: Replacement of SWER with underground | C103: kms | D103: 0 | E103: 0
B104: Replacement of surge diverters (neptune configuration) | C104: number of units | D104: 0 | E104: 0
B105: Replacement of surge diverters (single phase or three phase) | C105: number of units | D105: 14039.15 | E105: 1121.848637
B106: =IF(ISBLANK(B39),"",B39) -> REFCL Programme - Zone Substation Works | C106: =IF(ISBLANK(C72),"",C72) -> number of units | D106: 5845103.289 | E106: 727483.996
B107: REFCL Programme - Network Balancing | C107: number of units | D107: 115216.32 | E107: 15040.67432
B108: REFCL Programme - Other | C108: number of units | D108: 21584.32 | E108: 2011.72342
B109: Other | C109: number of units | D109: 1734519.716 | E109: 204944.6801
B110: Other - Environmental works | C110: number of units | D110: 0 | E110: 0
B111: Other - EDO | C111: number of units | D111: 2000916.221 | E111: 231107.2999
B112: Other - Security | C112: number of projects | D112: 0 | E112: 0
B113: To enter further activities - please copy row from above and "insert copied cells" into a row above this row.
B117: 7.12.2.3 - UNIT COSTS
B118: Activity | D118: Actual
D119: $0's, Per Unit
B120: Planned non-preferred services replacements | D120: 0
B121: Planned replacement of non-preferred services due to height | D121: 0
B122: Removal of public lighting switchwire | D122: 0
B123: Replacement of existing SWER lines with 22kV overhead bare conductor | D123: 0
B124: Installation of GFN and associated equipment at zone substations | D124: 0
B125: Replacement of crossarms/insulator sets – pole top fire mitigation | D125: 0
B126: Replacement of crossarms – based on age and condition | D126: 0
B127: Replacement of poles – based on age and condition | D127: 0
B128: Stake poles – based on age and condition | D128: 0
B129: Replacement of undersized poles | D129: 0
B130: Stake undersized poles | D130: 0
B131: Replacement of overhead conductor – mainly steel | D131: 55011.17221
B132: Service line clearance – overhead services requiring relocation | D132: 0
B133: Service line clearance – overhead services requiring undergrounding | D133: 0
B134: Replacement of 22kV distribution feeders with ABC/underground cabling | D134: 1847.166318
B135: Replacement of SWER with covered carbon core conductor or equivalent | D135: 0
B136: Replacement of SWER with ABC | D136: 0
B137: Replacement of SWER with underground | D137: 0
B138: Replacement of surge diverters (neptune configuration) | D138: 0
B139: Replacement of surge diverters (single phase or three phase) | D139: 0
B140: =IF(ISBLANK(B39),"",B39) -> REFCL Programme - Zone Substation Works | D140: 0
B141: REFCL Programme - Network Balancing | D141: 60384.65105
B142: REFCL Programme - Other | D142: 0
B143: Other | D143: 36389.47232
B144: Other - Environmental works | D144: 0
B145: Other - EDO | D145: 2370.753816
B146: Other - Security | D146: 0
B147: To enter further activities - please copy row from above and "insert copied cells" into a row above this row.
B150: 7.12.2.4 - CONTINGENT PROJECT APPLICATIONS - VOLUMES APPROVED
B151: Activity | C151: Units | D151: Volume approved under contingent project applications | E151: Actual volumes | F151: Difference
B152: =[10]Template!B144 -> There are currently no approved Contingent Project Applications. | F152: =[10]Template!F144 -> 0
F153: =[10]Template!F145 -> 0
F154: =[10]Template!F146 -> 0
F155: =[10]Template!F147 -> 0
F156: =[10]Template!F148 -> 0
F157: =[10]Template!F149 -> 0
F158: =[10]Template!F150 -> 0
F159: =[10]Template!F151 -> 0
B160: To enter further activities - please copy row from above and "insert copied cells" into a row above this row.
B162: 7.12.2.5 - CONTINGENT PROJECT APPLICATIONS - EXPENDITURE APPROVED
B163: Activity | C163: Exclusive of Margins & Overheads | D163: Value of Margins & Overheads
C164: Actual Expenditure
C165: $0's, Nominal
B166: =[10]Template!B158 -> There are currently no approved Contingent Project Applications.
B167: =[10]Template!B159 -> 
B168: =[10]Template!B160 -> 
B169: =[10]Template!B161 -> 
B170: =[10]Template!B162 -> 
B171: =[10]Template!B163 -> 
B172: =[10]Template!B164 -> 
B173: =[10]Template!B165 -> 
B174: To enter further activities - please copy row from above and "insert copied cells" into a row above this row.
B178: 7.12.3 - SAFETY RELATED
B180: 7.12.3.1 - NUMBER OF ACTIVITIES
B181: Activity | C181: Units | D181: Number of Activities
B182: Planned non-preferred services replacements | C182: number of services | D182: 0
B183: Planned replacement of non-preferred services due to height | C183: number of services | D183: 0
B184: Removal of public lighting switchwire | C184: number of spans removed | D184: 0
B185: Replacement of existing SWER lines with 22kV overhead bare conductor | C185: kms of SWER | D185: 0
B186: Installation of GFN and associated equipment at zone substations | C186: number of zone substations | D186: 0
B187: Replacement of crossarms/insulator sets – pole top fire mitigation | C187: number of crossarms/sets | D187: 0
B188: Replacement of crossarms – based on age and condition | C188: number of crossarms | D188: 148.0493859
B189: Replacement of poles – based on age and condition | C189: number of poles | D189: 0
B190: Stake poles – based on age and condition | C190: number of poles | D190: 0
B191: Replacement of undersized poles | C191: number of poles | D191: 0
B192: Stake undersized poles | C192: number of poles | D192: 0
B193: Replacement of overhead conductor – mainly steel | C193: kms | D193: 0
B194: Service line clearance – overhead services requiring relocation | C194: number of services | D194: 0
B195: Service line clearance – overhead services requiring undergrounding | C195: number of services | D195: 0
B196: Replacement of 22kV distribution feeders with ABC/underground cabling | C196: number of feeders | D196: 0
B197: Replacement of SWER with covered carbon core conductor or equivalent | C197: kms | D197: 0
B198: Replacement of SWER with ABC | C198: kms | D198: 0
B199: Replacement of SWER with underground | C199: kms | D199: 0
B200: Replacement of surge diverters (neptune configuration) | C200: number of units | D200: 0
B201: Replacement of surge diverters (single phase or three phase) | C201: number of units | D201: 0
B202: =IF(ISBLANK(B39),"",B39) -> REFCL Programme - Zone Substation Works | C202: =IF(ISBLANK(C72),"",C72) -> number of units | D202: 0
B203: REFCL Programme - Network Balancing | C203: number of units | D203: 0
B204: REFCL Programme - Other | C204: number of units | D204: 0
B205: Other | C205: number of units | D205: 176.9995412
B206: Other - Environmental works | C206: number of units | D206: 7
B207: Other - EDO | C207: number of units | D207: 0
B208: Other - Security | C208: number of projects | D208: 3
B209: To enter further activities - please copy row from above and "insert copied cells" into a row above this row.
B212: 7.12.3.2 - EXPENDITURE
B213: Activity | C213: Units | D213: Exclusive of Margins & Overheads | E213: Value of Margins & Overheads
D214: Actual Expenditure
D215: $0's, Nominal
B216: Planned non-preferred services replacements | C216: number of services | D216: 0 | E216: 0
B217: Planned replacement of non-preferred services due to height | C217: number of services | D217: 0 | E217: 0
B218: Removal of public lighting switchwire | C218: number of spans removed | D218: 0 | E218: 0
B219: Replacement of existing SWER lines with 22kV overhead bare conductor | C219: kms of SWER | D219: 0 | E219: 0
B220: Installation of GFN and associated equipment at zone substations | C220: number of zone substations | D220: 0 | E220: 0
B221: Replacement of crossarms/insulator sets – pole top fire mitigation | C221: number of crossarms/sets | D221: 0 | E221: 0
... 113 more rows

Sheet 7.13 TARC
B1: =(LOOKUP(dms_Model,dms_Model_List,dms_Worksheet_List)) -> ANNUAL REPORTING STATEMENT
B2: =dms_TradingName -> AusNet (D)
B3: =CONCATENATE("Annual Reporting RIN Response ",CRY) -> Annual Reporting RIN Response 2016
B4: 7.13 - TARC
B7: 7.13.1 - TOTAL ANNUAL RETAILER CHARGES
C8: $0's
B9: TARC | C9: 723862049.3

Sheet 8.1 Income
B1: =(LOOKUP(dms_Model,dms_Model_List,dms_Worksheet_List)) -> ANNUAL REPORTING STATEMENT
B2: =dms_TradingName -> AusNet (D)
B3: =CONCATENATE("Annual Reporting RIN Response ",CRY) -> Annual Reporting RIN Response 2016
B4: 8.1 - INCOME
B6: 8.1.1 - INCOME STATEMENT
C7: Audited Statutory Accounts | D7: Adjustments | E7: Distribution business | F7: Standard Control Services | G7: Alternative Control Services | L7: Negotiated Services
G8: Public Lighting | I8: Other
G9: =IF(dms_Jurisdiction="Vic","Energy efficient","") -> Energy efficient | H9: =IF(dms_Jurisdiction="Vic","Non-energy efficient","") -> Non-energy efficient | I9: Connection services | J9: Metering services | K9: Ancillary network services
C10: $0's, nominal
B11: 8.1.1.1 - REVENUE
A12: Distribution Revenue | B12: Distribution revenue | E12: 700422313.1 | F12: 588125125.4 | G12: 1384035.92 | H12: 5687384.64 | I12: 3545679.399 | J12: 94340092.18 | K12: 7339995.577
A13: Cross boundary revenue | B13: Cross boundary revenue | E13: 4554374.67 | F13: 4554374.67
A14: Customer Contributions | B14: Contributions | E14: 0 | F14: 0
A15: Interest income | B15: Interest income | E15: 0 | F15: 0
A16: Jurisdictional scheme amounts | B16: Jurisdictional scheme amounts | E16: 39172897.57 | F16: 39172897.57
A17: Profit from sale of fixed assets | B17: Profit from sale of fixed assets | E17: 37101.91 | F17: 37101.91
A18: TUOS revenue | B18: TUOS revenue | E18: 97491690.56 | F18: 97491690.56
A19: Pass through revenue (F-factor) | B19: Pass through revenue (F-factor) | E19: 0
A20: Other Revenue | B20: Other Revenue | E20: 499139.25 | K20: 499139.25
B21: Total revenue | E21: =SUM(E12:E20) -> 842177517.1 | F21: 729381190.1 | G21: 1384035.92 | H21: 5687384.64 | I21: 3545679.399 | J21: 94340092.18 | K21: 7839134.827 | L21: =SUM(L12:L20) -> 0
B23: 8.1.1.2 - EXPENDITURE
A24: TUOS costs | B24: TUOS expenditure | E24: 106721315.5 | F24: 106721315.5
A25: Avoided TUOS expenditure | B25: Avoided TUOS expenditure | E25: 801138.745 | F25: 801138.745
A26: Cross boundary costs | B26: Cross boundary expenditure | E26: 686190.56 | F26: 686190.56
A27: Depreciation | B27: Depreciation | E27: 154373941.2 | F27: 103021728.6 | G27: 98523.3164 | H27: 913785.5644 | J27: 49550254.64 | K27: 789649.0937
A28: Net Finance Charges | B28: Finance charges | E28: 4366645.917 | F28: 3924596.684 | J28: 442049.2331
A29: Impairment | B29: Impairment losses | E29: 0
A30: Jurisdictional scheme amounts | B30: Jurisdictional scheme amounts | E30: 33582143.13 | F30: 33582143.13
A31: Loss from sale of Fixed Assets | B31: Loss from sale of fixed assets | E31: 1039989.4 | F31: 0 | H31: 196331.35 | J31: 843658.05
A32: Maintenance | B32: Maintenance expenditure | E32: 93472875.3 | F32: 82254664.89 | G32: 380981.2905 | H32: 1565557.012 | J32: 6477139.726 | K32: 2794532.388
A33: Operating Expenses | B33: Operating expenditure excluding maintenance expenditure | E33: 191185936.5 | F33: 158256811.1 | I33: 0 | J33: 28151985.4 | K33: 4777140.011
A34: Other | B34: Other | E34: 0
B36: 8.1.1.3 - PROFIT
B37: Profit before tax (PBT) | E37: =E21-SUM(E24:E34) -> 255947340.8 | F37: 240132600.9 | G37: 904531.3131 | H37: 3011710.713 | I37: 3545679.399 | J37: 8875005.132 | K37: =K21-SUM(K24:K34) -> -522186.6657 | L37: 0
A38: Income Tax Expenses /(Benefit) | B38: Income tax expenses (/ benefit) | E38: 0
B39: Profit after tax | E39: =E37-E38 -> 255947340.8 | F39: 240132600.9 | G39: 904531.3131 | H39: 3011710.713 | I39: 3545679.399 | J39: 8875005.132 | K39: -522186.6657 | L39: =L37-L38 -> 0

Sheet 8.2 Capex
B1: =(LOOKUP(dms_Model,dms_Model_List,dms_Worksheet_List)) -> ANNUAL REPORTING STATEMENT
B2: =dms_TradingName -> AusNet (D)
B3: =CONCATENATE("Annual Reporting RIN Response ",CRY) -> Annual Reporting RIN Response 2016
B4: 8.2 - CAPEX
B6: Instructions
B7: Reported expenditure must EXCLUDE capital contributions (except tables 8.2.1 and 8.2.5 which should include all capital contributions).
B8: =CONCATENATE("Forecast expenditure is to be taken from ",dms_TradingName,"'s ",dms_DeterminationRef,".") -> Forecast expenditure is to be taken from AusNet (D)'s 2016-20 Distribution Determination.
B9: If allocating based on assumptions then provide method in Basis of Preparation. All adjustments must be explained in Basis of Preparation with supporting documentation attached.
B11: For tables 8.2.1 and 8.2.3: Reported expenditure must INCLUDE any profit margins or management fees paid directly or indirectly to related party contractors (not including actual incurred expenses of the related party contractor) for the regulatory reporting period. 'Related Party Margin Expenditure' must COMPRISE ONLY profit margins or management fees paid directly or indirectly to related party contractors (not including actual incurred expenses of the related party contractor) for the regulatory reporting period.
B13: 8.2.1 - CAPEX BY PURPOSE - STANDARD CONTROL SERVICES
B15: Each line item in this table must INCLUDE the capital contributions. Total capital contributions should also be identified in the last item in the table.
C17: EXPENDITURE
C18: CPI adjusted Forecast | D18: Actual | E18: Difference | F18: Related Party Margin | G18: Voltage level
G19: Subtransmission | H19: HV | I19: LV | J19: Other
B20: Description | C20: $0's, nominal | E20: (%) | F20: $0's, nominal
B21: Augmentation | C21: 64563539.78 | D21: 68709984.76 | E21: 0.06422270202 | F21: 453280.2883 | G21: 11946367.55 | H21: 49662638.2 | I21: 4749524.983 | J21: 2351454.027
B22: Connections | C22: 81964741.24 | D22: 69898144.99 | E22: -0.1472169138 | F22: 52342.1434 | G22: 10413.14786 | H22: 29325302.87 | I22: 40562428.97 | J22: 0
B23: Replacement | C23: 136214361.5 | D23: 118514990.5 | E23: -0.1299376274 | F23: 1301270.347 | G23: 16391246.81 | H23: 83198873.86 | I23: 18924869.85 | J23: 0
B24: Non-Network | C24: 45303856.13 | D24: 18681624.21 | E24: -0.5876372167 | F24: 0 | G24: 0 | H24: 0 | I24: 0 | J24: 18681624.21
B25: Capitalised overheads | C25: 33859223.15 | D25: 31629909.39 | E25: -0.06584066488 | F25: 0 | G25: 3250994.532 | H25: 18599963.13 | I25: 7366829.139 | J25: 2412122.587
B26: Escalation adjustment | C26: -1018670.378 | D26: 0 | E26: -1 | F26: 0 | G26: 0 | H26: 0 | I26: 0 | J26: 0
D27: 0
D28: 0
D29: 0
D30: 0
D31: 0
D32: 0
D33: 0
D34: 0
D35: 0
B36: Capital contributions included in the above | C36: 39930419.67 | D36: 20721693.2 | E36: -0.4810549608 | G36: 902693.2003 | H36: 12371900.23 | I36: 4900099.773 | J36: 2547000
B37: Total | C37: =SUM(C21:C35)-C36 -> 320956631.7 | D37: =SUM(D21:D35)-D36 -> 286712960.7 | E37: =IF(C37=0,1,(D37-C37)/C37*1) -> -0.1066925176 | F37: =SUM(F21:F35) -> 1806892.779 | G37: =SUM(G21:G35)-G36 -> 30696328.84 | H37: 168414877.8 | I37: 66703553.17 | J37: 20898200.82
B40: 8.2.2 - CAPEX BY PURPOSE - MATERIAL DIFFERENCE EXPLANATION
B42: Where the difference between forecast and actual expenditure shown in table 8.2.1 is a Material Difference please explain the main factors driving the difference.
B44: Description | C44: Reason for material difference
B45: Connections | C45: Lower Connections expenditure in 2016 is mainly due smaller capacity projects undertaken during the calendar year (e.g. Melbourne Water Co-gen project in Wantirna) as compared to large scale projects in 2015 such as "Bald Hills Windfarm connection".
B46: Replacement | C46: The underspend in Replacement capex is mostly due to reduced expenditure on Replacement Maintenance which is driven by lower unit rates. There is also a reduction in Complex Replacement projects due to project delays and also project savings.
B47: Non-Network | C47: IT Non Network Capex is lower in 2016 largely due to delays in proposed programs.
B48: Capital Contributions | C48: Capital Contributions is lower in 2016 due to the delay in implementation of a new charging framework and also due to the overall reduction in Capex in 2016.
B61: 8.2.3 - CAPEX OTHER
C62: EXPENDITURE
C63: CPI adjusted Forecast | D63: Actual | E63: Difference | F63: Related Party Margin | G63: Voltage level
G64: Subtransmission | H64: HV | I64: LV | J64: Other
C65: $0's, nominal | E65: (%) | F65: $0's, nominal
B66: Public lighting
B67: =IF(dms_Jurisdiction="Vic","Energy Efficient", "Total") -> Energy Efficient | D67: =SUM(G67:J67) -> 0 | E67: =IF(C67=0,1,((D67-C67)/C67)*1) -> 1 | F67: 0 | G67: 0 | H67: 0 | I67: 0 | J67: 0
B68: =IF(dms_Jurisdiction="Vic","Non-energy efficient", "") -> Non-energy efficient | D68: =SUM(G68:J68) -> 5283262.833 | E68: =IF(C68=0,1,((D68-C68)/C68)*1) -> 1 | F68: 5122.338113 | G68: 0 | H68: 0 | I68: 0 | J68: 5283262.833
B69: Alternative Control Services
B70: Connection services | E70: =IF(C70=0,1,((D70-C70)/C70)*1) -> 1
B71: Metering services | E71: =IF(C71=0,1,((D71-C71)/C71)*1) -> 1
B72: Ancillary network services | E72: =IF(C72=0,1,((D72-C72)/C72)*1) -> 1
B73: Negotiated Services
B74: Negotiated services | E74: =IF(C74=0,1,((D74-C74)/C74)*1) -> 1
B75: Total | C75: =SUM(C67:C68,C70:C72,C74) -> 0 | D75: =SUM(D67:D68,D70:D72,D74) -> 5283262.833 | E75: =IF(C75=0,1,((C75-#REF!)/#REF!)*1) -> 1 | G75: =SUM(G67:G68,G70:G72,G74) -> 0 | H75: =SUM(H67:H68,H70:H72,H74) -> 0 | I75: =SUM(I67:I68,I70:I72,I74) -> 0 | J75: =SUM(J67:J68,J70:J72,J74) -> 5283262.833
B79: 8.2.4 - CAPEX BY ASSET CLASS
B81: =CONCATENATE(dms_TradingName, " to enter in Table 8.2.4 each Asset Class specified in its current determination as listed in the AER's final decision in its Roll Forward Model and Post-tax Revenue Model and enter information against that Asset Class.") -> AusNet (D) to enter in Table 8.2.4 each Asset Class specified in its current determination as listed in the AER's final decision in its Roll Forward Model and Post-tax Revenue Model and enter information against that Asset Class.
C83: CPI adjusted Forecast | D83: Actual | E83: Difference | F83: Movements in provisions allocated to as-incurred capex
B84: Asset class | C84: $0's, nominal | E84: (%) | F84: $0's, nominal
B85: ='[11]Capex Template'!B69 -> Subtransmission | C85: 46662626.19 | D85: 30696352.38 | E85: -0.342164064 | F85: 295404.3929
B86: ='[11]Capex Template'!B70 -> Distribution system assets | C86: 220502958.9 | D86: 227348524.1 | E86: 0.03104523056 | F86: 2205316.049
B87: ='[11]Capex Template'!B73 -> SCADA/Network control | C87: 7174400.384 | D87: 7771502.529 | E87: 0.08322676652 | F87: 74788.55984
B88: ='[11]Capex Template'!B74 -> Non-network general assets - IT | C88: 41258581.7 | D88: 14507709.08 | E88: -0.648371115 | F88: 139614.0147
B89: ='[11]Capex Template'!B75 -> Non-network general assets - Other | C89: 5358064.517 | D89: 6388872.539 | E89: 0.192384399 | F89: 61482.90815
E90: 1
E91: =IF(C91=0,1,((D91-C91)/C91)*1) -> 1
E92: 1
E93: 1
E94: 1
E95: 1
E96: 1
E97: 1
E98: 1
E99: 1
E100: 1
E101: 1
E102: 1
E103: =IF(C103=0,1,((D103-C103)/C103)*1) -> 1
E104: 1
E105: 1
E106: 1
E107: 1
E108: 1
E109: 1
E110: 1
E111: 1
E112: 1
E113: =IF(C113=0,1,((D113-C113)/C113)*1) -> 1
E114: 1
E115: 1
E116: 1
E117: 1
E118: 1
E119: 1
E120: 1
E121: 1
E122: 1
E123: 1
E124: 1
E125: 1
E126: 1
E127: 1
E128: 1
E129: 1
E130: 1
E131: 1
E132: 1
B133: Total | C133: =SUM(C85:C132) -> 320956631.7 | D133: =SUM(D85:D132) -> 286712960.7 | E133: -0.1066925175 | F133: =SUM(F85:F132) -> 2776605.924
B136: 8.2.5 - CAPITAL CONTRIBUTIONS BY ASSET CLASS
C137: CPI Adjusted Forecast | D137: Actual | E137: Difference
B138: Asset class | C138: $0's, nominal | E138: (%)
B139: =IF(ISBLANK(B85),"",B85) -> Subtransmission | C139: 0 | D139: 0 | E139: =IF(C139=0,1,((D139-C139)/C139)*1) -> 1
B140: Distribution system assets | C140: 39930419.67 | D140: 20721716.74 | E140: =IF(C140=0,1,((D140-C140)/C140)*1) -> -0.4810543713
B141: Standard metering | D141: 0 | E141: 1
B142: =IF(ISBLANK(B87),"",B87) -> SCADA/Network control | C142: 0 | D142: 0 | E142: 1
B143: Non-network general assets - IT | C143: 0 | D143: 0 | E143: 1
B144: Non-network general assets - Other | C144: 0 | D144: 0 | E144: 1
E145: 1
E146: 1
E147: 1
E148: 1
E149: 1
E150: 1
E151: 1
E152: 1
E153: 1
E154: 1
E155: 1
E156: 1
E157: 1
E158: 1
E159: 1
E160: 1
E161: 1
E162: 1
E163: 1
E164: 1
E165: 1
E166: 1
E167: =IF(C167=0,1,((D167-C167)/C167)*1) -> 1
E168: 1
E169: 1
E170: 1
E171: 1
E172: 1
E173: 1
E174: 1
E175: 1
E176: 1
E177: =IF(C177=0,1,((D177-C177)/C177)*1) -> 1
E178: 1
E179: 1
E180: 1
E181: 1
E182: 1
E183: 1
E184: 1
E185: 1
E186: 1
E187: 1
B188: Total | C188: =SUM(C139:C187) -> 39930419.67 | D188: =SUM(D139:D187) -> 20721716.74 | E188: -0.4810543713
B191: 8.2.6 - DISPOSALS BY ASSET CLASS
C192: CPI Adjusted Forecast | D192: Actual | E192: Difference
B193: Asset class | C193: $0's, nominal | E193: (%)
B194: =IF(ISBLANK(B85),"",B85) -> Subtransmission | C194: 0 | D194: 0 | E194: =IF(C194=0,1,((D194-C194)/C194)*1) -> 1
B195: Distribution system assets | C195: 0 | D195: 0 | E195: =IF(C195=0,1,((D195-C195)/C195)*1) -> 1
B196: SCADA/Network control | C196: 0 | D196: 0 | E196: 1
B197: Non-network general assets - IT | C197: 12344 | D197: 0 | E197: -1
B198: Non-network general assets - Other | C198: 1189450 | D198: 3606491 | E198: 2.032066081
E199: 1
E200: 1
E201: 1
E202: 1
E203: 1
E204: 1
E205: 1
E206: 1
E207: 1
E208: 1
E209: 1
E210: 1
E211: 1
E212: 1
E213: 1
E214: 1
E215: 1
E216: 1
E217: 1
E218: 1
E219: 1
E220: 1
E221: 1
E222: =IF(C222=0,1,((D222-C222)/C222)*1) -> 1
E223: 1
B224: =IF(ISBLANK(B115),"",B115) ->  | E224: 1
E225: 1
E226: 1
E227: 1
E228: 1
E229: 1
E230: 1
... 12 more rows

Sheet 8.4 Opex
B1: =(LOOKUP(dms_Model,dms_Model_List,dms_Worksheet_List)) -> ANNUAL REPORTING STATEMENT
B2: =dms_TradingName -> AusNet (D)
B3: =CONCATENATE("Annual Reporting RIN Response ",CRY) -> Annual Reporting RIN Response 2016
B4: 8.4 OPEX
B6: Instructions
B7: =CONCATENATE("Forecast expenditure is to be taken from ",dms_TradingName,"'s ",dms_DeterminationRef,".") -> Forecast expenditure is to be taken from AusNet (D)'s 2016-20 Distribution Determination.
B8: If allocating based on assumptions then provide method in Basis of Preparation. All adjustments must be explained in Basis of Preparation with supporting documentation attached.
B10: 8.4.1 - OPERATING & MAINTENANCE EXPENDITURE - BY PURPOSE
B12: =CONCATENATE(dms_TradingName," is to list the operating expenditure categories identified in ", dms_TradingName,"'s regulatory proposal at table 3.2.1.1 current opex categories and cost allocations.") -> AusNet (D) is to list the operating expenditure categories identified in AusNet (D)'s regulatory proposal at table 3.2.1.1 current opex categories and cost allocations.
B13: =CONCATENATE(dms_TradingName, " must specify any expenditure category where the expense is more than 5 per cent of the total standard control services operating expenditure.") -> AusNet (D) must specify any expenditure category where the expense is more than 5 per cent of the total standard control services operating expenditure.
B14: Reported operating expenditure must INCLUDE any profit margins or management fees paid directly or indirectly to related party contractors (not including actual incurred expenditure of the related party contractor) for the regulatory reporting period.
C16: Audited Statutory Accounts | D16: Adjustments | E16: Distribution business | F16: Standard Control Services | I16: Alternative Control Services | N16: Negotiated Services
F17: CPI Adjusted Forecast | G17: Actual | H17: Difference | I17: Public Lighting | K17: Other
I18: =IF(dms_Jurisdiction="Vic","Energy efficient","") -> Energy efficient | J18: =IF(dms_Jurisdiction="Vic","Non-energy efficient","") -> Non-energy efficient | K18: Connection services | L18: Metering services | M18: Ancillary network services
B19: Opex category | C19: $0's, nominal | H19: % | I19: $0's, nominal
B20: OPERATING
B21: Network Operating Costs | E21: 62969163.77 | F21: 53010187.26 | G21: 58192023.76 | H21: 0.09775171076 | M21: 4777140.011
B22: Billing & Revenue Collection | E22: 580541.65 | F22: 329486.6498 | G22: 580541.65 | H22: 0.7619580351
B23: Advertising, marketing & promotions | E23: 706707.7403 | F23: 686102.5973 | G23: 706707.7403 | H23: 0.03003216006
B24: Customer Service | E24: 6483149.41 | F24: 9516029.166 | G24: 6483149.41 | H24: -0.3187127428
B25: Regulatory | E25: 1395954.36 | F25: 2142590.927 | G25: 1395954.36 | H25: -0.34847369
B26: Regulatory Reset | E26: 0 | F26: 0 | G26: 0
B27: IT | E27: 37716575.03 | F27: 15027013.35 | G27: 27659881.12 | H27: 0.8406772177 | L27: 10056693.91
B28: Licence fee | E28: 0 | F28: 0 | G28: 0
B29: GSL payments | E29: 17667650 | F29: 8425401.322 | G29: 17667650 | H29: 1.096950558
B30: Non-network alternatives costs | E30: 10006677.55 | F30: 12127715.73 | G30: 10006677.55 | H30: -0.174891812
B31: AMI Cost | E31: 23547389.95 | F31: 9749047.066 | G31: 5452098.463 | H31: -0.4407557553 | L31: 18095291.49
B32: Other - Standard Control Services | E32: 30112127.06 | F32: 28003789.12 | G32: 30112127.06 | H32: 0.07528759521
B34: MAINTENANCE
B35: Routine | E35: 16877369.34 | F35: 14181885.14 | G35: 16877369.34 | H35: 0.1900652961
B36: Condition based | E36: 45864091.89 | F36: 55334576.11 | G36: 45864091.89 | H36: -0.1711494853
B37: Emergency | E37: 19378828.25 | F37: 18148005.53 | G37: 19378828.25 | H37: 0.06782137713
B38: SCADA/Network Control | E38: 134375.405 | F38: 32358.54808 | G38: 134375.405 | H38: 3.152701928
B39: Other - Standard Control Services | E39: 0 | H39: 1
B40: AMI | E40: 6477139.726 | H40: 1 | L40: 6477139.726
B41: Public Lighting | E41: 1946538.303 | H41: 1 | I41: 380981.2905 | J41: 1565557.012
B42: Alternative control -other | E42: 2794532.388 | H42: 1 | M42: 2794532.388
B43: Negotiated services | E43: 0 | H43: 1
B44: Other | E44: 0 | H44: 1
H45: 1
H46: =IF(F46=0,1,((G46-F46)/F46)*1) -> 1
H47: 1
H48: 1
H49: 1
H50: 1
H51: 1
H52: 1
H53: 1
H54: 1
H55: =IF(F55=0,1,((G55-F55)/F55)*1) -> 1
H56: 1
H57: 1
H58: 1
H59: 1
H60: 1
H61: 1
H62: 1
H63: 1
H64: 1
H65: 1
H66: 1
H67: 1
H68: 1
H69: 1
B70: Total | E70: =SUM(E20:E69) -> 284658811.8 | F70: 226714188.5 | G70: 240511476 | H70: 0.06085762685 | I70: =SUM(I20:I69) -> 380981.2905 | J70: 1565557.012 | K70: 0 | L70: 34629125.12 | M70: 7571672.399
B73: 8.4.2 - OPERATING & MAINTENANCE EXPENDITURE - BY PURPOSE - MARGINS ONLY
B75: "Related party margin expenditure' must COMPRISE ONLY profit margins or management fees paid directly or indirectly to related party contractors (for expenditure that is not an actual incurred expenditure of the related party contractor) for the regulatory reporting period.
C77: Audited Statutory Accounts | D77: Adjustments | E77: Distribution business | F77: Standard Control Services | I77: Alternative Control Services | N77: Negotiated Services
F78: CPI Adjusted Forecast | G78: Actual | H78: Difference | I78: Public Lighting | K78: Other
I79: =IF(dms_Jurisdiction="Vic","Energy efficient","") -> Energy efficient | J79: =IF(dms_Jurisdiction="Vic","Non-energy efficient","") -> Non-energy efficient | K79: Connection services | L79: Metering services | M79: Ancillary network services
B80: Opex category | C80: $0's, nominal | G80: $0's, nominal | H80: per cent | I80: $0's, nominal
B81: =IF(ISBLANK(B20),"",B20) -> OPERATING | H81: =IF(F81=0,1,((G81-F81)/F81)*1) -> 1
B82: Network Operating Costs | E82: 10301.04962 | G82: 10301.04962 | H82: 1
B83: Billing & Revenue Collection | E83: 0 | G83: 0 | H83: 1
B84: Advertising, marketing & promotions | E84: 0 | G84: 0 | H84: 1
B85: Customer Service | E85: 0 | G85: 0 | H85: 1
B86: Regulatory | E86: 0 | G86: 0 | H86: 1
B87: Regulatory Reset | E87: 0 | G87: 0 | H87: 1
B88: =IF(ISBLANK(B26),"",B26) -> Regulatory Reset | E88: 0 | G88: 0 | H88: =IF(F88=0,1,((G88-F88)/F88)*1) -> 1
B89: IT | E89: 0 | G89: 0 | H89: 1
B90: Licence fee | E90: 0 | G90: 0 | H90: 1
B91: GSL payments | E91: 0 | G91: 0 | H91: 1
B92: Non-network alternatives costs | E92: 0 | G92: 0 | H92: 1
B93: AMI Cost | E93: 0 | G93: 0 | H93: 1
B94: Other - Standard Control Services | E94: 0 | G94: 0 | H94: 1
E95: 0 | G95: 0 | H95: 1
B96: MAINTENANCE | E96: 0 | G96: 0 | H96: 1
B97: Routine | E97: 1836.339623 | G97: 1836.339623 | H97: =IF(F97=0,1,((G97-F97)/F97)*1) -> 1
B98: Condition based | E98: 67852.34264 | G98: 67852.34264 | H98: 1
B99: Emergency | E99: 1584.606226 | G99: 1584.606226 | H99: 1
B100: SCADA/Network Control | E100: 0 | G100: 0 | H100: 1
B101: Other - Standard Control Services | E101: 0 | H101: 1
B102: AMI | E102: 0 | H102: 1
B103: Public Lighting | E103: 0 | H103: =IF(F103=0,1,((G103-F103)/F103)*1) -> 1
B104: Alternative control -other | E104: 0 | H104: 1
B105: Negotiated services | E105: 0 | H105: 1
B106: Other | E106: 0 | H106: 1
E107: 0 | H107: 1
E108: 0 | H108: 1
E109: 0 | H109: 1
E110: 0 | H110: 1
E111: 0 | H111: 1
E112: 0 | H112: 1
E113: 0 | H113: 1
E114: 0 | H114: 1
E115: 0 | H115: 1
E116: 0 | H116: 1
E117: 0 | H117: 1
E118: 0 | H118: 1
E119: 0 | H119: 1
E120: 0 | H120: 1
E121: 0 | H121: 1
E122: 0 | H122: 1
E123: 0 | H123: 1
E124: 0 | H124: 1
E125: 0 | H125: 1
E126: 0 | H126: 1
E127: 0 | H127: 1
E128: 0 | H128: 1
E129: 0 | H129: 1
H130: 1
H131: 1
B132: Total | C132: =SUM(C81:C131) -> 0 | D132: =SUM(D81:D131) -> 0 | E132: =SUM(E81:E131) -> 81574.33811 | F132: =SUM(F81:F131) -> 0 | G132: =SUM(G81:G131) -> 81574.33811 | H132: 1 | I132: =SUM(I81:I131) -> 0 | J132: =SUM(J81:J131) -> 0 | K132: 0 | L132: 0 | M132: =SUM(M81:M131) -> 0 | N132: =SUM(N81:N131) -> 0
B135: 8.4.3 - OPERATING & MAINTENANCE EXPENDITURE - EXPLANATION OF MATERIAL DIFFERENCE
B137: Where the difference between forecast and actual expenditure shown in table 8.4.1, column I is a Material Difference please explain the main factors driving the difference.
B139: Category | C139: Explanation
B140: Note
B141: Operating Expenditure
B142: Maintenance Expenditure

Sheet 9.5 TUoS
B1: =(LOOKUP(dms_Model,dms_Model_List,dms_Worksheet_List)) -> ANNUAL REPORTING STATEMENT
B2: =dms_TradingName -> AusNet (D)
B3: =CONCATENATE("Annual Reporting RIN Response ",CRY) -> Annual Reporting RIN Response 2016
B4: 9.5 - TUoS AUDIT (t-2)
B6: This template collects information for annual pricing proposals from Victorian businesses only.
B8: 9.5.1 - TUOS CHARGES (AEMO)
F9: =CRY -> 2016
E14: Total | F14: =SUM(F10:F13) -> 0
B17: 9.5.2 - TRANSMISSION CONNECTION FEES
F18: =CRY -> 2016
E27: Total | F27: =SUM(F19:F26) -> 0
B30: 9.5.3 - CROSS BOUNDARY NETWORK CHARGES
C31: Amount (payable)/receivable
C32: $0's, nominal
C33: HV crossings | D33: Subtransmission crossings | E33: TUoS Adjustment | F33: Total
B34: Distribution Business | F34: =CRY -> 2016
B35: ='[12]9.5 TUoS'!B33 -> United Energy (VIC) | C35: 136522.2915 | D35: 151716.7 | E35: 1352103 | F35: =IF((SUM(C35:E35)=0),"",(SUM(C35:E35))) -> 1640341.992
B36: ='[12]9.5 TUoS'!B34 -> United Energy (VIC) | C36: -4457.171817 | D36: -156726.72 | E36: -11 | F36: =IF((SUM(C36:E36)=0),"",(SUM(C36:E36))) -> -161194.8918
B37: ='[12]9.5 TUoS'!B35 -> Jemena Elec Nwks (Vic) Ltd | C37: 3066330 | D37: 100428 | E37: 449245 | F37: 3616003
B38: ='[12]9.5 TUoS'!B36 -> Jemena Elec Nwks (Vic) Ltd | C38: 0 | D38: -189612 | E38: -19320 | F38: -208932
B39: ='[12]9.5 TUoS'!B37 -> Essential Energy | C39: -149302.3928 | D39: 0 | E39: 0 | F39: -149302.3928
B43: Total | F43: =SUM(F35:F42) -> 4736915.707
B46: 9.5.4 - PAYMENTS TO EMBEDDED GENERATORS
B47: 9.5.4.1 - AVOIDED TRANSMISSION COSTS | F47: =CRY -> 2016
B56: Total | F56: =SUM(F48:F55) -> 0
B57: 9.5.4.2 - AVOIDED TUoS USAGE CHARGES | F57: =CRY -> 2016
B80: Total | F80: =SUM(F58:F79) -> 0
B81: Total payments to embedded generators | F81: =F80+F56 -> 0
